Dept/Family,Entity,Expense Type,Expense Area,Supplier,Payment Date, Amount ,SME,UNSPCC Code,UNSPCC Description
"Ministry of Housing, Communities and Local Government",Homes England,Land Registry Fees,Corporate Resources,HM LAND REGISTRY,19/10/2021,278.00,PUB,80131700,Escrow and title services
"Ministry of Housing, Communities and Local Government",Homes England,REV GRNTS TO LOCAL AUTHORITIES,Investment,OLDHAM COUNCIL,08/10/2021,"1,435.00",PUB,None,Grants
"Ministry of Housing, Communities and Local Government",Homes England,REV GRNTS TO LOCAL AUTHORITIES,Investment,OLDHAM COUNCIL,29/10/2021,"3,710.25",PUB,None,Grants
"Ministry of Housing, Communities and Local Government",Homes England,REV GRNTS TO LOCAL AUTHORITIES,Investment,GATESHEAD METROPOLITAN BOROUGH COUNCIL,04/10/2021,"1,167.00",PUB,None,Grants
"Ministry of Housing, Communities and Local Government",Homes England,REV GRNTS TO LOCAL AUTHORITIES,Investment,GATESHEAD METROPOLITAN BOROUGH COUNCIL,04/10/2021,"1,167.00",PUB,None,Grants
"Ministry of Housing, Communities and Local Government",Homes England,REV GRNTS TO LOCAL AUTHORITIES,Investment,GATESHEAD METROPOLITAN BOROUGH COUNCIL,04/10/2021,"1,167.00",PUB,None,Grants
"Ministry of Housing, Communities and Local Government",Homes England,REV GRNTS TO LOCAL AUTHORITIES,Investment,GATESHEAD METROPOLITAN BOROUGH COUNCIL,04/10/2021,"1,166.00",PUB,None,Grants
"Ministry of Housing, Communities and Local Government",Homes England,REV GRNTS TO LOCAL AUTHORITIES,Investment,GATESHEAD METROPOLITAN BOROUGH COUNCIL,04/10/2021,"1,167.00",PUB,None,Grants
"Ministry of Housing, Communities and Local Government",Homes England,REV GRNTS TO LOCAL AUTHORITIES,Investment,GATESHEAD METROPOLITAN BOROUGH COUNCIL,04/10/2021,"1,166.00",PUB,None,Grants
"Ministry of Housing, Communities and Local Government",Homes England,REV GRNTS TO LOCAL AUTHORITIES,Investment,GATESHEAD METROPOLITAN BOROUGH COUNCIL,04/10/2021,"1,167.00",PUB,None,Grants
"Ministry of Housing, Communities and Local Government",Homes England,REV GRNTS TO LOCAL AUTHORITIES,Investment,GATESHEAD METROPOLITAN BOROUGH COUNCIL,04/10/2021,"1,167.00",PUB,None,Grants
"Ministry of Housing, Communities and Local Government",Homes England,REV GRNTS TO LOCAL AUTHORITIES,Investment,GATESHEAD METROPOLITAN BOROUGH COUNCIL,04/10/2021,"1,167.00",PUB,None,Grants
"Ministry of Housing, Communities and Local Government",Homes England,REV GRNTS TO LOCAL AUTHORITIES,Investment,GATESHEAD METROPOLITAN BOROUGH COUNCIL,04/10/2021,"1,167.00",PUB,None,Grants
"Ministry of Housing, Communities and Local Government",Homes England,REV GRNTS TO LOCAL AUTHORITIES,Investment,GATESHEAD METROPOLITAN BOROUGH COUNCIL,04/10/2021,"1,166.00",PUB,None,Grants
"Ministry of Housing, Communities and Local Government",Homes England,REV GRNTS TO LOCAL AUTHORITIES,Investment,GATESHEAD METROPOLITAN BOROUGH COUNCIL,04/10/2021,"1,167.00",PUB,None,Grants
"Ministry of Housing, Communities and Local Government",Homes England,REV GRNTS TO LOCAL AUTHORITIES,Investment,GATESHEAD METROPOLITAN BOROUGH COUNCIL,04/10/2021,"1,167.00",PUB,None,Grants
"Ministry of Housing, Communities and Local Government",Homes England,REV GRNTS TO LOCAL AUTHORITIES,Investment,GATESHEAD METROPOLITAN BOROUGH COUNCIL,04/10/2021,"1,166.00",PUB,None,Grants
"Ministry of Housing, Communities and Local Government",Homes England,REV GRNTS TO LOCAL AUTHORITIES,Investment,GATESHEAD METROPOLITAN BOROUGH COUNCIL,04/10/2021,"1,166.00",PUB,None,Grants
"Ministry of Housing, Communities and Local Government",Homes England,CAP GRNTS TO LOCAL AUTHORITIES,Investment,NEWCASTLE CITY COUNCIL,29/10/2021,"586,700.00",PUB,None,Grants
"Ministry of Housing, Communities and Local Government",Homes England,CAP GRNTS TO LOCAL AUTHORITIES,Investment,SOUTH TYNESIDE COUNCIL,01/10/2021,"45,375.00",PUB,None,Grants
"Ministry of Housing, Communities and Local Government",Homes England,REV GRNTS TO LOCAL AUTHORITIES,Investment,SOLIHULL METROPOLITAN BOROUGH COUNCIL,04/10/2021,"2,167.00",PUB,None,Grants
"Ministry of Housing, Communities and Local Government",Homes England,REV GRNTS TO LOCAL AUTHORITIES,Investment,SOLIHULL METROPOLITAN BOROUGH COUNCIL,04/10/2021,"3,324.00",PUB,None,Grants
"Ministry of Housing, Communities and Local Government",Homes England,REV GRNTS TO LOCAL AUTHORITIES,Investment,SOLIHULL METROPOLITAN BOROUGH COUNCIL,04/10/2021,"3,443.00",PUB,None,Grants
"Ministry of Housing, Communities and Local Government",Homes England,CAP GRNTS TO LOCAL AUTHORITIES,Investment,THE COUNTY COUNCIL OF DURHAM,07/10/2021,"7,500.00",PUB,None,Grants
"Ministry of Housing, Communities and Local Government",Homes England,CAP GRNTS TO LOCAL AUTHORITIES,Investment,NORTHUMBERLAND COUNTY COUNCIL,01/10/2021,"12,000.00",PUB,None,Grants
"Ministry of Housing, Communities and Local Government",Homes England,CAP GRNTS TO LOCAL AUTHORITIES,Investment,NORTHUMBERLAND COUNTY COUNCIL,01/10/2021,"7,500.00",PUB,None,Grants
"Ministry of Housing, Communities and Local Government",Homes England,CAP GRNTS TO LOCAL AUTHORITIES,Investment,NORTHUMBERLAND COUNTY COUNCIL,05/10/2021,"10,500.00",PUB,None,Grants
"Ministry of Housing, Communities and Local Government",Homes England,MASTERPLANNING FEES,Development,WARRINGTON BOROUGH COUNCIL,08/10/2021,"7,824.50",PUB,81101500,Civil Engineering
"Ministry of Housing, Communities and Local Government",Homes England,CAP GRNTS TO LOCAL AUTHORITIES,Investment,EAST RIDING OF YORKSHIRE COUNCIL,07/10/2021,"8,750.00",PUB,None,Grants
"Ministry of Housing, Communities and Local Government",Homes England,CAP GRNTS TO LOCAL AUTHORITIES,Investment,EAST RIDING OF YORKSHIRE COUNCIL,07/10/2021,"8,750.00",PUB,None,Grants
"Ministry of Housing, Communities and Local Government",Homes England,CAP GRNTS TO LOCAL AUTHORITIES,Investment,CITY OF YORK COUNCIL,06/10/2021,"31,875.00",PUB,None,Grants
"Ministry of Housing, Communities and Local Government",Homes England,CAP GRNTS TO LOCAL AUTHORITIES,Investment,CITY OF YORK COUNCIL,06/10/2021,"17,000.00",PUB,None,Grants
"Ministry of Housing, Communities and Local Government",Homes England,CAP GRNTS TO LOCAL AUTHORITIES,Investment,CITY OF YORK COUNCIL,06/10/2021,"31,875.00",PUB,None,Grants
"Ministry of Housing, Communities and Local Government",Homes England,CAP GRNTS TO LOCAL AUTHORITIES,Investment,CITY OF YORK COUNCIL,07/10/2021,"14,875.00",PUB,None,Grants
"Ministry of Housing, Communities and Local Government",Homes England,CAP GRNTS TO LOCAL AUTHORITIES,Investment,CITY OF YORK COUNCIL,25/10/2021,"10,625.00",PUB,None,Grants
"Ministry of Housing, Communities and Local Government",Homes England,CAP GRNTS TO LOCAL AUTHORITIES,Investment,CITY OF YORK COUNCIL,25/10/2021,"10,625.00",PUB,None,Grants
"Ministry of Housing, Communities and Local Government",Homes England,CAP GRNTS TO LOCAL AUTHORITIES,Investment,CITY OF YORK COUNCIL,25/10/2021,"10,625.00",PUB,None,Grants
"Ministry of Housing, Communities and Local Government",Homes England,REV GRNTS TO LOCAL AUTHORITIES,Investment,DERBY CITY COUNCIL,04/10/2021,"1,815.00",PUB,None,Grants
"Ministry of Housing, Communities and Local Government",Homes England,REV GRNTS TO LOCAL AUTHORITIES,Investment,NORTH SOMERSET COUNCIL,12/10/2021,"33,407.00",PUB,None,Grants
"Ministry of Housing, Communities and Local Government",Homes England,CAP GRNTS TO LOCAL AUTHORITIES,Investment,CORNWALL COUNCIL,04/10/2021,"246,435.00",PUB,None,Grants
"Ministry of Housing, Communities and Local Government",Homes England,CAP GRNTS TO LOCAL AUTHORITIES,Investment,CORNWALL COUNCIL,04/10/2021,"35,659.00",PUB,None,Grants
"Ministry of Housing, Communities and Local Government",Homes England,REV GRNTS TO LOCAL AUTHORITIES,Investment,WILTSHIRE COUNCIL,21/10/2021,"7,971.00",PUB,None,Grants
"Ministry of Housing, Communities and Local Government",Homes England,REV GRNTS TO LOCAL AUTHORITIES,Investment,LUTON BOROUGH COUNCIL,26/10/2021,"36,450.00",PUB,None,Grants
"Ministry of Housing, Communities and Local Government",Homes England,REV GRNTS TO LOCAL AUTHORITIES,Investment,LUTON BOROUGH COUNCIL,26/10/2021,"36,450.00",PUB,None,Grants
"Ministry of Housing, Communities and Local Government",Homes England,REV GRNTS TO LOCAL AUTHORITIES,Investment,LUTON BOROUGH COUNCIL,26/10/2021,"36,450.00",PUB,None,Grants
"Ministry of Housing, Communities and Local Government",Homes England,REV GRNTS TO LOCAL AUTHORITIES,Investment,LUTON BOROUGH COUNCIL,27/10/2021,"40,500.00",PUB,None,Grants
"Ministry of Housing, Communities and Local Government",Homes England,REV GRNTS TO LOCAL AUTHORITIES,Investment,LUTON BOROUGH COUNCIL,27/10/2021,"40,500.00",PUB,None,Grants
"Ministry of Housing, Communities and Local Government",Homes England,REV GRNTS TO LOCAL AUTHORITIES,Investment,LUTON BOROUGH COUNCIL,27/10/2021,"40,500.00",PUB,None,Grants
"Ministry of Housing, Communities and Local Government",Homes England,CAP GRNTS TO LOCAL AUTHORITIES,Investment,CENTRAL BEDFORDSHIRE COUNCIL,21/10/2021,"2,508,000.00",PUB,None,Grants
"Ministry of Housing, Communities and Local Government",Homes England,CAP GRNTS TO LOCAL AUTHORITIES,Investment,CENTRAL BEDFORDSHIRE COUNCIL,21/10/2021,"217,500.00",PUB,None,Grants
"Ministry of Housing, Communities and Local Government",Homes England,REV GRNTS TO LOCAL AUTHORITIES,Investment,MILTON KEYNES COUNCIL,04/10/2021,"3,152.00",PUB,None,Grants
"Ministry of Housing, Communities and Local Government",Homes England,REV GRNTS TO LOCAL AUTHORITIES,Investment,MILTON KEYNES COUNCIL,04/10/2021,"1,812.00",PUB,None,Grants
"Ministry of Housing, Communities and Local Government",Homes England,REV GRNTS TO LOCAL AUTHORITIES,Investment,MILTON KEYNES COUNCIL,04/10/2021,"1,812.00",PUB,None,Grants
"Ministry of Housing, Communities and Local Government",Homes England,REV GRNTS TO LOCAL AUTHORITIES,Investment,MILTON KEYNES COUNCIL,04/10/2021,"3,152.00",PUB,None,Grants
"Ministry of Housing, Communities and Local Government",Homes England,REV GRNTS TO LOCAL AUTHORITIES,Investment,MILTON KEYNES COUNCIL,04/10/2021,"1,812.00",PUB,None,Grants
"Ministry of Housing, Communities and Local Government",Homes England,REV GRNTS TO LOCAL AUTHORITIES,Investment,MILTON KEYNES COUNCIL,04/10/2021,"1,812.00",PUB,None,Grants
"Ministry of Housing, Communities and Local Government",Homes England,REV GRNTS TO LOCAL AUTHORITIES,Investment,MILTON KEYNES COUNCIL,04/10/2021,"1,812.00",PUB,None,Grants
"Ministry of Housing, Communities and Local Government",Homes England,REV GRNTS TO LOCAL AUTHORITIES,Investment,MILTON KEYNES COUNCIL,04/10/2021,"3,152.00",PUB,None,Grants
"Ministry of Housing, Communities and Local Government",Homes England,REV GRNTS TO LOCAL AUTHORITIES,Investment,MILTON KEYNES COUNCIL,04/10/2021,"3,152.00",PUB,None,Grants
"Ministry of Housing, Communities and Local Government",Homes England,REV GRNTS TO LOCAL AUTHORITIES,Investment,MILTON KEYNES COUNCIL,04/10/2021,"3,623.00",PUB,None,Grants
"Ministry of Housing, Communities and Local Government",Homes England,REV GRNTS TO LOCAL AUTHORITIES,Investment,MILTON KEYNES COUNCIL,04/10/2021,"1,812.00",PUB,None,Grants
"Ministry of Housing, Communities and Local Government",Homes England,REV GRNTS TO LOCAL AUTHORITIES,Investment,MILTON KEYNES COUNCIL,04/10/2021,"1,812.00",PUB,None,Grants
"Ministry of Housing, Communities and Local Government",Homes England,REV GRNTS TO LOCAL AUTHORITIES,Investment,MILTON KEYNES COUNCIL,05/10/2021,"1,811.00",PUB,None,Grants
"Ministry of Housing, Communities and Local Government",Homes England,REV GRNTS TO LOCAL AUTHORITIES,Investment,MILTON KEYNES COUNCIL,05/10/2021,"1,811.00",PUB,None,Grants
"Ministry of Housing, Communities and Local Government",Homes England,REV GRNTS TO LOCAL AUTHORITIES,Investment,MILTON KEYNES COUNCIL,05/10/2021,"1,811.00",PUB,None,Grants
"Ministry of Housing, Communities and Local Government",Homes England,REV GRNTS TO LOCAL AUTHORITIES,Investment,MILTON KEYNES COUNCIL,05/10/2021,"1,811.00",PUB,None,Grants
"Ministry of Housing, Communities and Local Government",Homes England,REV GRNTS TO LOCAL AUTHORITIES,Investment,MILTON KEYNES COUNCIL,05/10/2021,"1,812.00",PUB,None,Grants
"Ministry of Housing, Communities and Local Government",Homes England,REV GRNTS TO LOCAL AUTHORITIES,Investment,MILTON KEYNES COUNCIL,05/10/2021,"1,811.00",PUB,None,Grants
"Ministry of Housing, Communities and Local Government",Homes England,REV GRNTS TO LOCAL AUTHORITIES,Investment,MILTON KEYNES COUNCIL,05/10/2021,"1,811.00",PUB,None,Grants
"Ministry of Housing, Communities and Local Government",Homes England,REV GRNTS TO LOCAL AUTHORITIES,Investment,MILTON KEYNES COUNCIL,05/10/2021,"1,811.00",PUB,None,Grants
"Ministry of Housing, Communities and Local Government",Homes England,REV GRNTS TO LOCAL AUTHORITIES,Investment,MILTON KEYNES COUNCIL,05/10/2021,"1,812.00",PUB,None,Grants
"Ministry of Housing, Communities and Local Government",Homes England,REV GRNTS TO LOCAL AUTHORITIES,Investment,MILTON KEYNES COUNCIL,05/10/2021,"1,811.00",PUB,None,Grants
"Ministry of Housing, Communities and Local Government",Homes England,REV GRNTS TO LOCAL AUTHORITIES,Investment,MILTON KEYNES COUNCIL,05/10/2021,"1,811.00",PUB,None,Grants
"Ministry of Housing, Communities and Local Government",Homes England,REV GRNTS TO LOCAL AUTHORITIES,Investment,MILTON KEYNES COUNCIL,05/10/2021,"1,811.00",PUB,None,Grants
"Ministry of Housing, Communities and Local Government",Homes England,REV GRNTS TO LOCAL AUTHORITIES,Investment,MILTON KEYNES COUNCIL,05/10/2021,"1,811.00",PUB,None,Grants
"Ministry of Housing, Communities and Local Government",Homes England,REV GRNTS TO LOCAL AUTHORITIES,Investment,MILTON KEYNES COUNCIL,05/10/2021,"1,811.00",PUB,None,Grants
"Ministry of Housing, Communities and Local Government",Homes England,REV GRNTS TO LOCAL AUTHORITIES,Investment,MILTON KEYNES COUNCIL,05/10/2021,"1,811.00",PUB,None,Grants
"Ministry of Housing, Communities and Local Government",Homes England,REV GRNTS TO LOCAL AUTHORITIES,Investment,MILTON KEYNES COUNCIL,05/10/2021,"1,811.00",PUB,None,Grants
"Ministry of Housing, Communities and Local Government",Homes England,REV GRNTS TO LOCAL AUTHORITIES,Investment,MILTON KEYNES COUNCIL,05/10/2021,"1,811.00",PUB,None,Grants
"Ministry of Housing, Communities and Local Government",Homes England,REV GRNTS TO LOCAL AUTHORITIES,Investment,BRIGHTON & HOVE CITY COUNCIL,04/10/2021,"1,575.00",PUB,None,Grants
"Ministry of Housing, Communities and Local Government",Homes England,REV GRNTS TO LOCAL AUTHORITIES,Investment,BRIGHTON & HOVE CITY COUNCIL,04/10/2021,"1,575.00",PUB,None,Grants
"Ministry of Housing, Communities and Local Government",Homes England,REV GRNTS TO LOCAL AUTHORITIES,Investment,BRIGHTON & HOVE CITY COUNCIL,04/10/2021,"1,575.00",PUB,None,Grants
"Ministry of Housing, Communities and Local Government",Homes England,REV GRNTS TO LOCAL AUTHORITIES,Investment,BRIGHTON & HOVE CITY COUNCIL,04/10/2021,"1,575.00",PUB,None,Grants
"Ministry of Housing, Communities and Local Government",Homes England,REV GRNTS TO LOCAL AUTHORITIES,Investment,BRIGHTON & HOVE CITY COUNCIL,04/10/2021,"1,575.00",PUB,None,Grants
"Ministry of Housing, Communities and Local Government",Homes England,REV GRNTS TO LOCAL AUTHORITIES,Investment,BRIGHTON & HOVE CITY COUNCIL,04/10/2021,"1,575.00",PUB,None,Grants
"Ministry of Housing, Communities and Local Government",Homes England,REV GRNTS TO LOCAL AUTHORITIES,Investment,BRIGHTON & HOVE CITY COUNCIL,04/10/2021,"1,575.00",PUB,None,Grants
"Ministry of Housing, Communities and Local Government",Homes England,REV GRNTS TO LOCAL AUTHORITIES,Investment,BRIGHTON & HOVE CITY COUNCIL,04/10/2021,"1,575.00",PUB,None,Grants
"Ministry of Housing, Communities and Local Government",Homes England,REV GRNTS TO LOCAL AUTHORITIES,Investment,BRIGHTON & HOVE CITY COUNCIL,04/10/2021,"1,575.00",PUB,None,Grants
"Ministry of Housing, Communities and Local Government",Homes England,REV GRNTS TO LOCAL AUTHORITIES,Investment,BRIGHTON & HOVE CITY COUNCIL,04/10/2021,"1,575.00",PUB,None,Grants
"Ministry of Housing, Communities and Local Government",Homes England,REV GRNTS TO LOCAL AUTHORITIES,Investment,BRIGHTON & HOVE CITY COUNCIL,04/10/2021,"1,575.00",PUB,None,Grants
"Ministry of Housing, Communities and Local Government",Homes England,REV GRNTS TO LOCAL AUTHORITIES,Investment,BRIGHTON & HOVE CITY COUNCIL,04/10/2021,"1,575.00",PUB,None,Grants
"Ministry of Housing, Communities and Local Government",Homes England,REV GRNTS TO LOCAL AUTHORITIES,Investment,BRIGHTON & HOVE CITY COUNCIL,04/10/2021,855.00,PUB,None,Grants
"Ministry of Housing, Communities and Local Government",Homes England,REV GRNTS TO LOCAL AUTHORITIES,Investment,BRIGHTON & HOVE CITY COUNCIL,04/10/2021,"1,575.00",PUB,None,Grants
"Ministry of Housing, Communities and Local Government",Homes England,REV GRNTS TO LOCAL AUTHORITIES,Investment,BRIGHTON & HOVE CITY COUNCIL,04/10/2021,"1,575.00",PUB,None,Grants
"Ministry of Housing, Communities and Local Government",Homes England,REV GRNTS TO LOCAL AUTHORITIES,Investment,BRIGHTON & HOVE CITY COUNCIL,04/10/2021,"1,575.00",PUB,None,Grants
"Ministry of Housing, Communities and Local Government",Homes England,REV GRNTS TO LOCAL AUTHORITIES,Investment,BRIGHTON & HOVE CITY COUNCIL,04/10/2021,"1,575.00",PUB,None,Grants
"Ministry of Housing, Communities and Local Government",Homes England,REV GRNTS TO LOCAL AUTHORITIES,Investment,BRIGHTON & HOVE CITY COUNCIL,04/10/2021,"1,575.00",PUB,None,Grants
"Ministry of Housing, Communities and Local Government",Homes England,REV GRNTS TO LOCAL AUTHORITIES,Investment,BRIGHTON & HOVE CITY COUNCIL,04/10/2021,"1,575.00",PUB,None,Grants
"Ministry of Housing, Communities and Local Government",Homes England,REV GRNTS TO LOCAL AUTHORITIES,Investment,BRIGHTON & HOVE CITY COUNCIL,04/10/2021,"1,575.00",PUB,None,Grants
"Ministry of Housing, Communities and Local Government",Homes England,REV GRNTS TO LOCAL AUTHORITIES,Investment,BRIGHTON & HOVE CITY COUNCIL,04/10/2021,"1,575.00",PUB,None,Grants
"Ministry of Housing, Communities and Local Government",Homes England,REV GRNTS TO LOCAL AUTHORITIES,Investment,BRIGHTON & HOVE CITY COUNCIL,04/10/2021,"1,575.00",PUB,None,Grants
"Ministry of Housing, Communities and Local Government",Homes England,REV GRNTS TO LOCAL AUTHORITIES,Investment,BRIGHTON & HOVE CITY COUNCIL,04/10/2021,"1,575.00",PUB,None,Grants
"Ministry of Housing, Communities and Local Government",Homes England,REV GRNTS TO LOCAL AUTHORITIES,Investment,BRIGHTON & HOVE CITY COUNCIL,04/10/2021,"1,575.00",PUB,None,Grants
"Ministry of Housing, Communities and Local Government",Homes England,REV GRNTS TO LOCAL AUTHORITIES,Investment,BRIGHTON & HOVE CITY COUNCIL,04/10/2021,"1,575.00",PUB,None,Grants
"Ministry of Housing, Communities and Local Government",Homes England,REV GRNTS TO LOCAL AUTHORITIES,Investment,BRIGHTON & HOVE CITY COUNCIL,04/10/2021,"1,575.00",PUB,None,Grants
"Ministry of Housing, Communities and Local Government",Homes England,REV GRNTS TO LOCAL AUTHORITIES,Investment,BRIGHTON & HOVE CITY COUNCIL,04/10/2021,"1,575.00",PUB,None,Grants
"Ministry of Housing, Communities and Local Government",Homes England,REV GRNTS TO LOCAL AUTHORITIES,Investment,BRIGHTON & HOVE CITY COUNCIL,04/10/2021,"1,575.00",PUB,None,Grants
"Ministry of Housing, Communities and Local Government",Homes England,REV GRNTS TO LOCAL AUTHORITIES,Investment,BRIGHTON & HOVE CITY COUNCIL,04/10/2021,"1,575.00",PUB,None,Grants
"Ministry of Housing, Communities and Local Government",Homes England,REV GRNTS TO LOCAL AUTHORITIES,Investment,BRIGHTON & HOVE CITY COUNCIL,05/10/2021,"1,575.00",PUB,None,Grants
"Ministry of Housing, Communities and Local Government",Homes England,REV GRNTS TO LOCAL AUTHORITIES,Investment,BRIGHTON & HOVE CITY COUNCIL,05/10/2021,"1,575.00",PUB,None,Grants
"Ministry of Housing, Communities and Local Government",Homes England,REV GRNTS TO LOCAL AUTHORITIES,Investment,BRIGHTON & HOVE CITY COUNCIL,05/10/2021,"1,575.00",PUB,None,Grants
"Ministry of Housing, Communities and Local Government",Homes England,REV GRNTS TO LOCAL AUTHORITIES,Investment,BRIGHTON & HOVE CITY COUNCIL,05/10/2021,"1,575.00",PUB,None,Grants
"Ministry of Housing, Communities and Local Government",Homes England,REV GRNTS TO LOCAL AUTHORITIES,Investment,BRIGHTON & HOVE CITY COUNCIL,05/10/2021,"1,575.00",PUB,None,Grants
"Ministry of Housing, Communities and Local Government",Homes England,REV GRNTS TO LOCAL AUTHORITIES,Investment,BRIGHTON & HOVE CITY COUNCIL,05/10/2021,"1,575.00",PUB,None,Grants
"Ministry of Housing, Communities and Local Government",Homes England,REV GRNTS TO LOCAL AUTHORITIES,Investment,BRIGHTON & HOVE CITY COUNCIL,06/10/2021,"1,575.00",PUB,None,Grants
"Ministry of Housing, Communities and Local Government",Homes England,REV GRNTS TO LOCAL AUTHORITIES,Investment,BRIGHTON & HOVE CITY COUNCIL,20/10/2021,"1,575.00",PUB,None,Grants
"Ministry of Housing, Communities and Local Government",Homes England,PLANNING APPLICATIONS,Development,WELWYN HATFIELD COUNCIL,07/10/2021,"47,754.00",PUB,80131800,Real estate management services
"Ministry of Housing, Communities and Local Government",Homes England,PROJECT MANAGEMENT,Development,R D LANDSCAPES LTD,26/10/2021,"5,700.00",SMA,80101600,Project management
"Ministry of Housing, Communities and Local Government",Homes England,PROJECT MANAGEMENT,Development,R D LANDSCAPES LTD,26/10/2021,"1,920.00",SMA,80101600,Project management
"Ministry of Housing, Communities and Local Government",Homes England,CAP GRNTS TO LOCAL AUTHORITIES,Investment,BOLSOVER DISTRICT COUNCIL,06/10/2021,"626,083.00",PUB,None,Grants
"Ministry of Housing, Communities and Local Government",Homes England,REV GRNTS TO LOCAL AUTHORITIES,Investment,TEIGNBRIDGE DISTRICT COUNCIL,26/10/2021,"5,483.40",PUB,None,Grants
"Ministry of Housing, Communities and Local Government",Homes England,CAP GRNTS TO LOCAL AUTHORITIES,Investment,TEIGNBRIDGE DISTRICT COUNCIL,26/10/2021,"25,950.25",PUB,None,Grants
"Ministry of Housing, Communities and Local Government",Homes England,DRAINS & SEWERS,Development,CROWN ESTATE COMMISSIONERS,20/10/2021,630.00,LAR,72101500,Building maintenance and repair services
"Ministry of Housing, Communities and Local Government",Homes England,PENSION SCHEME CONTRIBUTIONS,Corporate Allocations,LPFA,25/10/2021,769.05,SMA,84131700,Pension funds
"Ministry of Housing, Communities and Local Government",Homes England,PENSION SCHEME CONTRIBUTIONS,Corporate Allocations,LPFA,25/10/2021,577.12,SMA,84131700,Pension funds
"Ministry of Housing, Communities and Local Government",Homes England,REV GRNTS TO LOCAL AUTHORITIES,Investment,WEALDEN DISTRICT COUNCIL,04/10/2021,"10,750.00",PUB,None,Grants
"Ministry of Housing, Communities and Local Government",Homes England,CAP GRNTS TO LOCAL AUTHORITIES,Investment,COLCHESTER BOROUGH COUNCIL,11/10/2021,"281,162.00",PUB,None,Grants
"Ministry of Housing, Communities and Local Government",Homes England,CAP GRNTS TO LOCAL AUTHORITIES,Investment,COLCHESTER BOROUGH COUNCIL,11/10/2021,"323,803.00",PUB,None,Grants
"Ministry of Housing, Communities and Local Government",Homes England,CAP GRNTS TO LOCAL AUTHORITIES,Investment,COLCHESTER BOROUGH COUNCIL,11/10/2021,"281,749.00",PUB,None,Grants
"Ministry of Housing, Communities and Local Government",Homes England,CAP GRNTS TO LOCAL AUTHORITIES,Investment,COLCHESTER BOROUGH COUNCIL,18/10/2021,"198,092.00",PUB,None,Grants
"Ministry of Housing, Communities and Local Government",Homes England,CAP GRNTS TO LOCAL AUTHORITIES,Investment,COLCHESTER BOROUGH COUNCIL,19/10/2021,"66,030.00",PUB,None,Grants
"Ministry of Housing, Communities and Local Government",Homes England,ESTATE GENERAL MAINTENANCE,Development,IDVERDE LIMITED,21/10/2021,"1,047.34",LAR,72101500,Building maintenance and repair services
"Ministry of Housing, Communities and Local Government",Homes England,LEGAL FEES (PROGRAMME - CDEL),"Markets, Partners & Places",ENVIRONMENT AGENCY,28/10/2021,840.00,PUB,80121600,Business law services
"Ministry of Housing, Communities and Local Government",Homes England,FENCE MAINTENANCE,Development,LOWTHER FORESTRY GROUP,26/10/2021,"1,662.00",SMA,72102900,Facility maintenance and repair services
"Ministry of Housing, Communities and Local Government",Homes England,IRON MOUNTAIN-STORAGE,Corporate Resources,IRON MOUNTAIN (UK) LTD,11/10/2021,"1,889.40",LAR,78131800,Specialized warehousing and storage
"Ministry of Housing, Communities and Local Government",Homes England,IRON MOUNTAIN-STORAGE,Corporate Resources,IRON MOUNTAIN (UK) LTD,13/10/2021,"6,812.40",LAR,78131800,Specialized warehousing and storage
"Ministry of Housing, Communities and Local Government",Homes England,IRON MOUNTAIN-STORAGE,Corporate Resources,IRON MOUNTAIN (UK) LTD,25/10/2021,"1,604.18",LAR,78131800,Specialized warehousing and storage
"Ministry of Housing, Communities and Local Government",Homes England,IRON MOUNTAIN-STORAGE,Corporate Resources,IRON MOUNTAIN (UK) LTD,25/10/2021,"2,211.00",LAR,78131800,Specialized warehousing and storage
"Ministry of Housing, Communities and Local Government",Homes England,REV GRNTS TO LOCAL AUTHORITIES,Investment,STEVENGE BOROUGH COUNCIL,07/10/2021,"43,767.00",PUB,None,Grants
"Ministry of Housing, Communities and Local Government",Homes England,REV GRNTS TO LOCAL AUTHORITIES,Investment,STEVENGE BOROUGH COUNCIL,07/10/2021,"45,059.00",PUB,None,Grants
"Ministry of Housing, Communities and Local Government",Homes England,REV GRNTS TO LOCAL AUTHORITIES,Investment,STEVENGE BOROUGH COUNCIL,07/10/2021,"45,125.00",PUB,None,Grants
"Ministry of Housing, Communities and Local Government",Homes England,REVENUE GRANTS TO RPs,Investment,DOVER DISTRICT COUNCIL,26/10/2021,"8,321.00",PUB,None,Grants
"Ministry of Housing, Communities and Local Government",Homes England,POSTAGE/COURIERS,Development,MK LONDON LINK,05/10/2021,"1,236.48",SMA,78102200,Postal and small parcel and courier services
"Ministry of Housing, Communities and Local Government",Homes England,REV GRNTS TO LOCAL AUTHORITIES,Investment,CITY OF LINCOLN COUNCIL,20/10/2021,"9,505.00",PUB,None,Grants
"Ministry of Housing, Communities and Local Government",Homes England,REV GRNTS TO LOCAL AUTHORITIES,Investment,NORTH KESTEVEN DISTRICT COUNCIL,04/10/2021,"3,945.00",PUB,None,Grants
"Ministry of Housing, Communities and Local Government",Homes England,REV GRNTS TO LOCAL AUTHORITIES,Investment,SOUTH HOLLAND DISTRICT COUNCIL,05/10/2021,"8,063.00",PUB,None,Grants
"Ministry of Housing, Communities and Local Government",Homes England,CAP GRNTS TO LOCAL AUTHORITIES,Investment,ASHFIELD DISTRICT COUNCIL,18/10/2021,"20,000.00",PUB,None,Grants
"Ministry of Housing, Communities and Local Government",Homes England,REV GRNTS TO LOCAL AUTHORITIES,Investment,NEWARK AND SHERWOOD DISTRICT COUNCIL,05/10/2021,"7,380.00",PUB,None,Grants
"Ministry of Housing, Communities and Local Government",Homes England,CAP GRNTS TO LOCAL AUTHORITIES,Investment,BATH AND NORTH EAST SOMERSET COUNCIL,05/10/2021,"368,700.77",PUB,None,Grants
"Ministry of Housing, Communities and Local Government",Homes England,CAP GRNTS TO LOCAL AUTHORITIES,Investment,BATH AND NORTH EAST SOMERSET COUNCIL,05/10/2021,"716,600.08",PUB,None,Grants
"Ministry of Housing, Communities and Local Government",Homes England,CAP GRNTS TO LOCAL AUTHORITIES,Investment,CHESHIRE WEST & CHESTER COUNCIL,21/10/2021,"777,524.21",PUB,None,Grants
"Ministry of Housing, Communities and Local Government",Homes England,CAP GRNTS TO LOCAL AUTHORITIES,Investment,SUNDERLAND CITY COUNCIL,27/10/2021,"315,151.70",PUB,None,Grants
"Ministry of Housing, Communities and Local Government",Homes England,CAP GRNTS TO LOCAL AUTHORITIES,Investment,CORNWALL COUNCIL,26/10/2021,"37,379.47",PUB,None,Grants
"Ministry of Housing, Communities and Local Government",Homes England,CAP GRNTS TO LOCAL AUTHORITIES,Investment,CORNWALL COUNCIL,26/10/2021,"290,746.20",PUB,None,Grants
"Ministry of Housing, Communities and Local Government",Homes England,CAP GRNTS TO LOCAL AUTHORITIES,Investment,CORNWALL COUNCIL,26/10/2021,"535,684.83",PUB,None,Grants
"Ministry of Housing, Communities and Local Government",Homes England,CAP GRNTS TO LOCAL AUTHORITIES,Investment,CUMBRIA COUNTY COUNCIL,25/10/2021,"1,727,032.99",PUB,None,Grants
"Ministry of Housing, Communities and Local Government",Homes England,CAP GRNTS TO LOCAL AUTHORITIES,Investment,MEDWAY COUNCIL,27/10/2021,"944,283.79",PUB,None,Grants
"Ministry of Housing, Communities and Local Government",Homes England,CAP GRNTS TO LOCAL AUTHORITIES,Investment,MEDWAY COUNCIL,27/10/2021,"244,648.00",PUB,None,Grants
"Ministry of Housing, Communities and Local Government",Homes England,CAP GRNTS TO LOCAL AUTHORITIES,Investment,SOUTHAMPTON CITY COUNCIL,06/10/2021,"209,266.00",PUB,None,Grants
"Ministry of Housing, Communities and Local Government",Homes England,CAP GRNTS TO LOCAL AUTHORITIES,Investment,DEVON COUNTY COUNCIL,19/10/2021,"755,060.35",PUB,None,Grants
"Ministry of Housing, Communities and Local Government",Homes England,CONTRIBUTIONS,Development,DEVON COUNTY COUNCIL,20/10/2021,"359,548.53",PUB,None,Contributions
"Ministry of Housing, Communities and Local Government",Homes England,CAP GRNTS TO LOCAL AUTHORITIES,Investment,HAMPSHIRE COUNTY COUNCIL,22/10/2021,"2,805,882.89",PUB,None,Grants
"Ministry of Housing, Communities and Local Government",Homes England,REV GRNTS TO LOCAL AUTHORITIES,Investment,CHELMSFORD CITY COUNCIL,25/10/2021,"15,116.46",PUB,None,Grants
"Ministry of Housing, Communities and Local Government",Homes England,CAP GRNTS TO LOCAL AUTHORITIES,Investment,CAMBRIDGE CITY COUNCIL,26/10/2021,"956,451.80",PUB,None,Grants
"Ministry of Housing, Communities and Local Government",Homes England,CAP GRNTS TO LOCAL AUTHORITIES,Investment,BABERGH DISTRICT COUNCIL,25/10/2021,"140,000.00",PUB,None,Grants
"Ministry of Housing, Communities and Local Government",Homes England,ENGINEERING FEES,"Markets, Partners & Places",THE LAND TRUST,04/10/2021,"8,220.00",MED,81101500,Civil Engineering
"Ministry of Housing, Communities and Local Government",Homes England,REV GRNTS TO LOCAL AUTHORITIES,Investment,WOKING BOROUGH COUNCIL,04/10/2021,"26,000.00",PUB,None,Grants
"Ministry of Housing, Communities and Local Government",Homes England,CAP GRNTS TO LOCAL AUTHORITIES,Investment,WOKING BOROUGH COUNCIL,27/10/2021,"493,376.00",PUB,None,Grants
"Ministry of Housing, Communities and Local Government",Homes England,CAP GRNTS TO LOCAL AUTHORITIES,Investment,WARWICK DISTRICT COUNCIL,05/10/2021,"380,625.00",PUB,None,Grants
"Ministry of Housing, Communities and Local Government",Homes England,CAP GRNTS TO LOCAL AUTHORITIES,Investment,WARWICK DISTRICT COUNCIL,05/10/2021,"215,250.00",PUB,None,Grants
"Ministry of Housing, Communities and Local Government",Homes England,CAP GRNTS TO LOCAL AUTHORITIES,Investment,WARWICK DISTRICT COUNCIL,05/10/2021,"326,250.00",PUB,None,Grants
"Ministry of Housing, Communities and Local Government",Homes England,CAP GRNTS TO LOCAL AUTHORITIES,Investment,WARWICK DISTRICT COUNCIL,05/10/2021,"380,625.00",PUB,None,Grants
"Ministry of Housing, Communities and Local Government",Homes England,CAP GRNTS TO LOCAL AUTHORITIES,Investment,WARWICK DISTRICT COUNCIL,05/10/2021,"380,625.00",PUB,None,Grants
"Ministry of Housing, Communities and Local Government",Homes England,CAP GRNTS TO LOCAL AUTHORITIES,Investment,WARWICK DISTRICT COUNCIL,05/10/2021,"177,750.00",PUB,None,Grants
"Ministry of Housing, Communities and Local Government",Homes England,CAP GRNTS TO LOCAL AUTHORITIES,Investment,WARWICK DISTRICT COUNCIL,05/10/2021,"380,625.00",PUB,None,Grants
"Ministry of Housing, Communities and Local Government",Homes England,CAP GRNTS TO LOCAL AUTHORITIES,Investment,WARWICK DISTRICT COUNCIL,05/10/2021,"380,625.00",PUB,None,Grants
"Ministry of Housing, Communities and Local Government",Homes England,CAPITAL GRANTS TO RPs,Investment,FIRST CHOICE HOMES OLDHAM LIMITED,06/10/2021,"9,000.00",LAR,None,Grants
"Ministry of Housing, Communities and Local Government",Homes England,CAPITAL GRANTS TO RPs,Investment,FIRST CHOICE HOMES OLDHAM LIMITED,15/10/2021,"210,000.00",LAR,None,Grants
"Ministry of Housing, Communities and Local Government",Homes England,CAPITAL GRANTS TO RPs,Investment,FIRST CHOICE HOMES OLDHAM LIMITED,18/10/2021,"420,000.00",LAR,None,Grants
"Ministry of Housing, Communities and Local Government",Homes England,CAPITAL GRANTS TO RPs,Investment,FIRST CHOICE HOMES OLDHAM LIMITED,19/10/2021,"702,000.00",LAR,None,Grants
"Ministry of Housing, Communities and Local Government",Homes England,CAPITAL GRANTS TO RPs,Investment,FIRST CHOICE HOMES OLDHAM LIMITED,25/10/2021,"78,000.00",LAR,None,Grants
"Ministry of Housing, Communities and Local Government",Homes England,CAPITAL GRANTS TO RPs,Investment,FIRST CHOICE HOMES OLDHAM LIMITED,27/10/2021,"9,000.00",LAR,None,Grants
"Ministry of Housing, Communities and Local Government",Homes England,CAPITAL GRANTS TO RPs,Investment,FIRST CHOICE HOMES OLDHAM LIMITED,27/10/2021,"9,000.00",LAR,None,Grants
"Ministry of Housing, Communities and Local Government",Homes England,REVENUE GRANTS TO RPs,Investment,LEAZES HOMES LIMITED,07/10/2021,"7,233.00",LAR,None,Grants
"Ministry of Housing, Communities and Local Government",Homes England,CAPITAL GRANTS TO RPs,Investment,SAGE HOUSING LIMITED,26/10/2021,"66,535.00",MED,None,Grants
"Ministry of Housing, Communities and Local Government",Homes England,CAPITAL GRANTS TO RPs,Investment,YMCA BLACKBURN,22/10/2021,"80,500.00",LAR,None,Grants
"Ministry of Housing, Communities and Local Government",Homes England,CAPITAL GRANTS TO RPs,Investment,YMCA DOWNSLINK GROUP,05/10/2021,"122,168.00",LAR,None,Grants
"Ministry of Housing, Communities and Local Government",Homes England,REVENUE GRANTS TO RPs,Investment,YMCA DOWNSLINK GROUP,25/10/2021,"1,400.00",LAR,None,Grants
"Ministry of Housing, Communities and Local Government",Homes England,REVENUE GRANTS TO RPs,Investment,YMCA DOWNSLINK GROUP,25/10/2021,350.00,LAR,None,Grants
"Ministry of Housing, Communities and Local Government",Homes England,REVENUE GRANTS TO RPs,Investment,YMCA DOWNSLINK GROUP,25/10/2021,"2,800.00",LAR,None,Grants
"Ministry of Housing, Communities and Local Government",Homes England,REVENUE GRANTS TO RPs,Investment,YMCA DOWNSLINK GROUP,25/10/2021,700.00,LAR,None,Grants
"Ministry of Housing, Communities and Local Government",Homes England,REVENUE GRANTS TO RPs,Investment,YMCA DOWNSLINK GROUP,25/10/2021,"2,450.00",LAR,None,Grants
"Ministry of Housing, Communities and Local Government",Homes England,CAPITAL GRANTS TO RPs,Investment,KEELMAN HOMES,18/10/2021,"26,250.00",LAR,None,Grants
"Ministry of Housing, Communities and Local Government",Homes England,CAPITAL GRANTS TO RPs,Investment,KEELMAN HOMES,26/10/2021,"22,500.00",LAR,None,Grants
"Ministry of Housing, Communities and Local Government",Homes England,CAPITAL GRANTS TO RPs,Investment,J & M RESIDENTIAL LETTINGS LIMITED,01/10/2021,"12,600.00",SMA,None,Grants
"Ministry of Housing, Communities and Local Government",Homes England,CAPITAL GRANTS TO RPs,Investment,J & M RESIDENTIAL LETTINGS LIMITED,07/10/2021,"12,600.00",SMA,None,Grants
"Ministry of Housing, Communities and Local Government",Homes England,REV GRNTS TO LOCAL AUTHORITIES,Investment,ST RICHARD OF CHICHESTER CHRSTIAN CARE,05/10/2021,"2,508.00",MED,None,Grants
"Ministry of Housing, Communities and Local Government",Homes England,REV GRNTS TO LOCAL AUTHORITIES,Investment,ST RICHARD OF CHICHESTER CHRSTIAN CARE,06/10/2021,"5,017.00",MED,None,Grants
"Ministry of Housing, Communities and Local Government",Homes England,REV GRNTS TO LOCAL AUTHORITIES,Investment,ST RICHARD OF CHICHESTER CHRSTIAN CARE,20/10/2021,"5,017.00",MED,None,Grants
"Ministry of Housing, Communities and Local Government",Homes England,CAPITAL GRANTS TO RPs,Investment,PLATFORM HOUSING GROUP LIMITED,07/10/2021,"169,000.00",LAR,None,Grants
"Ministry of Housing, Communities and Local Government",Homes England,CAPITAL GRANTS TO RPs,Investment,DEVON AND CORNWALL HOUSING LIMITED,11/10/2021,"100,000.00",LAR,None,Grants
"Ministry of Housing, Communities and Local Government",Homes England,CAPITAL GRANTS TO RPs,Investment,LODDON HOMES LIMITED,28/10/2021,"150,000.00",SMA,None,Grants
"Ministry of Housing, Communities and Local Government",Homes England,CAPITAL GRANTS TO RPs,Investment,VIVID HOUSING LTD,11/10/2021,"16,000.00",LAR,None,Grants
"Ministry of Housing, Communities and Local Government",Homes England,CAPITAL GRANTS TO RPs,Investment,VIVID HOUSING LTD,11/10/2021,"16,000.00",LAR,None,Grants
"Ministry of Housing, Communities and Local Government",Homes England,CAPITAL GRANTS TO RPs,Investment,VIVID HOUSING LTD,11/10/2021,"16,000.00",LAR,None,Grants
"Ministry of Housing, Communities and Local Government",Homes England,CAPITAL GRANTS TO RPs,Investment,VIVID HOUSING LTD,11/10/2021,"11,000.00",LAR,None,Grants
"Ministry of Housing, Communities and Local Government",Homes England,REVENUE GRANTS TO RPs,Investment,NOTTINGHAM CITY HOMES REGISTERED PROVIDER LIM,07/10/2021,786.00,LAR,None,Grants
"Ministry of Housing, Communities and Local Government",Homes England,REVENUE GRANTS TO RPs,Investment,NOTTINGHAM CITY HOMES REGISTERED PROVIDER LIM,07/10/2021,786.00,LAR,None,Grants
"Ministry of Housing, Communities and Local Government",Homes England,REVENUE GRANTS TO RPs,Investment,NOTTINGHAM CITY HOMES REGISTERED PROVIDER LIM,07/10/2021,786.00,LAR,None,Grants
"Ministry of Housing, Communities and Local Government",Homes England,REVENUE GRANTS TO RPs,Investment,NOTTINGHAM CITY HOMES REGISTERED PROVIDER LIM,07/10/2021,786.00,LAR,None,Grants
"Ministry of Housing, Communities and Local Government",Homes England,REVENUE GRANTS TO RPs,Investment,NOTTINGHAM CITY HOMES REGISTERED PROVIDER LIM,07/10/2021,786.00,LAR,None,Grants
"Ministry of Housing, Communities and Local Government",Homes England,REVENUE GRANTS TO RPs,Investment,NOTTINGHAM CITY HOMES REGISTERED PROVIDER LIM,07/10/2021,786.00,LAR,None,Grants
"Ministry of Housing, Communities and Local Government",Homes England,REVENUE GRANTS TO RPs,Investment,NOTTINGHAM CITY HOMES REGISTERED PROVIDER LIM,07/10/2021,786.00,LAR,None,Grants
"Ministry of Housing, Communities and Local Government",Homes England,REVENUE GRANTS TO RPs,Investment,NOTTINGHAM CITY HOMES REGISTERED PROVIDER LIM,07/10/2021,786.00,LAR,None,Grants
"Ministry of Housing, Communities and Local Government",Homes England,CAPITAL GRANTS TO RPs,Investment,BERNICIA GROUP,07/10/2021,"21,500.00",LAR,None,Grants
"Ministry of Housing, Communities and Local Government",Homes England,CAPITAL GRANTS TO RPs,Investment,BERNICIA GROUP,07/10/2021,"26,250.00",LAR,None,Grants
"Ministry of Housing, Communities and Local Government",Homes England,CAPITAL GRANTS TO RPs,Investment,BERNICIA GROUP,07/10/2021,"17,000.00",LAR,None,Grants
"Ministry of Housing, Communities and Local Government",Homes England,REV GRNTS TO LOCAL AUTHORITIES,Investment,P3 HOUSING LTD,05/10/2021,"10,000.00",LAR,None,Grants
"Ministry of Housing, Communities and Local Government",Homes England,REV GRNTS TO LOCAL AUTHORITIES,Investment,P3 HOUSING LTD,05/10/2021,"44,875.00",LAR,None,Grants
"Ministry of Housing, Communities and Local Government",Homes England,CAPITAL GRANTS TO RPs,Investment,TORUS62 LIMITED,11/10/2021,"9,000.00",LAR,None,Grants
"Ministry of Housing, Communities and Local Government",Homes England,CAPITAL GRANTS TO RPs,Investment,TORUS62 LIMITED,27/10/2021,"9,000.00",LAR,None,Grants
"Ministry of Housing, Communities and Local Government",Homes England,CAPITAL GRANTS TO RPs,Investment,TORUS62 LIMITED,27/10/2021,"9,000.00",LAR,None,Grants
"Ministry of Housing, Communities and Local Government",Homes England,REV GRNTS TO LOCAL AUTHORITIES,Investment,BCP COUNCIL,06/10/2021,"1,088.00",PUB,None,Grants
"Ministry of Housing, Communities and Local Government",Homes England,REV GRNTS TO LOCAL AUTHORITIES,Investment,BCP COUNCIL,06/10/2021,"1,088.00",PUB,None,Grants
"Ministry of Housing, Communities and Local Government",Homes England,REV GRNTS TO LOCAL AUTHORITIES,Investment,BCP COUNCIL,06/10/2021,"1,088.00",PUB,None,Grants
"Ministry of Housing, Communities and Local Government",Homes England,REV GRNTS TO LOCAL AUTHORITIES,Investment,BCP COUNCIL,06/10/2021,"1,088.00",PUB,None,Grants
"Ministry of Housing, Communities and Local Government",Homes England,REV GRNTS TO LOCAL AUTHORITIES,Investment,BCP COUNCIL,06/10/2021,"1,088.00",PUB,None,Grants
"Ministry of Housing, Communities and Local Government",Homes England,REV GRNTS TO LOCAL AUTHORITIES,Investment,BCP COUNCIL,06/10/2021,"1,088.00",PUB,None,Grants
"Ministry of Housing, Communities and Local Government",Homes England,REV GRNTS TO LOCAL AUTHORITIES,Investment,BCP COUNCIL,06/10/2021,"1,088.00",PUB,None,Grants
"Ministry of Housing, Communities and Local Government",Homes England,REV GRNTS TO LOCAL AUTHORITIES,Investment,BCP COUNCIL,06/10/2021,"1,088.00",PUB,None,Grants
"Ministry of Housing, Communities and Local Government",Homes England,REV GRNTS TO LOCAL AUTHORITIES,Investment,CITIZEN HOUSING GROUP LTD,04/10/2021,"31,500.00",LAR,None,Grants
"Ministry of Housing, Communities and Local Government",Homes England,REV GRNTS TO LOCAL AUTHORITIES,Investment,CITIZEN HOUSING GROUP LTD,05/10/2021,"35,000.00",LAR,None,Grants
"Ministry of Housing, Communities and Local Government",Homes England,REV GRNTS TO LOCAL AUTHORITIES,Investment,CITIZEN HOUSING GROUP LTD,05/10/2021,"31,500.00",LAR,None,Grants
"Ministry of Housing, Communities and Local Government",Homes England,REV GRNTS TO LOCAL AUTHORITIES,Investment,CITIZEN HOUSING GROUP LTD,06/10/2021,"35,000.00",LAR,None,Grants
"Ministry of Housing, Communities and Local Government",Homes England,REV GRNTS TO LOCAL AUTHORITIES,Investment,CITIZEN HOUSING GROUP LTD,06/10/2021,"25,716.00",LAR,None,Grants
"Ministry of Housing, Communities and Local Government",Homes England,REV GRNTS TO LOCAL AUTHORITIES,Investment,CITIZEN HOUSING GROUP LTD,06/10/2021,"3,500.00",LAR,None,Grants
"Ministry of Housing, Communities and Local Government",Homes England,REV GRNTS TO LOCAL AUTHORITIES,Investment,CITIZEN HOUSING GROUP LTD,07/10/2021,"3,500.00",LAR,None,Grants
"Ministry of Housing, Communities and Local Government",Homes England,REV GRNTS TO LOCAL AUTHORITIES,Investment,CITIZEN HOUSING GROUP LTD,28/10/2021,"31,500.00",LAR,None,Grants
"Ministry of Housing, Communities and Local Government",Homes England,REV GRNTS TO LOCAL AUTHORITIES,Investment,CITIZEN HOUSING GROUP LTD,29/10/2021,"35,000.00",LAR,None,Grants
"Ministry of Housing, Communities and Local Government",Homes England,CAP GRNTS TO LOCAL AUTHORITIES,Investment,SUNDERLAND CITY COUNCIL,07/10/2021,"7,500.00",PUB,None,Grants
"Ministry of Housing, Communities and Local Government",Homes England,CAP GRNTS TO LOCAL AUTHORITIES,Investment,SUNDERLAND CITY COUNCIL,29/10/2021,"7,500.00",PUB,None,Grants
"Ministry of Housing, Communities and Local Government",Homes England,REV GRNTS TO LOCAL AUTHORITIES,Investment,TELFORD & WREKIN COUNCIL,05/10/2021,"2,450.00",PUB,None,Grants
"Ministry of Housing, Communities and Local Government",Homes England,REV GRNTS TO LOCAL AUTHORITIES,Investment,TELFORD & WREKIN COUNCIL,05/10/2021,"2,450.00",PUB,None,Grants
"Ministry of Housing, Communities and Local Government",Homes England,REV GRNTS TO LOCAL AUTHORITIES,Investment,TELFORD & WREKIN COUNCIL,05/10/2021,"12,255.00",PUB,None,Grants
"Ministry of Housing, Communities and Local Government",Homes England,REV GRNTS TO LOCAL AUTHORITIES,Investment,TELFORD & WREKIN COUNCIL,05/10/2021,"2,450.00",PUB,None,Grants
"Ministry of Housing, Communities and Local Government",Homes England,REV GRNTS TO LOCAL AUTHORITIES,Investment,TELFORD & WREKIN COUNCIL,05/10/2021,"2,450.00",PUB,None,Grants
"Ministry of Housing, Communities and Local Government",Homes England,REV GRNTS TO LOCAL AUTHORITIES,Investment,TELFORD & WREKIN COUNCIL,05/10/2021,"2,450.00",PUB,None,Grants
"Ministry of Housing, Communities and Local Government",Homes England,REV GRNTS TO LOCAL AUTHORITIES,Investment,TELFORD & WREKIN COUNCIL,05/10/2021,"2,450.00",PUB,None,Grants
"Ministry of Housing, Communities and Local Government",Homes England,REV GRNTS TO LOCAL AUTHORITIES,Investment,TELFORD & WREKIN COUNCIL,05/10/2021,"2,450.00",PUB,None,Grants
"Ministry of Housing, Communities and Local Government",Homes England,REV GRNTS TO LOCAL AUTHORITIES,Investment,TELFORD & WREKIN COUNCIL,06/10/2021,"2,450.00",PUB,None,Grants
"Ministry of Housing, Communities and Local Government",Homes England,REVENUE GRANTS TO RPs,Investment,RCVDA COMMUNITY HOUSING CIC,07/10/2021,"10,000.00",SMA,None,Grants
"Ministry of Housing, Communities and Local Government",Homes England,REV GRNTS TO LOCAL AUTHORITIES,Investment,BEDFORD BOROUGH COUNCIL,29/10/2021,"79,616.00",PUB,None,Grants
"Ministry of Housing, Communities and Local Government",Homes England,REV GRNTS TO LOCAL AUTHORITIES,Investment,TUNBRIDGE WELLS BOROUGH COUNCIL,29/10/2021,"19,913.00",PUB,None,Grants
"Ministry of Housing, Communities and Local Government",Homes England,REV GRNTS TO LOCAL AUTHORITIES,Investment,ROTHER DISTRICT COUNCIL,19/10/2021,"10,750.00",PUB,None,Grants
"Ministry of Housing, Communities and Local Government",Homes England,ECONOMIC CONSULTANCY PANEL,Development,AMION CONSULTING LTD,13/10/2021,"1,440.00",SMA,80131800,Real estate management services
"Ministry of Housing, Communities and Local Government",Homes England,MISC PROFESSIONAL FEES,Sras,AMION CONSULTING LTD,15/10/2021,"7,404.00",SMA,80101500,Business and corporate management consultation services
"Ministry of Housing, Communities and Local Government",Homes England,SECONDED STAFF COSTS,Sras,MHCLG,20/10/2021,"29,866.57",PUB,80101500,Business and corporate management consultation services 
"Ministry of Housing, Communities and Local Government",Homes England,ST FUND LOANS ADDITIONS,Investment,AQUINNA DEVELOPMENTS LIMITED,19/10/2021,"315,000.00",SMA,None,Loans
"Ministry of Housing, Communities and Local Government",Homes England,ENGINEERING FEES,Development,ATKINS LTD,01/10/2021,"11,094.00",LAR,81101500,Civil Engineering
"Ministry of Housing, Communities and Local Government",Homes England,PLANNING APPLICATIONS,"Markets, Partners & Places",ATKINS LTD,01/10/2021,"36,000.00",LAR,80131800,Real estate management services
"Ministry of Housing, Communities and Local Government",Homes England,MISC PROFESSIONAL FEES,Development,ATKINS LTD,14/10/2021,"3,450.00",LAR,80101500,Business and corporate management consultation services
"Ministry of Housing, Communities and Local Government",Homes England,MISC PROFESSIONAL FEES,Development,ATKINS LTD,14/10/2021,"3,492.00",LAR,80101500,Business and corporate management consultation services
"Ministry of Housing, Communities and Local Government",Homes England,ENGINEERING FEES,Development,ATKINS LTD,26/10/2021,"24,729.25",LAR,81101500,Civil Engineering
"Ministry of Housing, Communities and Local Government",Homes England,INTERNAL COMMUNICATIONS,"Markets, Partners & Places",ANDY TRYNER PHOTOGRAPHY,07/10/2021,594.00,MIC,82131600,Photographers and cinematographers
"Ministry of Housing, Communities and Local Government",Homes England,INTERNAL COMMUNICATIONS,"Markets, Partners & Places",ANDY TRYNER PHOTOGRAPHY,07/10/2021,424.80,MIC,82131600,Photographers and cinematographers
"Ministry of Housing, Communities and Local Government",Homes England,ST FUND LOANS ADDITIONS,Investment,ANCHOR HOMES (NORTH WEST) LTD,21/10/2021,"66,977.08",MIC,None,Loans
"Ministry of Housing, Communities and Local Government",Homes England,ROADS AND CAR PARKS,Development,AJP LOGISTICS LIMITED,14/10/2021,"1,554.00",SMA,72101500,Building maintenance and repair services
"Ministry of Housing, Communities and Local Government",Homes England,OTHER PROFESSIONAL FEES,Development,WESTERN POWER DISTRIBUTION,11/10/2021,"5,197.20",LAR,80131800,Real estate management services
"Ministry of Housing, Communities and Local Government",Homes England,MANAGEMENT COSTS,Development,WESTERN POWER DISTRIBUTION,15/10/2021,587.09,LAR,80131800,Real estate management services
"Ministry of Housing, Communities and Local Government",Homes England,CONTRACT WORKS,Development,WESTERN POWER DISTRIBUTION,21/10/2021,"84,088.93",LAR,72103300,Infrastructure maintenance and repair services
"Ministry of Housing, Communities and Local Government",Homes England,CAR LEASING - HIRE CHARGES,Development,LEASEPLAN UK LIMITED,14/10/2021,"2,057.33",LAR,25101500,Passenger motor vehicles
"Ministry of Housing, Communities and Local Government",Homes England,CAR LEASING - HIRE CHARGES,Development,LEASEPLAN UK LIMITED,14/10/2021,"2,764.76",LAR,25101500,Passenger motor vehicles
"Ministry of Housing, Communities and Local Government",Homes England,CAR LEASING - HIRE CHARGES,"Markets, Partners & Places",LEASEPLAN UK LIMITED,14/10/2021,283.42,LAR,25101500,Passenger motor vehicles
"Ministry of Housing, Communities and Local Government",Homes England,CAR LEASING - HIRE CHARGES,"Markets, Partners & Places",LEASEPLAN UK LIMITED,21/10/2021,283.42,LAR,25101500,Passenger motor vehicles
"Ministry of Housing, Communities and Local Government",Homes England,CAR LEASING - HIRE CHARGES,"Markets, Partners & Places",LEASEPLAN UK LIMITED,25/10/2021,283.42,LAR,25101500,Passenger motor vehicles
"Ministry of Housing, Communities and Local Government",Homes England,HEALTH & SAFETY SURVEYS,"Markets, Partners & Places",ALEX WARD ELECTRICAL CONTRACTORS LTD,05/10/2021,"2,088.00",MIC,72101500,Building maintenance and repair services
"Ministry of Housing, Communities and Local Government",Homes England,BUILDINGS-ELECTRICITY,"Markets, Partners & Places",ALEX WARD ELECTRICAL CONTRACTORS LTD,06/10/2021,"3,180.00",MIC,83101800,Electric utilities
"Ministry of Housing, Communities and Local Government",Homes England,CAR LEASING - HIRE CHARGES,Investment,ALPHABET (GB) LTD,06/10/2021,292.50,LAR,25101500,Passenger motor vehicles
"Ministry of Housing, Communities and Local Government",Homes England,CAR LEASING - HIRE CHARGES,Development,ALPHABET (GB) LTD,06/10/2021,257.22,LAR,25101500,Passenger motor vehicles
"Ministry of Housing, Communities and Local Government",Homes England,CAR LEASING - HIRE CHARGES,Development,ALPHABET (GB) LTD,06/10/2021,337.86,LAR,25101500,Passenger motor vehicles
"Ministry of Housing, Communities and Local Government",Homes England,MISC PROFESSIONAL FEES,Development,ELIZABETH AINGE,04/10/2021,250.00,SMA,81112200,Software Maintenance and Support
"Ministry of Housing, Communities and Local Government",Homes England,ST FUND LOANS ADDITIONS,Investment,AUDLEY GROUP DEVELOPMENTS 1 LTD,07/10/2021,"2,847,761.00",MIC,None,Loans
"Ministry of Housing, Communities and Local Government",Homes England,ST FUND LOANS ADDITIONS,Investment,AUDLEY GROUP DEVELOPMENTS 1 LTD,27/10/2021,"2,133,850.00",MIC,None,Loans
"Ministry of Housing, Communities and Local Government",Homes England,CAR LEASING - HIRE CHARGES,Development,ARVAL UK LIMITED,12/10/2021,"2,193.35",LAR,25101500,Passenger motor vehicles
"Ministry of Housing, Communities and Local Government",Homes England,CAR LEASING - HIRE CHARGES,Development,ARVAL UK LIMITED,12/10/2021,"2,751.92",LAR,25101500,Passenger motor vehicles
"Ministry of Housing, Communities and Local Government",Homes England,CAR LEASING - HIRE CHARGES,Development,ARVAL UK LIMITED,20/10/2021,253.22,LAR,25101500,Passenger motor vehicles
"Ministry of Housing, Communities and Local Government",Homes England,EXTERNAL BUILDING MAINTENANCE,"Markets, Partners & Places",ALLIUM ENVIRONMENTAL LTD,05/10/2021,288.00,SMA,72101500,Building maintenance and repair services
"Ministry of Housing, Communities and Local Government",Homes England,MANAGEMENT COSTS,"Markets, Partners & Places",ALLIUM ENVIRONMENTAL LTD,05/10/2021,288.00,SMA,80131800,Real estate management services
"Ministry of Housing, Communities and Local Government",Homes England,ST FUND LOANS ADDITIONS,Investment,ACROM HOLDINGS LTD & ACROM CONSTRUCTION,01/10/2021,"65,480.00",SMA,None,Loans
"Ministry of Housing, Communities and Local Government",Homes England,ESTATE GENERAL MAINTENANCE,Development,ALBEN LANDSCAPES LIMITED,08/10/2021,639.64,SMA,72101500,Building maintenance and repair services
"Ministry of Housing, Communities and Local Government",Homes England,ESTATE GENERAL MAINTENANCE,Development,ALBEN LANDSCAPES LIMITED,08/10/2021,639.64,SMA,72101500,Building maintenance and repair services
"Ministry of Housing, Communities and Local Government",Homes England,ESTATE GENERAL MAINTENANCE,Development,ALBEN LANDSCAPES LIMITED,08/10/2021,639.64,SMA,72101500,Building maintenance and repair services
"Ministry of Housing, Communities and Local Government",Homes England,ESTATE GENERAL MAINTENANCE,Development,ALBEN LANDSCAPES LIMITED,08/10/2021,639.64,SMA,72101500,Building maintenance and repair services
"Ministry of Housing, Communities and Local Government",Homes England,ESTATE GENERAL MAINTENANCE,Development,ALBEN LANDSCAPES LIMITED,08/10/2021,639.64,SMA,72101500,Building maintenance and repair services
"Ministry of Housing, Communities and Local Government",Homes England,LANDSCAPE MAINT-BUILT ESTATE,Development,ALBEN LANDSCAPES LIMITED,19/10/2021,"1,384.12",SMA,72102900,Facility maintenance and repair services
"Ministry of Housing, Communities and Local Government",Homes England,ESTATE GENERAL MAINTENANCE,Development,ALBEN LANDSCAPES LIMITED,29/10/2021,360.00,SMA,72101500,Building maintenance and repair services
"Ministry of Housing, Communities and Local Government",Homes England,CONTRACT WORKS,Development,ASBESTECH LIMITED,15/10/2021,"2,136.00",SMA,72101500,Building maintenance and repair services
"Ministry of Housing, Communities and Local Government",Homes England,AGENCY STAFF,Corporate Resources,ALLEN LANE LIMITED,01/10/2021,"4,290.00",SMA,80111600,Temporary personnel services
"Ministry of Housing, Communities and Local Government",Homes England,AGENCY STAFF,Corporate Resources,ALLEN LANE LIMITED,01/10/2021,"7,920.00",SMA,80111600,Temporary personnel services
"Ministry of Housing, Communities and Local Government",Homes England,AGENCY STAFF,Corporate Resources,ALLEN LANE LIMITED,07/10/2021,"3,795.00",SMA,80111600,Temporary personnel services
"Ministry of Housing, Communities and Local Government",Homes England,AGENCY STAFF,Corporate Resources,ALLEN LANE LIMITED,07/10/2021,"4,290.00",SMA,80111600,Temporary personnel services
"Ministry of Housing, Communities and Local Government",Homes England,AGENCY STAFF,Corporate Resources,ALLEN LANE LIMITED,07/10/2021,"2,640.00",SMA,80111600,Temporary personnel services
"Ministry of Housing, Communities and Local Government",Homes England,AGENCY STAFF,Corporate Resources,ALLEN LANE LIMITED,07/10/2021,"3,795.00",SMA,80111600,Temporary personnel services
"Ministry of Housing, Communities and Local Government",Homes England,AGENCY STAFF,Corporate Resources,ALLEN LANE LIMITED,07/10/2021,"3,630.00",SMA,80111600,Temporary personnel services
"Ministry of Housing, Communities and Local Government",Homes England,AGENCY STAFF,Corporate Resources,ALLEN LANE LIMITED,07/10/2021,"4,657.50",SMA,80111600,Temporary personnel services
"Ministry of Housing, Communities and Local Government",Homes England,AGENCY STAFF,Corporate Resources,ALLEN LANE LIMITED,18/10/2021,"3,795.00",SMA,80111600,Temporary personnel services
"Ministry of Housing, Communities and Local Government",Homes England,AGENCY STAFF,Corporate Resources,ALLEN LANE LIMITED,18/10/2021,"7,590.00",SMA,80111600,Temporary personnel services
"Ministry of Housing, Communities and Local Government",Homes England,AGENCY STAFF,Corporate Resources,ALLEN LANE LIMITED,18/10/2021,"4,290.00",SMA,80111600,Temporary personnel services
"Ministry of Housing, Communities and Local Government",Homes England,AGENCY STAFF,Corporate Resources,ALLEN LANE LIMITED,18/10/2021,"3,795.00",SMA,80111600,Temporary personnel services
"Ministry of Housing, Communities and Local Government",Homes England,AGENCY STAFF,Corporate Resources,ALLEN LANE LIMITED,18/10/2021,"3,630.00",SMA,80111600,Temporary personnel services
"Ministry of Housing, Communities and Local Government",Homes England,AGENCY STAFF,Corporate Resources,ALLEN LANE LIMITED,18/10/2021,"4,657.50",SMA,80111600,Temporary personnel services
"Ministry of Housing, Communities and Local Government",Homes England,AGENCY STAFF,Corporate Resources,ALLEN LANE LIMITED,18/10/2021,"7,590.00",SMA,80111600,Temporary personnel services
"Ministry of Housing, Communities and Local Government",Homes England,AGENCY STAFF,Corporate Resources,ALLEN LANE LIMITED,19/10/2021,"3,795.00",SMA,80111600,Temporary personnel services
"Ministry of Housing, Communities and Local Government",Homes England,AGENCY STAFF,Corporate Resources,ALLEN LANE LIMITED,25/10/2021,"9,315.00",SMA,80111600,Temporary personnel services
"Ministry of Housing, Communities and Local Government",Homes England,AGENCY STAFF,Corporate Resources,ALLEN LANE LIMITED,25/10/2021,"3,415.50",SMA,80111600,Temporary personnel services
"Ministry of Housing, Communities and Local Government",Homes England,AGENCY STAFF,Corporate Resources,ALLEN LANE LIMITED,25/10/2021,"9,315.00",SMA,80111600,Temporary personnel services
"Ministry of Housing, Communities and Local Government",Homes England,AGENCY STAFF,Corporate Resources,ALLEN LANE LIMITED,25/10/2021,"3,795.00",SMA,80111600,Temporary personnel services
"Ministry of Housing, Communities and Local Government",Homes England,AGENCY STAFF,Corporate Resources,ALLEN LANE LIMITED,25/10/2021,"3,795.00",SMA,80111600,Temporary personnel services
"Ministry of Housing, Communities and Local Government",Homes England,AGENCY STAFF,Corporate Resources,ALLEN LANE LIMITED,25/10/2021,"3,795.00",SMA,80111600,Temporary personnel services
"Ministry of Housing, Communities and Local Government",Homes England,AGENCY STAFF,Corporate Resources,ALLEN LANE LIMITED,25/10/2021,"3,630.00",SMA,80111600,Temporary personnel services
"Ministry of Housing, Communities and Local Government",Homes England,AGENCY STAFF,Corporate Resources,ALLEN LANE LIMITED,25/10/2021,"3,795.00",SMA,80111600,Temporary personnel services
"Ministry of Housing, Communities and Local Government",Homes England,AGENCY STAFF,Corporate Resources,ALLEN LANE LIMITED,25/10/2021,"3,795.00",SMA,80111600,Temporary personnel services
"Ministry of Housing, Communities and Local Government",Homes England,AGENCY STAFF,Corporate Resources,ALLEN LANE LIMITED,25/10/2021,"4,290.00",SMA,80111600,Temporary personnel services
"Ministry of Housing, Communities and Local Government",Homes England,AGENCY STAFF,Corporate Resources,ALLEN LANE LIMITED,25/10/2021,"3,036.00",SMA,80111600,Temporary personnel services
"Ministry of Housing, Communities and Local Government",Homes England,AGENCY STAFF,Corporate Resources,ALLEN LANE LIMITED,25/10/2021,"4,657.50",SMA,80111600,Temporary personnel services
"Ministry of Housing, Communities and Local Government",Homes England,AGENCY STAFF,Corporate Resources,ALLEN LANE LIMITED,25/10/2021,"7,590.00",SMA,80111600,Temporary personnel services
"Ministry of Housing, Communities and Local Government",Homes England,ESTATE GENERAL MAINTENANCE,Development,AIREDALE FORESTRY,01/10/2021,400.07,SMA,72101500,Building maintenance and repair services
"Ministry of Housing, Communities and Local Government",Homes England,ESTATE GENERAL MAINTENANCE,Development,AIREDALE FORESTRY,01/10/2021,827.98,SMA,72101500,Building maintenance and repair services
"Ministry of Housing, Communities and Local Government",Homes England,ESTATE GENERAL MAINTENANCE,"Markets, Partners & Places",AIREDALE FORESTRY,06/10/2021,374.40,SMA,72101500,Building maintenance and repair services
"Ministry of Housing, Communities and Local Government",Homes England,ESTATE GENERAL MAINTENANCE,Development,AIREDALE FORESTRY,14/10/2021,723.07,SMA,72101500,Building maintenance and repair services
"Ministry of Housing, Communities and Local Government",Homes England,ESTATE GENERAL MAINTENANCE,"Markets, Partners & Places",AIREDALE FORESTRY,14/10/2021,973.03,SMA,72101500,Building maintenance and repair services
"Ministry of Housing, Communities and Local Government",Homes England,ESTATE GENERAL MAINTENANCE,"Markets, Partners & Places",AIREDALE FORESTRY,15/10/2021,535.88,SMA,72101500,Building maintenance and repair services
"Ministry of Housing, Communities and Local Government",Homes England,ESTATE GENERAL MAINTENANCE,Development,AIREDALE FORESTRY,15/10/2021,278.22,SMA,72101500,Building maintenance and repair services
"Ministry of Housing, Communities and Local Government",Homes England,ESTATE GENERAL MAINTENANCE,"Markets, Partners & Places",AIREDALE FORESTRY,15/10/2021,595.09,SMA,72101500,Building maintenance and repair services
"Ministry of Housing, Communities and Local Government",Homes England,ESTATE GENERAL MAINTENANCE,Development,AIREDALE FORESTRY,15/10/2021,400.07,SMA,72101500,Building maintenance and repair services
"Ministry of Housing, Communities and Local Government",Homes England,ESTATE GENERAL MAINTENANCE,Development,AIREDALE FORESTRY,15/10/2021,827.98,SMA,72101500,Building maintenance and repair services
"Ministry of Housing, Communities and Local Government",Homes England,LANDSCAPE MAINT-BUILT ESTATE,Development,AIREDALE FORESTRY,18/10/2021,438.97,SMA,72102900,Facility maintenance and repair services
"Ministry of Housing, Communities and Local Government",Homes England,CAR LEASING - HIRE CHARGES,Sras,ALD AUTOMOTIVE,12/10/2021,252.54,LAR,25101500,Passenger motor vehicles
"Ministry of Housing, Communities and Local Government",Homes England,L&OD STRATEGIC - HR USE ONLY,Corporate Resources,ASSIST KNOWLEDGE DEVELOPMENT LTD,01/10/2021,"1,530.00",SMA,86101800,In service training and manpower development
"Ministry of Housing, Communities and Local Government",Homes England,LEGAL FEES (PROGRAMME - CDEL),Development,ASHFORDS,19/10/2021,900.00,LAR,80121600,Business law services
"Ministry of Housing, Communities and Local Government",Homes England,CAR LEASING - HIRE CHARGES,Development,ARNOLD CLARK FINANCE LIMITED,06/10/2021,290.33,LAR,25101500,Passenger motor vehicles
"Ministry of Housing, Communities and Local Government",Homes England,CAR LEASING - HIRE CHARGES,Development,ARNOLD CLARK FINANCE LIMITED,06/10/2021,374.60,LAR,25101500,Passenger motor vehicles
"Ministry of Housing, Communities and Local Government",Homes England,CAR LEASING - HIRE CHARGES,Development,ARNOLD CLARK FINANCE LIMITED,06/10/2021,311.78,LAR,25101500,Passenger motor vehicles
"Ministry of Housing, Communities and Local Government",Homes England,CAR LEASING - HIRE CHARGES,Development,ARNOLD CLARK FINANCE LIMITED,06/10/2021,259.44,LAR,25101500,Passenger motor vehicles
"Ministry of Housing, Communities and Local Government",Homes England,CAR LEASING - HIRE CHARGES,Development,ARNOLD CLARK FINANCE LIMITED,06/10/2021,274.82,LAR,25101500,Passenger motor vehicles
"Ministry of Housing, Communities and Local Government",Homes England,CAR LEASING - HIRE CHARGES,Development,ARNOLD CLARK FINANCE LIMITED,06/10/2021,254.11,LAR,25101500,Passenger motor vehicles
"Ministry of Housing, Communities and Local Government",Homes England,CAR LEASING - HIRE CHARGES,"Markets, Partners & Places",ARNOLD CLARK FINANCE LIMITED,06/10/2021,268.66,LAR,25101500,Passenger motor vehicles
"Ministry of Housing, Communities and Local Government",Homes England,CAR LEASING - HIRE CHARGES,"Markets, Partners & Places",ARNOLD CLARK FINANCE LIMITED,06/10/2021,355.00,LAR,25101500,Passenger motor vehicles
"Ministry of Housing, Communities and Local Government",Homes England,CAR LEASING - HIRE CHARGES,Investment,ARNOLD CLARK FINANCE LIMITED,06/10/2021,304.68,LAR,25101500,Passenger motor vehicles
"Ministry of Housing, Communities and Local Government",Homes England,CAR LEASING - HIRE CHARGES,Investment,ARNOLD CLARK FINANCE LIMITED,06/10/2021,267.54,LAR,25101500,Passenger motor vehicles
"Ministry of Housing, Communities and Local Government",Homes England,CAR LEASING - HIRE CHARGES,Development,ARNOLD CLARK FINANCE LIMITED,06/10/2021,250.93,LAR,25101500,Passenger motor vehicles
"Ministry of Housing, Communities and Local Government",Homes England,CAR LEASING - HIRE CHARGES,Development,ARNOLD CLARK FINANCE LIMITED,06/10/2021,311.78,LAR,25101500,Passenger motor vehicles
"Ministry of Housing, Communities and Local Government",Homes England,CAR LEASING - HIRE CHARGES,Development,ARNOLD CLARK FINANCE LIMITED,06/10/2021,259.43,LAR,25101500,Passenger motor vehicles
"Ministry of Housing, Communities and Local Government",Homes England,CAR LEASING - HIRE CHARGES,Development,ARNOLD CLARK FINANCE LIMITED,06/10/2021,274.82,LAR,25101500,Passenger motor vehicles
"Ministry of Housing, Communities and Local Government",Homes England,CAR LEASING - HIRE CHARGES,Development,ARNOLD CLARK FINANCE LIMITED,06/10/2021,254.11,LAR,25101500,Passenger motor vehicles
"Ministry of Housing, Communities and Local Government",Homes England,CAR LEASING - HIRE CHARGES,"Markets, Partners & Places",ARNOLD CLARK FINANCE LIMITED,06/10/2021,268.66,LAR,25101500,Passenger motor vehicles
"Ministry of Housing, Communities and Local Government",Homes England,CAR LEASING - HIRE CHARGES,"Markets, Partners & Places",ARNOLD CLARK FINANCE LIMITED,06/10/2021,355.00,LAR,25101500,Passenger motor vehicles
"Ministry of Housing, Communities and Local Government",Homes England,CAR LEASING - HIRE CHARGES,Investment,ARNOLD CLARK FINANCE LIMITED,06/10/2021,267.54,LAR,25101500,Passenger motor vehicles
"Ministry of Housing, Communities and Local Government",Homes England,CAR LEASING - HIRE CHARGES,Development,ARNOLD CLARK FINANCE LIMITED,20/10/2021,570.49,LAR,25101500,Passenger motor vehicles
"Ministry of Housing, Communities and Local Government",Homes England,CAR LEASING - HIRE CHARGES,Development,ARNOLD CLARK FINANCE LIMITED,20/10/2021,688.85,LAR,25101500,Passenger motor vehicles
"Ministry of Housing, Communities and Local Government",Homes England,CAR LEASING - HIRE CHARGES,Development,ARNOLD CLARK FINANCE LIMITED,20/10/2021,394.25,LAR,25101500,Passenger motor vehicles
"Ministry of Housing, Communities and Local Government",Homes England,CAR LEASING - HIRE CHARGES,Development,ARNOLD CLARK FINANCE LIMITED,20/10/2021,460.37,LAR,25101500,Passenger motor vehicles
"Ministry of Housing, Communities and Local Government",Homes England,CAR LEASING - HIRE CHARGES,Development,ARNOLD CLARK FINANCE LIMITED,20/10/2021,329.33,LAR,25101500,Passenger motor vehicles
"Ministry of Housing, Communities and Local Government",Homes England,CAR LEASING - HIRE CHARGES,Development,ARNOLD CLARK FINANCE LIMITED,20/10/2021,384.59,LAR,25101500,Passenger motor vehicles
"Ministry of Housing, Communities and Local Government",Homes England,CAR LEASING - HIRE CHARGES,Investment,ARNOLD CLARK FINANCE LIMITED,20/10/2021,"1,969.63",LAR,25101500,Passenger motor vehicles
"Ministry of Housing, Communities and Local Government",Homes England,CAR LEASING - HIRE CHARGES,Investment,ARNOLD CLARK FINANCE LIMITED,20/10/2021,"2,457.79",LAR,25101500,Passenger motor vehicles
"Ministry of Housing, Communities and Local Government",Homes England,ENGINEERING CONSULTANTS,Development,AYLESBURY MAINS LTD,12/10/2021,648.00,SMA,81101500,Civil Engineering
"Ministry of Housing, Communities and Local Government",Homes England,LEGAL FEES (PROGRAMME - RDEL),Investment,BERWIN LEIGHTON PAISNER,04/10/2021,"1,800.00",LAR,80121600,Business law services
"Ministry of Housing, Communities and Local Government",Homes England,OPTION FEES,Investment,BERWIN LEIGHTON PAISNER,04/10/2021,"1,200.00",LAR,80121600,Business law services
"Ministry of Housing, Communities and Local Government",Homes England,LEGAL FEES (PROGRAMME - RDEL),Investment,BERWIN LEIGHTON PAISNER,04/10/2021,"1,800.00",LAR,80121600,Business law services
"Ministry of Housing, Communities and Local Government",Homes England,DISPOSAL FEES - LEGAL,"Markets, Partners & Places",BERWIN LEIGHTON PAISNER,11/10/2021,"1,504.80",LAR,80121600,Business law services
"Ministry of Housing, Communities and Local Government",Homes England,LEGAL FEES (PROGRAMME - RDEL),"Markets, Partners & Places",BERWIN LEIGHTON PAISNER,11/10/2021,277.20,LAR,80121600,Business law services
"Ministry of Housing, Communities and Local Government",Homes England,LEGAL FEES (PROGRAMME - RDEL),Investment,BERWIN LEIGHTON PAISNER,20/10/2021,900.00,LAR,80121600,Business law services
"Ministry of Housing, Communities and Local Government",Homes England,LEGAL FEES (PROGRAMME - RDEL),Investment,BERWIN LEIGHTON PAISNER,21/10/2021,900.00,LAR,80121600,Business law services
"Ministry of Housing, Communities and Local Government",Homes England,LEGAL FEES (PROGRAMME - RDEL),Investment,BERWIN LEIGHTON PAISNER,21/10/2021,"1,800.00",LAR,80121600,Business law services
"Ministry of Housing, Communities and Local Government",Homes England,MISC PROFESSIONAL FEES,Investment,BDO LLP,15/10/2021,"4,800.00",LAR,84111500,Accounting services
"Ministry of Housing, Communities and Local Government",Homes England,MISC PROFESSIONAL FEES,Investment,BDO LLP,15/10/2021,"204,000.00",LAR,84111500,Accounting services
"Ministry of Housing, Communities and Local Government",Homes England,MISC PROFESSIONAL FEES,Investment,BDO LLP,15/10/2021,"50,908.80",LAR,84111500,Accounting services
"Ministry of Housing, Communities and Local Government",Homes England,MISC PROFESSIONAL FEES,Investment,BDO LLP,15/10/2021,"17,664.00",LAR,84111500,Accounting services
"Ministry of Housing, Communities and Local Government",Homes England,MISC PROFESSIONAL FEES,Investment,BDO LLP,15/10/2021,"5,100.00",LAR,84111500,Accounting services
"Ministry of Housing, Communities and Local Government",Homes England,MISC PROFESSIONAL FEES,Cido,BJSS LIMITED,11/10/2021,"166,111.20",LAR,81112000,Data Services
"Ministry of Housing, Communities and Local Government",Homes England,LEGAL FEES (PROGRAMME - RDEL),"Markets, Partners & Places",BROWNE JACOBSON LLP,01/10/2021,933.00,LAR,80121600,Business law services
"Ministry of Housing, Communities and Local Government",Homes England,LEGAL FEES (PROGRAMME - RDEL),Development,BROWNE JACOBSON LLP,04/10/2021,"1,440.00",LAR,80121600,Business law services
"Ministry of Housing, Communities and Local Government",Homes England,DISPOSAL FEES - LEGAL,"Markets, Partners & Places",BROWNE JACOBSON LLP,04/10/2021,"1,419.00",LAR,80121600,Business law services
"Ministry of Housing, Communities and Local Government",Homes England,LEGAL FEES (PROGRAMME - CDEL),"Markets, Partners & Places",BROWNE JACOBSON LLP,04/10/2021,"12,000.00",LAR,80121600,Business law services
"Ministry of Housing, Communities and Local Government",Homes England,DISPOSAL FEES - LEGAL,"Markets, Partners & Places",BROWNE JACOBSON LLP,04/10/2021,"3,600.00",LAR,80121600,Business law services
"Ministry of Housing, Communities and Local Government",Homes England,PROF FEES LOANS CAPITALISED,Investment,BROWNE JACOBSON LLP,06/10/2021,"20,176.20",LAR,80121600,Business law services
"Ministry of Housing, Communities and Local Government",Homes England,LEGAL FEES (PROGRAMME - CDEL),Development,BROWNE JACOBSON LLP,07/10/2021,"1,790.00",LAR,80121600,Business law services
"Ministry of Housing, Communities and Local Government",Homes England,LEGAL FEES (PROGRAMME - CDEL),Development,BROWNE JACOBSON LLP,07/10/2021,"3,450.00",LAR,80121600,Business law services
"Ministry of Housing, Communities and Local Government",Homes England,DISPOSAL FEES - LEGAL,Development,BROWNE JACOBSON LLP,07/10/2021,"5,940.00",LAR,80121600,Business law services
"Ministry of Housing, Communities and Local Government",Homes England,DISPOSAL FEES - LEGAL,"Markets, Partners & Places",BROWNE JACOBSON LLP,11/10/2021,"2,067.60",LAR,80121600,Business law services
"Ministry of Housing, Communities and Local Government",Homes England,LEGAL FEES (PROGRAMME - CDEL),Development,BROWNE JACOBSON LLP,12/10/2021,"5,179.20",LAR,80121600,Business law services
"Ministry of Housing, Communities and Local Government",Homes England,LEGAL FEES (PROGRAMME - RDEL),Development,BROWNE JACOBSON LLP,15/10/2021,"1,920.00",LAR,80121600,Business law services
"Ministry of Housing, Communities and Local Government",Homes England,LEGAL FEES (PROGRAMME - RDEL),"Markets, Partners & Places",BROWNE JACOBSON LLP,15/10/2021,"3,600.00",LAR,80121600,Business law services
"Ministry of Housing, Communities and Local Government",Homes England,PROF FEES LOANS CAPITALISED,Investment,BROWNE JACOBSON LLP,15/10/2021,"2,493.36",LAR,80121600,Business law services
"Ministry of Housing, Communities and Local Government",Homes England,PROF FEES LOANS CAPITALISED,Investment,BROWNE JACOBSON LLP,15/10/2021,"22,176.00",LAR,80121600,Business law services
"Ministry of Housing, Communities and Local Government",Homes England,INSURANCE PREMIUMS,"Markets, Partners & Places",BROWNE JACOBSON LLP,15/10/2021,"7,995.00",LAR,84131500,Insurance services for structures and property and possessions
"Ministry of Housing, Communities and Local Government",Homes England,DISPOSAL FEES - LEGAL,Development,BROWNE JACOBSON LLP,26/10/2021,"2,040.00",LAR,80121600,Business law services
"Ministry of Housing, Communities and Local Government",Homes England,MISC PROFESSIONAL FEES,Development,BROWNE JACOBSON LLP,29/10/2021,"3,103.20",LAR,80121600,Business law services
"Ministry of Housing, Communities and Local Government",Homes England,RI - MONIITORING SURVEYOR FEES,Investment,BUILDING DESIGN PARTNERSHIP,05/10/2021,"2,112.00",LAR,81101500,Civil Engineering
"Ministry of Housing, Communities and Local Government",Homes England,ENGINEERING FEES,Development,CANAL & RIVER TRUST,19/10/2021,456.00,LAR,81101500,Civil Engineering
"Ministry of Housing, Communities and Local Government",Homes England,CAP GRNTS TO LOCAL AUTHORITIES,Investment,BUCKINGHAMSHIRE COUNTY COUNCIL,26/10/2021,"2,250,918.45",PUB,None,Grants
"Ministry of Housing, Communities and Local Government",Homes England,ST FUND LOANS ADDITIONS,Investment,BROADFIELD HOMES LTD,06/10/2021,"122,605.81",LAR,None,Loans
"Ministry of Housing, Communities and Local Government",Homes England,MISC PROFESSIONAL FEES,Development,DESIGN WEST,21/10/2021,"5,520.00",SMA,80161500,Management support services
"Ministry of Housing, Communities and Local Government",Homes England,PROF FEES LOANS CAPITALISED,Investment,STANTEC UK LIMITED,04/10/2021,960.00,LAR,81101500,Civil Engineering
"Ministry of Housing, Communities and Local Government",Homes England,OTHER PROFESSIONAL FEES,"Markets, Partners & Places",STANTEC UK LIMITED,04/10/2021,"5,656.50",LAR,80131800,Real estate management services
"Ministry of Housing, Communities and Local Government",Homes England,PROJECT MANAGEMENT,"Markets, Partners & Places",STANTEC UK LIMITED,06/10/2021,"5,670.00",LAR,80101600,Project management
"Ministry of Housing, Communities and Local Government",Homes England,RI - MONIITORING SURVEYOR FEES,Investment,STANTEC UK LIMITED,11/10/2021,"3,000.00",LAR,81101500,Civil Engineering
"Ministry of Housing, Communities and Local Government",Homes England,ENGINEERING FEES,Development,STANTEC UK LIMITED,11/10/2021,"35,700.00",LAR,81101500,Civil Engineering
"Ministry of Housing, Communities and Local Government",Homes England,ENGINEERING FEES,Development,STANTEC UK LIMITED,11/10/2021,"30,749.84",LAR,81101500,Civil Engineering
"Ministry of Housing, Communities and Local Government",Homes England,ENGINEERING FEES,Development,STANTEC UK LIMITED,11/10/2021,"37,155.30",LAR,81101500,Civil Engineering
"Ministry of Housing, Communities and Local Government",Homes England,ENVIRONMENTAL ASSESMENT,Development,STANTEC UK LIMITED,22/10/2021,"5,400.00",LAR,77101500,Environmental auditing
"Ministry of Housing, Communities and Local Government",Homes England,OTHER PROFESSIONAL FEES,Development,STANTEC UK LIMITED,29/10/2021,"1,080.00",LAR,80131800,Real estate management services
"Ministry of Housing, Communities and Local Government",Homes England,AGENCY STAFF,Development,BADENOCH & CLARK,06/10/2021,"2,796.00",LAR,80111600,Temporary personnel services
"Ministry of Housing, Communities and Local Government",Homes England,AGENCY STAFF,Development,BADENOCH & CLARK,06/10/2021,"2,796.00",LAR,80111600,Temporary personnel services
"Ministry of Housing, Communities and Local Government",Homes England,AGENCY STAFF,Development,BADENOCH & CLARK,06/10/2021,"2,796.00",LAR,80111600,Temporary personnel services
"Ministry of Housing, Communities and Local Government",Homes England,AGENCY STAFF,Development,BADENOCH & CLARK,11/10/2021,"2,097.00",LAR,80111600,Temporary personnel services
"Ministry of Housing, Communities and Local Government",Homes England,AGENCY STAFF,Development,BADENOCH & CLARK,11/10/2021,"2,097.00",LAR,80111600,Temporary personnel services
"Ministry of Housing, Communities and Local Government",Homes England,AGENCY STAFF,Development,BADENOCH & CLARK,11/10/2021,"1,677.60",LAR,80111600,Temporary personnel services
"Ministry of Housing, Communities and Local Government",Homes England,AGENCY STAFF,Development,BADENOCH & CLARK,14/10/2021,"1,677.60",LAR,80111600,Temporary personnel services
"Ministry of Housing, Communities and Local Government",Homes England,AGENCY STAFF,Development,BADENOCH & CLARK,14/10/2021,"1,957.20",LAR,80111600,Temporary personnel services
"Ministry of Housing, Communities and Local Government",Homes England,AGENCY STAFF,Development,BADENOCH & CLARK,14/10/2021,"2,446.50",LAR,80111600,Temporary personnel services
"Ministry of Housing, Communities and Local Government",Homes England,AGENCY STAFF,Development,BADENOCH & CLARK,14/10/2021,"2,446.50",LAR,80111600,Temporary personnel services
"Ministry of Housing, Communities and Local Government",Homes England,AGENCY STAFF,Development,BADENOCH & CLARK,14/10/2021,"2,446.50",LAR,80111600,Temporary personnel services
"Ministry of Housing, Communities and Local Government",Homes England,AGENCY STAFF,Development,BADENOCH & CLARK,14/10/2021,"2,446.50",LAR,80111600,Temporary personnel services
"Ministry of Housing, Communities and Local Government",Homes England,AGENCY STAFF,Development,BADENOCH & CLARK,19/10/2021,"2,097.00",LAR,80111600,Temporary personnel services
"Ministry of Housing, Communities and Local Government",Homes England,AGENCY STAFF,Development,BADENOCH & CLARK,20/10/2021,"2,796.00",LAR,80111600,Temporary personnel services
"Ministry of Housing, Communities and Local Government",Homes England,AGENCY STAFF,Development,BADENOCH & CLARK,20/10/2021,"2,796.00",LAR,80111600,Temporary personnel services
"Ministry of Housing, Communities and Local Government",Homes England,AGENCY STAFF,Development,BADENOCH & CLARK,26/10/2021,"2,097.00",LAR,80111600,Temporary personnel services
"Ministry of Housing, Communities and Local Government",Homes England,PROF FEES LOANS CAPITALISED,Investment,RIDER LEVETT BUCKNALL UK LTD,18/10/2021,"3,729.60",LAR,81101500,Civil Engineering
"Ministry of Housing, Communities and Local Government",Homes England,MOBILES,Cido,BRITISH TELECOMMUNICATIONS PLC,08/10/2021,401.66,LAR,83111500,Local and long distance telephone communications
"Ministry of Housing, Communities and Local Government",Homes England,HOME WORKERS,Cido,BRITISH TELECOMMUNICATIONS PLC,27/10/2021,"1,148.40",LAR,83111500,Local and long distance telephone communications
"Ministry of Housing, Communities and Local Government",Homes England,PRINTING & STATIONERY,Development,BANNER,04/10/2021,"1,148.20",LAR,44121600,Desk supplies
"Ministry of Housing, Communities and Local Government",Homes England,PRINTING & STATIONERY,Development,BANNER,04/10/2021,"3,656.65",LAR,44121600,Desk supplies
"Ministry of Housing, Communities and Local Government",Homes England,ST FUND LOANS ADDITIONS,Investment,BALLYMORE DEANSTON LIMITED,08/10/2021,"1,223,606.56",SMA,None,Loans
"Ministry of Housing, Communities and Local Government",Homes England,ST FUND LOANS ADDITIONS,Investment,BLUNDELLSANDS INVESTMENTS LIMITED,15/10/2021,"463,950.00",MIC,None,Loans
"Ministry of Housing, Communities and Local Government",Homes England,ST FUND LOANS ADDITIONS,Investment,BLUNDELLSANDS INVESTMENTS LIMITED,22/10/2021,"183,686.00",MIC,None,Loans
"Ministry of Housing, Communities and Local Government",Homes England,CONTRACT WORKS,"Markets, Partners & Places",KNIGHTS BROWN CONSTRUCTION LIMITED,18/10/2021,"11,411.06",LAR,72103300,Infrastructure maintenance and repair services
"Ministry of Housing, Communities and Local Government",Homes England,CAP GRNTS TO LOCAL AUTHORITIES,Investment,BRISTOL CITY COUNCIL,26/10/2021,"160,735.55",PUB,None,Grants
"Ministry of Housing, Communities and Local Government",Homes England,CAP GRNTS TO LOCAL AUTHORITIES,Investment,BRISTOL CITY COUNCIL,26/10/2021,"100,745.00",PUB,None,Grants
"Ministry of Housing, Communities and Local Government",Homes England,OTHER LTF LOAN ADDITIONS,Investment,BL CW Developments Limited,27/10/2021,"962,177.43",SMA,None,Loans
"Ministry of Housing, Communities and Local Government",Homes England,ST FUND LOANS ADDITIONS,Investment,BRYNKINALT FARMING LTD,13/10/2021,"305,586.00",LAR,None,Loans
"Ministry of Housing, Communities and Local Government",Homes England,MASTERPLANNING FEES,Development,BARTON WILLMORE,19/10/2021,"3,000.00",LAR,81101500,Civil Engineering
"Ministry of Housing, Communities and Local Government",Homes England,ESTATE GENERAL MAINTENANCE,Development,NJL BOXGREEN,11/10/2021,"1,560.00",SMA,72101500,Building maintenance and repair services
"Ministry of Housing, Communities and Local Government",Homes England,ESTATE GENERAL MAINTENANCE,Development,NJL BOXGREEN,25/10/2021,815.76,SMA,72101500,Building maintenance and repair services
"Ministry of Housing, Communities and Local Government",Homes England,ESTATE GENERAL MAINTENANCE,Development,NJL BOXGREEN,25/10/2021,"5,232.00",SMA,72101500,Building maintenance and repair services
"Ministry of Housing, Communities and Local Government",Homes England,ST FUND LOANS ADDITIONS,Investment,BROADLEAF NORWICH ROAD LIMITED,11/10/2021,"270,325.02",LAR,None,Loans
"Ministry of Housing, Communities and Local Government",Homes England,ST FUND LOANS ADDITIONS,Investment,BARCLAYS BANK PLC,06/10/2021,659.93,LAR,None,Loans
"Ministry of Housing, Communities and Local Government",Homes England,ST FUND LOANS ADDITIONS,Investment,BERI PROPERTIES LIMITED,07/10/2021,"13,938.62",SMA,None,Loans
"Ministry of Housing, Communities and Local Government",Homes England,PACKAGE MAINTENANCE & SUBSCRIP,Cido,BYTES SOFTWARE SERVICES LTD,04/10/2021,"1,716.94",LAR,43231500,Business function specific software
"Ministry of Housing, Communities and Local Government",Homes England,ST FUND LOANS ADDITIONS,Investment,BE21 LTD,06/10/2021,"95,000.00",LAR,None,Loans
"Ministry of Housing, Communities and Local Government",Homes England,ST FUND LOANS ADDITIONS,Investment,BE21 LTD,22/10/2021,"70,000.00",LAR,None,Loans
"Ministry of Housing, Communities and Local Government",Homes England,MISC PROFESSIONAL FEES,Investment,BOSTON HALE LTD,06/10/2021,"77,161.98",SMA,80111600,Temporary personnel services
"Ministry of Housing, Communities and Local Government",Homes England,ST FUND LOANS ADDITIONS,Investment,BELFIELD KINGSKERSWELL LLP,12/10/2021,"239,000.00",SMA,None,Loans
"Ministry of Housing, Communities and Local Government",Homes England,OTHER PROFESSIONAL FEES,Development,BIRMINGHAM CITY COUNCIL,01/10/2021,"4,200.00",PUB,80131800,Real estate management services
"Ministry of Housing, Communities and Local Government",Homes England,LT FUND LOANS (PS) ADDITIONS,Investment,BXS LIMITED PARTNERSHIP,06/10/2021,"4,284,189.62",MED,None,Loans
"Ministry of Housing, Communities and Local Government",Homes England,ESTATE GENERAL MAINTENANCE,Development,BASILDON RUGBY FOOTBALL CLUB,12/10/2021,"3,246.00",SMA,72101500,Building maintenance and repair services
"Ministry of Housing, Communities and Local Government",Homes England,RI - MONIITORING SURVEYOR FEES,Investment,BNP PARIBAS REAL ESTATE,01/10/2021,"1,200.00",LAR,81101500,Civil Engineering
"Ministry of Housing, Communities and Local Government",Homes England,RI - MONIITORING SURVEYOR FEES,Investment,BNP PARIBAS REAL ESTATE,01/10/2021,"1,680.00",LAR,81101500,Civil Engineering
"Ministry of Housing, Communities and Local Government",Homes England,RI - MONIITORING SURVEYOR FEES,Investment,BNP PARIBAS REAL ESTATE,01/10/2021,840.00,LAR,81101500,Civil Engineering
"Ministry of Housing, Communities and Local Government",Homes England,RI - MONIITORING SURVEYOR FEES,Investment,BNP PARIBAS REAL ESTATE,01/10/2021,840.00,LAR,81101500,Civil Engineering
"Ministry of Housing, Communities and Local Government",Homes England,RI - MONIITORING SURVEYOR FEES,Investment,BNP PARIBAS REAL ESTATE,01/10/2021,840.00,LAR,81101500,Civil Engineering
"Ministry of Housing, Communities and Local Government",Homes England,RI - MONIITORING SURVEYOR FEES,Investment,BNP PARIBAS REAL ESTATE,01/10/2021,840.00,LAR,81101500,Civil Engineering
"Ministry of Housing, Communities and Local Government",Homes England,RI - MONIITORING SURVEYOR FEES,Investment,BNP PARIBAS REAL ESTATE,01/10/2021,840.00,LAR,81101500,Civil Engineering
"Ministry of Housing, Communities and Local Government",Homes England,RI - MONIITORING SURVEYOR FEES,Development,BNP PARIBAS REAL ESTATE,01/10/2021,780.00,LAR,81101500,Civil Engineering
"Ministry of Housing, Communities and Local Government",Homes England,RI - MONIITORING SURVEYOR FEES,Investment,BNP PARIBAS REAL ESTATE,01/10/2021,780.00,LAR,81101500,Civil Engineering
"Ministry of Housing, Communities and Local Government",Homes England,RI - MONIITORING SURVEYOR FEES,Investment,BNP PARIBAS REAL ESTATE,01/10/2021,"1,080.00",LAR,81101500,Civil Engineering
"Ministry of Housing, Communities and Local Government",Homes England,RI - MONIITORING SURVEYOR FEES,Investment,BNP PARIBAS REAL ESTATE,01/10/2021,960.00,LAR,81101500,Civil Engineering
"Ministry of Housing, Communities and Local Government",Homes England,PROF FEES LOANS CAPITALISED,Investment,BNP PARIBAS REAL ESTATE,01/10/2021,"1,080.00",LAR,81101500,Civil Engineering
"Ministry of Housing, Communities and Local Government",Homes England,RI - MONIITORING SURVEYOR FEES,Investment,BNP PARIBAS REAL ESTATE,01/10/2021,"1,020.00",LAR,81101500,Civil Engineering
"Ministry of Housing, Communities and Local Government",Homes England,RI - MONIITORING SURVEYOR FEES,Investment,BNP PARIBAS REAL ESTATE,01/10/2021,"1,020.00",LAR,81101500,Civil Engineering
"Ministry of Housing, Communities and Local Government",Homes England,RI - MONIITORING SURVEYOR FEES,Investment,BNP PARIBAS REAL ESTATE,01/10/2021,"1,020.00",LAR,81101500,Civil Engineering
"Ministry of Housing, Communities and Local Government",Homes England,RI - MONIITORING SURVEYOR FEES,Investment,BNP PARIBAS REAL ESTATE,01/10/2021,"1,020.00",LAR,81101500,Civil Engineering
"Ministry of Housing, Communities and Local Government",Homes England,RI - MONIITORING SURVEYOR FEES,Investment,BNP PARIBAS REAL ESTATE,04/10/2021,840.00,LAR,81101500,Civil Engineering
"Ministry of Housing, Communities and Local Government",Homes England,DISPOSAL FEES - PROPERTY AGENT,Development,BNP PARIBAS REAL ESTATE,05/10/2021,"15,528.00",LAR,80131600,Sale of property and building
"Ministry of Housing, Communities and Local Government",Homes England,RI - MONIITORING SURVEYOR FEES,Investment,BNP PARIBAS REAL ESTATE,06/10/2021,"1,020.00",LAR,81101500,Civil Engineering
"Ministry of Housing, Communities and Local Government",Homes England,VALUATION FEES,Development,BNP PARIBAS REAL ESTATE,11/10/2021,"3,600.00",LAR,80131800,Real estate management services
"Ministry of Housing, Communities and Local Government",Homes England,RI - MONIITORING SURVEYOR FEES,Investment,BNP PARIBAS REAL ESTATE,14/10/2021,"1,020.00",LAR,81101500,Civil Engineering
"Ministry of Housing, Communities and Local Government",Homes England,RI - MONIITORING SURVEYOR FEES,Investment,BNP PARIBAS REAL ESTATE,14/10/2021,840.00,LAR,81101500,Civil Engineering
"Ministry of Housing, Communities and Local Government",Homes England,RI - MONIITORING SURVEYOR FEES,Investment,BNP PARIBAS REAL ESTATE,14/10/2021,840.00,LAR,81101500,Civil Engineering
"Ministry of Housing, Communities and Local Government",Homes England,RI - MONIITORING SURVEYOR FEES,Investment,BNP PARIBAS REAL ESTATE,21/10/2021,780.00,LAR,81101500,Civil Engineering
"Ministry of Housing, Communities and Local Government",Homes England,RI - MONIITORING SURVEYOR FEES,Investment,BNP PARIBAS REAL ESTATE,21/10/2021,720.00,LAR,81101500,Civil Engineering
"Ministry of Housing, Communities and Local Government",Homes England,RI - MONIITORING SURVEYOR FEES,Investment,BNP PARIBAS REAL ESTATE,21/10/2021,"1,050.00",LAR,81101500,Civil Engineering
"Ministry of Housing, Communities and Local Government",Homes England,RI - MONIITORING SURVEYOR FEES,Investment,BNP PARIBAS REAL ESTATE,25/10/2021,"1,020.00",LAR,81101500,Civil Engineering
"Ministry of Housing, Communities and Local Government",Homes England,RI - MONIITORING SURVEYOR FEES,Investment,BNP PARIBAS REAL ESTATE,25/10/2021,"1,020.00",LAR,81101500,Civil Engineering
"Ministry of Housing, Communities and Local Government",Homes England,LANDSCAPE MAINT-BUILT ESTATE,Development,BROOKFIELD CONTRACTING & FARMING LTD,22/10/2021,286.99,SMA,72102900,Facility maintenance and repair services
"Ministry of Housing, Communities and Local Government",Homes England,ESTATE GENERAL MAINTENANCE,Development,BROOKFIELD CONTRACTING & FARMING LTD,25/10/2021,"1,200.00",SMA,72101500,Building maintenance and repair services
"Ministry of Housing, Communities and Local Government",Homes England,ESTATE GENERAL MAINTENANCE,Development,BROOKFIELD CONTRACTING & FARMING LTD,25/10/2021,"10,238.64",SMA,72101500,Building maintenance and repair services
"Ministry of Housing, Communities and Local Government",Homes England,LEGAL FEES (PROGRAMME - RDEL),Investment,BOND DICKINSON LLP,11/10/2021,"12,814.20",LAR,80121600,Business law services
"Ministry of Housing, Communities and Local Government",Homes England,LEGAL FEES (PROGRAMME - RDEL),Investment,BOND DICKINSON LLP,11/10/2021,"6,327.60",LAR,80121600,Business law services
"Ministry of Housing, Communities and Local Government",Homes England,DISPOSAL FEES - LEGAL,"Markets, Partners & Places",BOND DICKINSON LLP,18/10/2021,"2,925.60",LAR,80121600,Business law services
"Ministry of Housing, Communities and Local Government",Homes England,CONTRACT WORKS,Development,BRITISH TELECOM - OPENREACH,20/10/2021,"36,054.92",LAR,72103300,Infrastructure maintenance and repair services
"Ministry of Housing, Communities and Local Government",Homes England,ESTATE GENERAL MAINTENANCE,Development,G BURLEY & SONS LTD,01/10/2021,419.42,LAR,72101500,Building maintenance and repair services
"Ministry of Housing, Communities and Local Government",Homes England,ESTATE GENERAL MAINTENANCE,Development,G BURLEY & SONS LTD,14/10/2021,308.90,LAR,72101500,Building maintenance and repair services
"Ministry of Housing, Communities and Local Government",Homes England,ESTATE GENERAL MAINTENANCE,Development,G BURLEY & SONS LTD,20/10/2021,631.10,LAR,72101500,Building maintenance and repair services
"Ministry of Housing, Communities and Local Government",Homes England,ESTATE GENERAL MAINTENANCE,"Markets, Partners & Places",G BURLEY & SONS LTD,22/10/2021,375.94,LAR,72101500,Building maintenance and repair services
"Ministry of Housing, Communities and Local Government",Homes England,MANAGEMENT COSTS,Development,BERRYS,05/10/2021,"4,600.00",MED,80131800,Real estate management services
"Ministry of Housing, Communities and Local Government",Homes England,DISPOSAL FEES - PROPERTY AGENT,Development,BERRYS,12/10/2021,540.00,MED,80131600,Sale of property and building
"Ministry of Housing, Communities and Local Government",Homes England,CAP GRNTS TO PRIVATE SECTOR,Investment,RENDALL & RITTNER LTD,04/10/2021,"4,400,097.19",LAR,None,Grants
"Ministry of Housing, Communities and Local Government",Homes England,CAP GRNTS TO PRIVATE SECTOR,Investment,REVOLUTION PROPERTY MANAGEMENT LTD,06/10/2021,"1,060,907.70",SMA,None,Grants
"Ministry of Housing, Communities and Local Government",Homes England,CAP GRNTS PUB SECTOR EXCL L A,Investment,RESIDENTIAL MANAGEMENT GROUP LTD,15/10/2021,"267,107.97",LAR,None,Grants
"Ministry of Housing, Communities and Local Government",Homes England,CAP GRNTS TO PRIVATE SECTOR,Investment,REVOLUTION PROPERTY MANAGEMENT LTD,14/10/2021,"904,558.64",SMA,None,Grants
"Ministry of Housing, Communities and Local Government",Homes England,CAP GRNTS TO PRIVATE SECTOR,Investment,MARCONI HOUSE RTM COMPANY LIMITED,01/10/2021,"188,696.71",SMA,None,Grants
"Ministry of Housing, Communities and Local Government",Homes England,CAP GRNTS TO PRIVATE SECTOR,Investment,WEST POINT LEEDS MANAGEMENT COMPANY LTD,08/10/2021,"824,360.00",MIC,None,Grants
"Ministry of Housing, Communities and Local Government",Homes England,CAP GRNTS TO PRIVATE SECTOR,Investment,CHATHAM SQUARE MANAGEMENT CO LIMITED,20/10/2021,"2,423,078.35",MIC,None,Grants
"Ministry of Housing, Communities and Local Government",Homes England,CAP GRNTS PUB SECTOR EXCL L A,Investment,RMG,13/10/2021,"1,286,122.63",LAR,None,Grants
"Ministry of Housing, Communities and Local Government",Homes England,CAP GRNTS TO PRIVATE SECTOR,Investment,DEVONSHIRE COURT (EASTBOURNE) MANAGEMENT LTD,25/10/2021,"5,131,138.98",MIC,None,Grants
"Ministry of Housing, Communities and Local Government",Homes England,CAP GRNTS TO PRIVATE SECTOR,Investment,VALLEY FOX LTD T/A WHITEGATES (BRADFORD),25/10/2021,"1,244,233.34",MIC,None,Grants
"Ministry of Housing, Communities and Local Government",Homes England,CAP GRNTS TO PRIVATE SECTOR,Investment,CITISPACE SERVICES LIMITED,15/10/2021,"1,579,982.30",MIC,None,Grants
"Ministry of Housing, Communities and Local Government",Homes England,CAP GRNTS TO PRIVATE SECTOR,Investment,SDL PROPERTY MANAGEMENT LIMITED,07/10/2021,"175,288.00",MED,None,Grants
"Ministry of Housing, Communities and Local Government",Homes England,CAP GRNTS TO PRIVATE SECTOR,Investment,JUPITER (PHASE 1) MANAGEMENT COMPANY LIMITED,06/10/2021,"91,660.00",MIC,None,Grants
"Ministry of Housing, Communities and Local Government",Homes England,CAP GRNTS TO PRIVATE SECTOR,Investment,FIRSTPORT PROPERTY SERVICES LIMITED,15/10/2021,"262,878.00",LAR,None,Grants
"Ministry of Housing, Communities and Local Government",Homes England,CAP GRNTS TO PRIVATE SECTOR,Investment,FIRSTPORT PROPERTY SERVICES LIMITED,15/10/2021,"145,738.00",LAR,None,Grants
"Ministry of Housing, Communities and Local Government",Homes England,PLANNING APPLICATIONS,"Markets, Partners & Places",CAMPBELL REITH,01/10/2021,"4,567.56",MED,80131800,Real estate management services
"Ministry of Housing, Communities and Local Government",Homes England,MISC PROFESSIONAL FEES,"Markets, Partners & Places",CAMPBELL REITH,08/10/2021,"3,354.00",MED,72101500,Building maintenance and repair services
"Ministry of Housing, Communities and Local Government",Homes England,MISC PROFESSIONAL FEES,"Markets, Partners & Places",CAMPBELL REITH,08/10/2021,"2,064.00",MED,72101500,Building maintenance and repair services
"Ministry of Housing, Communities and Local Government",Homes England,MASTERPLANNING FEES,"Markets, Partners & Places",CAMPBELL REITH,11/10/2021,"5,118.42",MED,81101500,Civil Engineering
"Ministry of Housing, Communities and Local Government",Homes England,OTHER PROFESSIONAL FEES,"Markets, Partners & Places",CAMPBELL REITH,11/10/2021,"9,483.76",MED,80131800,Real estate management services
"Ministry of Housing, Communities and Local Government",Homes England,PROF FEES LOANS CAPITALISED,Investment,CAMPBELL REITH,12/10/2021,"3,600.00",MED,81101500,Civil Engineering
"Ministry of Housing, Communities and Local Government",Homes England,PROF FEES LOANS CAPITALISED,Investment,CAMPBELL REITH,12/10/2021,"1,320.00",MED,81101500,Civil Engineering
"Ministry of Housing, Communities and Local Government",Homes England,ENGINEERING CONSULTANTS,Development,CAMPBELL REITH,12/10/2021,"89,922.07",MED,81101500,Civil Engineering
"Ministry of Housing, Communities and Local Government",Homes England,MISC PROFESSIONAL FEES,"Markets, Partners & Places",CAMPBELL REITH,12/10/2021,900.00,MED,72101500,Building maintenance and repair services
"Ministry of Housing, Communities and Local Government",Homes England,RI - MONIITORING SURVEYOR FEES,Investment,CAMPBELL REITH,12/10/2021,"1,320.00",MED,81101500,Civil Engineering
"Ministry of Housing, Communities and Local Government",Homes England,ENGINEERING CONSULTANTS,Development,CAMPBELL REITH,13/10/2021,"13,168.80",MED,81101500,Civil Engineering
"Ministry of Housing, Communities and Local Government",Homes England,MASTERPLANNING FEES,Development,CAMPBELL REITH,13/10/2021,"5,430.00",MED,81101500,Civil Engineering
"Ministry of Housing, Communities and Local Government",Homes England,PLANNING APPLICATIONS,Development,CAMPBELL REITH,20/10/2021,"2,580.00",MED,80131800,Real estate management services
"Ministry of Housing, Communities and Local Government",Homes England,OTHER PROFESSIONAL FEES,"Markets, Partners & Places",CAMPBELL REITH,22/10/2021,"4,788.00",MED,80131800,Real estate management services
"Ministry of Housing, Communities and Local Government",Homes England,ENGINEERING FEES,Development,CAMPBELL REITH,22/10/2021,"9,671.30",MED,81101500,Civil Engineering
"Ministry of Housing, Communities and Local Government",Homes England,ENGINEERING CONSULTANTS,Development,CAMPBELL REITH,22/10/2021,"4,629.60",MED,81101500,Civil Engineering
"Ministry of Housing, Communities and Local Government",Homes England,RI - MONIITORING SURVEYOR FEES,Investment,CAMPBELL REITH,28/10/2021,"1,260.00",MED,81101500,Civil Engineering
"Ministry of Housing, Communities and Local Government",Homes England,PROF FEES LOANS CAPITALISED,Investment,CAMPBELL REITH,28/10/2021,"1,302.00",MED,81101500,Civil Engineering
"Ministry of Housing, Communities and Local Government",Homes England,PROPERTY SERVICES,Development,CARTER JONAS,04/10/2021,"2,760.00",LAR,80131800,Real estate management services
"Ministry of Housing, Communities and Local Government",Homes England,VALUATION FEES,Development,CARTER JONAS,04/10/2021,"3,300.00",LAR,80131800,Real estate management services
"Ministry of Housing, Communities and Local Government",Homes England,RI - MONIITORING SURVEYOR FEES,Investment,CARTER JONAS,14/10/2021,"1,140.00",LAR,81101500,Civil Engineering
"Ministry of Housing, Communities and Local Government",Homes England,VALUATION FEES,Development,CARTER JONAS,14/10/2021,"1,980.00",LAR,80131800,Real estate management services
"Ministry of Housing, Communities and Local Government",Homes England,VALUATION FEES,Development,CARTER JONAS,29/10/2021,"4,800.00",LAR,80131800,Real estate management services
"Ministry of Housing, Communities and Local Government",Homes England,VALUATION FEES,Development,CARTER JONAS,29/10/2021,"4,800.00",LAR,80131800,Real estate management services
"Ministry of Housing, Communities and Local Government",Homes England,GAS,Development,CORONA ENERGY,15/10/2021,459.17,LAR,83101600,Oil and gas utilities
"Ministry of Housing, Communities and Local Government",Homes England,GAS,Development,CORONA ENERGY,15/10/2021,319.81,LAR,83101600,Oil and gas utilities
"Ministry of Housing, Communities and Local Government",Homes England,ST FUND LOANS ADDITIONS,Development,CHILDWALL HOMES LIMITED,11/10/2021,"59,645.52",SMA,None,Loans
"Ministry of Housing, Communities and Local Government",Homes England,ST FUND LOANS ADDITIONS,Development,CHILDWALL HOMES LIMITED,29/10/2021,"62,833.97",SMA,None,Loans
"Ministry of Housing, Communities and Local Government",Homes England,OTHER PROFESSIONAL FEES,Development,CHALLEN COMMERCIAL INVESTIGATIONS LTD,06/10/2021,586.80,LAR,80131800,Real estate management services
"Ministry of Housing, Communities and Local Government",Homes England,ST FUND LOANS ADDITIONS,Investment,CREATE DEVELOPMENTS (LONGRIDGE) LTD,05/10/2021,"395,702.00",LAR,None,Loans
"Ministry of Housing, Communities and Local Government",Homes England,DATA CENTRE,Cido,CROWN HOSTING DATA CENTRES LIMITED,11/10/2021,"1,860.00",SMA,81112000,Data Services
"Ministry of Housing, Communities and Local Government",Homes England,DATA CENTRE,Cido,CROWN HOSTING DATA CENTRES LIMITED,11/10/2021,"2,717.56",SMA,81112000,Data Services
"Ministry of Housing, Communities and Local Government",Homes England,DATA CENTRE,Cido,CROWN HOSTING DATA CENTRES LIMITED,11/10/2021,"1,222.88",SMA,81112000,Data Services
"Ministry of Housing, Communities and Local Government",Homes England,DATA CENTRE,Cido,CROWN HOSTING DATA CENTRES LIMITED,11/10/2021,660.84,SMA,81112000,Data Services
"Ministry of Housing, Communities and Local Government",Homes England,L&OD STRATEGIC - HR USE ONLY,Corporate Resources,CATH BROWN CONSULTANCY,25/10/2021,"1,320.00",SMA,86101800,In service training and manpower development
"Ministry of Housing, Communities and Local Government",Homes England,ROADS AND CAR PARKS,Development,CHAFFIN WORKS,25/10/2021,781.10,MED,72101500,Building maintenance and repair services
"Ministry of Housing, Communities and Local Government",Homes England,ROADS AND CAR PARKS,Development,CHAFFIN WORKS,25/10/2021,"1,171.66",MED,72101500,Building maintenance and repair services
"Ministry of Housing, Communities and Local Government",Homes England,ST FUND LOANS ADDITIONS,Investment,CAMPBELL HOMES DEVELOPMENTS LIMITED,21/10/2021,"151,048.00",LAR,None,Loans
"Ministry of Housing, Communities and Local Government",Homes England,ROADS AND CAR PARKS,"Markets, Partners & Places",F M CONWAY LIMITED,21/10/2021,"2,715.98",LAR,72101500,Building maintenance and repair services
"Ministry of Housing, Communities and Local Government",Homes England,ST FUND LOANS REPAYMENTS,Investment,CHIPPING HOMES LIMITED,25/10/2021,763.32,MIC,None,Loans
"Ministry of Housing, Communities and Local Government",Homes England,OTHER PROFESSIONAL FEES,"Markets, Partners & Places",THE COAL AUTHORITY,19/10/2021,"1,221.00",PUB,80131800,Real estate management services
"Ministry of Housing, Communities and Local Government",Homes England,ST FUND LOANS ADDITIONS,Investment,COURT PROPERTY HOMES LIMITED,20/10/2021,"246,090.59",MIC,None,Loans
"Ministry of Housing, Communities and Local Government",Homes England,MANAGEMENT COSTS,Development,COLLIERS INTERNATIONAL PROPERTY CONSULTANTS,04/10/2021,"8,268.66",LAR,80131800,Real estate management services
"Ministry of Housing, Communities and Local Government",Homes England,RI - MONIITORING SURVEYOR FEES,Investment,COLLIERS INTERNATIONAL PROPERTY CONSULTANTS,04/10/2021,810.00,LAR,81101500,Civil Engineering
"Ministry of Housing, Communities and Local Government",Homes England,RI - MONIITORING SURVEYOR FEES,Investment,COLLIERS INTERNATIONAL PROPERTY CONSULTANTS,05/10/2021,840.00,LAR,81101500,Civil Engineering
"Ministry of Housing, Communities and Local Government",Homes England,RI - MONIITORING SURVEYOR FEES,Investment,COLLIERS INTERNATIONAL PROPERTY CONSULTANTS,13/10/2021,"1,320.00",LAR,81101500,Civil Engineering
"Ministry of Housing, Communities and Local Government",Homes England,PROF FEES LOANS CAPITALISED,Investment,COLLIERS INTERNATIONAL PROPERTY CONSULTANTS,29/10/2021,810.00,LAR,81101500,Civil Engineering
"Ministry of Housing, Communities and Local Government",Homes England,RI - MONIITORING SURVEYOR FEES,Investment,COLLIERS INTERNATIONAL PROPERTY CONSULTANTS,29/10/2021,900.00,LAR,81101500,Civil Engineering
"Ministry of Housing, Communities and Local Government",Homes England,RI - MONIITORING SURVEYOR FEES,Investment,COLLIERS INTERNATIONAL PROPERTY CONSULTANTS,29/10/2021,840.00,LAR,81101500,Civil Engineering
"Ministry of Housing, Communities and Local Government",Homes England,LEGAL FEES (PROGRAMME - CDEL),"Markets, Partners & Places",CLARKE WILLMOTT LLP,01/10/2021,"3,486.01",LAR,80121600,Business law services
"Ministry of Housing, Communities and Local Government",Homes England,PROF FEES LOANS CAPITALISED,Investment,CLARKE WILLMOTT LLP,05/10/2021,"4,721.16",LAR,80121600,Business law services
"Ministry of Housing, Communities and Local Government",Homes England,LEGAL FEES (PROGRAMME - RDEL),Investment,CLARKE WILLMOTT LLP,05/10/2021,"3,988.80",LAR,80121600,Business law services
"Ministry of Housing, Communities and Local Government",Homes England,DISPOSAL FEES - LEGAL,"Markets, Partners & Places",CLARKE WILLMOTT LLP,14/10/2021,"5,115.60",LAR,80121600,Business law services
"Ministry of Housing, Communities and Local Government",Homes England,DISPOSAL FEES - LEGAL,"Markets, Partners & Places",CLARKE WILLMOTT LLP,14/10/2021,"2,602.87",LAR,80121600,Business law services
"Ministry of Housing, Communities and Local Government",Homes England,DISPOSAL FEES - LEGAL,"Markets, Partners & Places",CLARKE WILLMOTT LLP,14/10/2021,"3,886.20",LAR,80121600,Business law services
"Ministry of Housing, Communities and Local Government",Homes England,LEGAL FEES (ADMIN ONLY),Investment,CLARKE WILLMOTT LLP,18/10/2021,"2,400.00",LAR,80121600,Business law services
"Ministry of Housing, Communities and Local Government",Homes England,CLEANING,Development,CHURCHILL CONTRACT SERVICES LTD,07/10/2021,"4,253.89",SMA,76111500,General building and office cleaining and maintenance services
"Ministry of Housing, Communities and Local Government",Homes England,COMPUTERS - ADDITIONS,Development,CONDECO LIMITED,04/10/2021,"13,045.80",SMA,43211500,Computers
"Ministry of Housing, Communities and Local Government",Homes England,COMPUTERS - ADDITIONS,Development,CONDECO LIMITED,26/10/2021,"4,802.70",SMA,43211500,Computers
"Ministry of Housing, Communities and Local Government",Homes England,CAP GRNTS TO LOCAL AUTHORITIES,Investment,CENTRAL BEDFORDSHIRE COUNCIL,26/10/2021,"259,223.00",PUB,None,Grants
"Ministry of Housing, Communities and Local Government",Homes England,MANAGEMENT COSTS,Development,C.M.A. (NEMESIS) LTD,11/10/2021,342.00,SMA,80131800,Real estate management services
"Ministry of Housing, Communities and Local Government",Homes England,BUILDINGS-ROOF,Development,C.M.A. (NEMESIS) LTD,12/10/2021,390.00,SMA,72101500,Building maintenance and repair services
"Ministry of Housing, Communities and Local Government",Homes England,ESTATE GENERAL MAINTENANCE,Development,C.M.A. (NEMESIS) LTD,12/10/2021,369.60,SMA,72101500,Building maintenance and repair services
"Ministry of Housing, Communities and Local Government",Homes England,MANAGEMENT COSTS,Development,C.M.A. (NEMESIS) LTD,14/10/2021,342.00,SMA,80131800,Real estate management services
"Ministry of Housing, Communities and Local Government",Homes England,ESTATE GENERAL MAINTENANCE,Development,FRANK COOPER & SON LIMITED,26/10/2021,980.00,SMA,72101500,Building maintenance and repair services
"Ministry of Housing, Communities and Local Government",Homes England,TRAINING COURSES & CONFERENCES,Corporate Resources,CHARTERED INSTITUTE OF PAYROLL PROFESSIONALS,26/10/2021,"1,914.00",LAR,86101800,In service training and manpower development
"Ministry of Housing, Communities and Local Government",Homes England,OTHER PROFESSIONAL FEES,Development,CWC GROUP,22/10/2021,"354,576.01",MED,None,Contributions
"Ministry of Housing, Communities and Local Government",Homes England,BESPOKE DEVELOPMENT SUPPORT,Cido,CORPORATE PROJECT SOLUTIONS LTD (CPS),12/10/2021,"2,640.00",MED,80111600,Temporary personnel services
"Ministry of Housing, Communities and Local Government",Homes England,ROADS AND CAR PARKS,"Markets, Partners & Places",C-ELECT ASSOCIATES LIMITED,04/10/2021,831.60,SMA,72101500,Building maintenance and repair services
"Ministry of Housing, Communities and Local Government",Homes England,BUILDINGS-FIRE PREVENTION,"Markets, Partners & Places",C-ELECT ASSOCIATES LIMITED,04/10/2021,585.74,SMA,92121700,Security systems services
"Ministry of Housing, Communities and Local Government",Homes England,EXTERNAL BUILDING MAINTENANCE,Development,C-ELECT ASSOCIATES LIMITED,21/10/2021,"5,599.80",SMA,72101500,Building maintenance and repair services
"Ministry of Housing, Communities and Local Government",Homes England,STREET LIGHTING,Development,C-ELECT ASSOCIATES LIMITED,25/10/2021,280.75,SMA,83101800,Electric utilities
"Ministry of Housing, Communities and Local Government",Homes England,EXTERNAL BUILDING MAINTENANCE,"Markets, Partners & Places",C-ELECT ASSOCIATES LIMITED,27/10/2021,522.00,SMA,72101500,Building maintenance and repair services
"Ministry of Housing, Communities and Local Government",Homes England,HEALTH & SAFETY,Development,CHURCHILL SECURITY LIMITED,20/10/2021,"1,200.00",MED,72101500,Building maintenance and repair services
"Ministry of Housing, Communities and Local Government",Homes England,ST FUND LOANS ADDITIONS,Investment,CAPITAL & CENTRIC (ARCTIC) ltd,21/10/2021,"445,935.99",SMA,None,Loans
"Ministry of Housing, Communities and Local Government",Homes England,ESTATE GENERAL MAINTENANCE,Development,CONTINENTAL LANDSCAPES - GREENHAND,26/10/2021,"3,545.40",LAR,72101500,Building maintenance and repair services
"Ministry of Housing, Communities and Local Government",Homes England,ESTATE GENERAL MAINTENANCE,Development,CONTINENTAL LANDSCAPES - GREENHAND,26/10/2021,"3,525.50",LAR,72101500,Building maintenance and repair services
"Ministry of Housing, Communities and Local Government",Homes England,ST FUND LOANS ADDITIONS,Investment,CHERRY TREE DEVELOPMENTS LTD,06/10/2021,"40,007.00",SMA,None,Loans
"Ministry of Housing, Communities and Local Government",Homes England,PROF FEES LOANS CAPITALISED,Investment,CB RICHARD ELLIS,01/10/2021,"6,000.00",LAR,80131800,Real estate management services
"Ministry of Housing, Communities and Local Government",Homes England,RI - MONIITORING SURVEYOR FEES,Investment,CB RICHARD ELLIS,29/10/2021,"3,000.00",LAR,81101500,Civil Engineering
"Ministry of Housing, Communities and Local Government",Homes England,BUILDINGS-VACANT RATES,"Markets, Partners & Places",COTSWOLD DISTRICT COUNCIL,04/10/2021,"3,234.46",PUB,80131500,Lease and rental of property or building
"Ministry of Housing, Communities and Local Government",Homes England,BUILDINGS-VACANT RATES,"Markets, Partners & Places",COTSWOLD DISTRICT COUNCIL,04/10/2021,"3,223.98",PUB,80131500,Lease and rental of property or building
"Ministry of Housing, Communities and Local Government",Homes England,BUILDINGS-VACANT RATES,"Markets, Partners & Places",COTSWOLD DISTRICT COUNCIL,04/10/2021,"5,740.26",PUB,80131500,Lease and rental of property or building
"Ministry of Housing, Communities and Local Government",Homes England,BUILDINGS-VACANT RATES,"Markets, Partners & Places",COTSWOLD DISTRICT COUNCIL,04/10/2021,"5,740.26",PUB,80131500,Lease and rental of property or building
"Ministry of Housing, Communities and Local Government",Homes England,ST FUND LOANS ADDITIONS,Investment,CLEANSLATE (HURSTBOURNE PRIORS) LTD,26/10/2021,"255,387.41",LAR,None,Loans
"Ministry of Housing, Communities and Local Government",Homes England,LT FUND LOANS (PS) ADDITIONS,Investment,CAMLAND HYTHE LIMITED,25/10/2021,"177,786.19",LAR,None,Loans
"Ministry of Housing, Communities and Local Government",Homes England,OTHER PROFESSIONAL FEES,Development,CREATIVE CONCERN LTD,20/10/2021,"5,932.80",SMA,80131800,Real estate management services
"Ministry of Housing, Communities and Local Government",Homes England,CONTRIBUTIONS,Development,COUNTRYSIDE PROPERTIES (UK) LTD,18/10/2021,"78,042.76",LAR,None,Contributions
"Ministry of Housing, Communities and Local Government",Homes England,ST FUND LOANS ADDITIONS,Investment,CBH DEVELOPMENTS LTD,25/10/2021,"58,139.50",SMA,None,Loans
"Ministry of Housing, Communities and Local Government",Homes England,ROADS AND CAR PARKS,Development,CHANNEL ENGINEERING LTD,01/10/2021,540.00,SMA,72101500,Building maintenance and repair services
"Ministry of Housing, Communities and Local Government",Homes England,ROADS AND CAR PARKS,Development,CHANNEL ENGINEERING LTD,11/10/2021,"1,080.00",SMA,72101500,Building maintenance and repair services
"Ministry of Housing, Communities and Local Government",Homes England,FENCE MAINTENANCE,Development,CHANNEL ENGINEERING LTD,11/10/2021,357.60,SMA,72102900,Facility maintenance and repair services
"Ministry of Housing, Communities and Local Government",Homes England,FENCE MAINTENANCE,Development,CHANNEL ENGINEERING LTD,11/10/2021,540.00,SMA,72102900,Facility maintenance and repair services
"Ministry of Housing, Communities and Local Government",Homes England,ESTATE GENERAL MAINTENANCE,"Markets, Partners & Places",CHANNEL ENGINEERING LTD,12/10/2021,714.00,SMA,72101500,Building maintenance and repair services
"Ministry of Housing, Communities and Local Government",Homes England,ESTATE GENERAL MAINTENANCE,"Markets, Partners & Places",CHANNEL ENGINEERING LTD,12/10/2021,"1,620.00",SMA,72101500,Building maintenance and repair services
"Ministry of Housing, Communities and Local Government",Homes England,ESTATE GENERAL MAINTENANCE,Development,CHANNEL ENGINEERING LTD,14/10/2021,306.00,SMA,72101500,Building maintenance and repair services
"Ministry of Housing, Communities and Local Government",Homes England,FENCE MAINTENANCE,"Markets, Partners & Places",CHANNEL ENGINEERING LTD,15/10/2021,"2,940.00",SMA,72102900,Facility maintenance and repair services
"Ministry of Housing, Communities and Local Government",Homes England,FENCE MAINTENANCE,"Markets, Partners & Places",CHANNEL ENGINEERING LTD,15/10/2021,"4,656.00",SMA,72102900,Facility maintenance and repair services
"Ministry of Housing, Communities and Local Government",Homes England,ESTATE GENERAL MAINTENANCE,"Markets, Partners & Places",CHANNEL ENGINEERING LTD,21/10/2021,"1,920.00",SMA,72101500,Building maintenance and repair services
"Ministry of Housing, Communities and Local Government",Homes England,ESTATE GENERAL MAINTENANCE,"Markets, Partners & Places",CHANNEL ENGINEERING LTD,21/10/2021,"2,173.20",SMA,72101500,Building maintenance and repair services
"Ministry of Housing, Communities and Local Government",Homes England,ROADS AND CAR PARKS,Development,CHANNEL ENGINEERING LTD,21/10/2021,270.00,SMA,72101500,Building maintenance and repair services
"Ministry of Housing, Communities and Local Government",Homes England,FENCE MAINTENANCE,"Markets, Partners & Places",CHANNEL ENGINEERING LTD,21/10/2021,540.00,SMA,72102900,Facility maintenance and repair services
"Ministry of Housing, Communities and Local Government",Homes England,FENCE MAINTENANCE,Development,CHANNEL ENGINEERING LTD,22/10/2021,540.00,SMA,72102900,Facility maintenance and repair services
"Ministry of Housing, Communities and Local Government",Homes England,PROJECT MANAGEMENT,Development,CARTWRIGHT LANDSCAPES,26/10/2021,540.00,SMA,80101600,Project management
"Ministry of Housing, Communities and Local Government",Homes England,PLANNED PREVENTATIVE MAINT CON,Development,ENGIE FM LIMITED,01/10/2021,"2,140.63",LAR,72102900,Facility maintenance and repair services
"Ministry of Housing, Communities and Local Government",Homes England,PLANNED PREVENTATIVE MAINT CON,Development,ENGIE FM LIMITED,26/10/2021,"2,140.63",LAR,72102900,Facility maintenance and repair services
"Ministry of Housing, Communities and Local Government",Homes England,LEGAL FEES (PROGRAMME - RDEL),Development,MILLS & REEVE,01/10/2021,"3,376.80",LAR,80121600,Business law services
"Ministry of Housing, Communities and Local Government",Homes England,LEGAL FEES (PROGRAMME - RDEL),Investment,MILLS & REEVE,04/10/2021,"1,668.00",LAR,80121600,Business law services
"Ministry of Housing, Communities and Local Government",Homes England,LEGAL FEES (PROGRAMME - RDEL),Development,MILLS & REEVE,05/10/2021,332.40,LAR,80121600,Business law services
"Ministry of Housing, Communities and Local Government",Homes England,LEGAL FEES (PROGRAMME - RDEL),Development,MILLS & REEVE,05/10/2021,600.00,LAR,80121600,Business law services
"Ministry of Housing, Communities and Local Government",Homes England,LEGAL FEES (PROGRAMME - RDEL),Development,MILLS & REEVE,15/10/2021,"2,376.00",LAR,80121600,Business law services
"Ministry of Housing, Communities and Local Government",Homes England,LEGAL FEES (PROGRAMME - RDEL),Investment,MILLS & REEVE,19/10/2021,"26,778.84",LAR,80121600,Business law services
"Ministry of Housing, Communities and Local Government",Homes England,LEGAL FEES (PROGRAMME - RDEL),Development,MILLS & REEVE,27/10/2021,"2,878.80",LAR,80121600,Business law services
"Ministry of Housing, Communities and Local Government",Homes England,OTHER PROFESSIONAL FEES,"Markets, Partners & Places",TETRA TECH ENVIRONMENT PLANNING TRANSPORT LTD,06/10/2021,"4,068.00",LAR,80131800,Real estate management services
"Ministry of Housing, Communities and Local Government",Homes England,LAND REMEDIATION,Development,TETRA TECH ENVIRONMENT PLANNING TRANSPORT LTD,06/10/2021,"3,450.00",LAR,72141500,Land preparation services
"Ministry of Housing, Communities and Local Government",Homes England,ENGINEERING CONSULTANTS,Development,TETRA TECH ENVIRONMENT PLANNING TRANSPORT LTD,11/10/2021,"11,832.00",LAR,81101500,Civil Engineering
"Ministry of Housing, Communities and Local Government",Homes England,ENGINEERING CONSULTANTS,Development,TETRA TECH ENVIRONMENT PLANNING TRANSPORT LTD,11/10/2021,"2,346.00",LAR,81101500,Civil Engineering
"Ministry of Housing, Communities and Local Government",Homes England,DATA CENTRE,Cido,OASIS UK NORTH LIMITED,11/10/2021,588.18,LAR,43222600,Network service equipment
"Ministry of Housing, Communities and Local Government",Homes England,PROPERTY SERVICES,"Markets, Partners & Places",DRIVERS JONAS DELOITTE,27/10/2021,"27,636.00",LAR,80131800,Real estate management services
"Ministry of Housing, Communities and Local Government",Homes England,FENCE MAINTENANCE,Development,DB SURVEYS LTD,05/10/2021,"1,170.00",SMA,72102900,Facility maintenance and repair services
"Ministry of Housing, Communities and Local Government",Homes England,MISC PROFESSIONAL FEES,Sras,CUSHMAN & WAKEFIELD DEBENHAM TIE LEUNG,01/10/2021,"2,400.00",LAR,80161500,Management support services
"Ministry of Housing, Communities and Local Government",Homes England,MISC PROFESSIONAL FEES,"Markets, Partners & Places",CUSHMAN & WAKEFIELD DEBENHAM TIE LEUNG,04/10/2021,"1,384.96",LAR,80131800,Real estate management services
"Ministry of Housing, Communities and Local Government",Homes England,PROPERTY SERVICES,Development,CUSHMAN & WAKEFIELD DEBENHAM TIE LEUNG,04/10/2021,"1,530.00",LAR,80131800,Real estate management services
"Ministry of Housing, Communities and Local Government",Homes England,MANAGEMENT COSTS,"Markets, Partners & Places",CUSHMAN & WAKEFIELD DEBENHAM TIE LEUNG,04/10/2021,"1,896.66",LAR,80131800,Real estate management services
"Ministry of Housing, Communities and Local Government",Homes England,PROPERTY SERVICES,Development,CUSHMAN & WAKEFIELD DEBENHAM TIE LEUNG,04/10/2021,"1,725.00",LAR,80131800,Real estate management services
"Ministry of Housing, Communities and Local Government",Homes England,PROPERTY SERVICES,Development,CUSHMAN & WAKEFIELD DEBENHAM TIE LEUNG,04/10/2021,"1,530.00",LAR,80131800,Real estate management services
"Ministry of Housing, Communities and Local Government",Homes England,PROPERTY SERVICES,Development,CUSHMAN & WAKEFIELD DEBENHAM TIE LEUNG,04/10/2021,"1,680.00",LAR,80131800,Real estate management services
"Ministry of Housing, Communities and Local Government",Homes England,PROPERTY SERVICES,"Markets, Partners & Places",CUSHMAN & WAKEFIELD DEBENHAM TIE LEUNG,04/10/2021,"2,375.40",LAR,80131800,Real estate management services
"Ministry of Housing, Communities and Local Government",Homes England,PROPERTY SERVICES,"Markets, Partners & Places",CUSHMAN & WAKEFIELD DEBENHAM TIE LEUNG,04/10/2021,"2,829.18",LAR,80131800,Real estate management services
"Ministry of Housing, Communities and Local Government",Homes England,MANAGEMENT COSTS,Development,CUSHMAN & WAKEFIELD DEBENHAM TIE LEUNG,04/10/2021,"1,422.49",LAR,80131800,Real estate management services
"Ministry of Housing, Communities and Local Government",Homes England,PROPERTY SERVICES,Development,CUSHMAN & WAKEFIELD DEBENHAM TIE LEUNG,04/10/2021,"1,738.61",LAR,80131800,Real estate management services
"Ministry of Housing, Communities and Local Government",Homes England,PROPERTY SERVICES,"Markets, Partners & Places",CUSHMAN & WAKEFIELD DEBENHAM TIE LEUNG,04/10/2021,"2,928.02",LAR,80131800,Real estate management services
"Ministry of Housing, Communities and Local Government",Homes England,MANAGEMENT COSTS,Development,CUSHMAN & WAKEFIELD DEBENHAM TIE LEUNG,04/10/2021,"2,427.73",LAR,80131800,Real estate management services
"Ministry of Housing, Communities and Local Government",Homes England,PROPERTY SERVICES,Development,CUSHMAN & WAKEFIELD DEBENHAM TIE LEUNG,04/10/2021,"1,011.55",LAR,80131800,Real estate management services
"Ministry of Housing, Communities and Local Government",Homes England,RI - MONIITORING SURVEYOR FEES,Investment,CUSHMAN & WAKEFIELD DEBENHAM TIE LEUNG,04/10/2021,840.00,LAR,81101500,Civil Engineering
"Ministry of Housing, Communities and Local Government",Homes England,RI - MONIITORING SURVEYOR FEES,Investment,CUSHMAN & WAKEFIELD DEBENHAM TIE LEUNG,04/10/2021,840.00,LAR,81101500,Civil Engineering
"Ministry of Housing, Communities and Local Government",Homes England,RI - MONIITORING SURVEYOR FEES,Investment,CUSHMAN & WAKEFIELD DEBENHAM TIE LEUNG,04/10/2021,900.00,LAR,81101500,Civil Engineering
"Ministry of Housing, Communities and Local Government",Homes England,PROF FEES LOANS CAPITALISED,Investment,CUSHMAN & WAKEFIELD DEBENHAM TIE LEUNG,04/10/2021,900.00,LAR,81101500,Civil Engineering
"Ministry of Housing, Communities and Local Government",Homes England,RI - MONIITORING SURVEYOR FEES,Investment,CUSHMAN & WAKEFIELD DEBENHAM TIE LEUNG,04/10/2021,840.00,LAR,81101500,Civil Engineering
"Ministry of Housing, Communities and Local Government",Homes England,RI - MONIITORING SURVEYOR FEES,Investment,CUSHMAN & WAKEFIELD DEBENHAM TIE LEUNG,04/10/2021,840.00,LAR,81101500,Civil Engineering
"Ministry of Housing, Communities and Local Government",Homes England,RI - MONIITORING SURVEYOR FEES,Investment,CUSHMAN & WAKEFIELD DEBENHAM TIE LEUNG,04/10/2021,870.00,LAR,81101500,Civil Engineering
"Ministry of Housing, Communities and Local Government",Homes England,RI - MONIITORING SURVEYOR FEES,Investment,CUSHMAN & WAKEFIELD DEBENHAM TIE LEUNG,04/10/2021,"1,056.00",LAR,81101500,Civil Engineering
"Ministry of Housing, Communities and Local Government",Homes England,RI - MONIITORING SURVEYOR FEES,Investment,CUSHMAN & WAKEFIELD DEBENHAM TIE LEUNG,04/10/2021,840.00,LAR,81101500,Civil Engineering
"Ministry of Housing, Communities and Local Government",Homes England,RI - MONIITORING SURVEYOR FEES,Investment,CUSHMAN & WAKEFIELD DEBENHAM TIE LEUNG,04/10/2021,"1,200.00",LAR,81101500,Civil Engineering
"Ministry of Housing, Communities and Local Government",Homes England,RI - MONIITORING SURVEYOR FEES,Investment,CUSHMAN & WAKEFIELD DEBENHAM TIE LEUNG,04/10/2021,840.00,LAR,81101500,Civil Engineering
"Ministry of Housing, Communities and Local Government",Homes England,MISC PROFESSIONAL FEES,Investment,CUSHMAN & WAKEFIELD DEBENHAM TIE LEUNG,05/10/2021,"8,009.16",LAR,80131800,Real estate management services
"Ministry of Housing, Communities and Local Government",Homes England,RI - MONIITORING SURVEYOR FEES,Investment,CUSHMAN & WAKEFIELD DEBENHAM TIE LEUNG,05/10/2021,"1,020.00",LAR,81101500,Civil Engineering
"Ministry of Housing, Communities and Local Government",Homes England,RI - MONIITORING SURVEYOR FEES,Investment,CUSHMAN & WAKEFIELD DEBENHAM TIE LEUNG,05/10/2021,"1,020.00",LAR,81101500,Civil Engineering
"Ministry of Housing, Communities and Local Government",Homes England,RI - MONIITORING SURVEYOR FEES,Investment,CUSHMAN & WAKEFIELD DEBENHAM TIE LEUNG,05/10/2021,900.00,LAR,81101500,Civil Engineering
"Ministry of Housing, Communities and Local Government",Homes England,MISC PROFESSIONAL FEES,Investment,CUSHMAN & WAKEFIELD DEBENHAM TIE LEUNG,05/10/2021,"7,869.84",LAR,80131800,Real estate management services
"Ministry of Housing, Communities and Local Government",Homes England,RI - MONIITORING SURVEYOR FEES,Investment,CUSHMAN & WAKEFIELD DEBENHAM TIE LEUNG,05/10/2021,960.00,LAR,81101500,Civil Engineering
"Ministry of Housing, Communities and Local Government",Homes England,PROPERTY SERVICES,"Markets, Partners & Places",CUSHMAN & WAKEFIELD DEBENHAM TIE LEUNG,06/10/2021,"1,020.00",LAR,80131800,Real estate management services
"Ministry of Housing, Communities and Local Government",Homes England,MISC PROFESSIONAL FEES,Investment,CUSHMAN & WAKEFIELD DEBENHAM TIE LEUNG,07/10/2021,"5,913.60",LAR,80131800,Real estate management services
"Ministry of Housing, Communities and Local Government",Homes England,RI - MONIITORING SURVEYOR FEES,Investment,CUSHMAN & WAKEFIELD DEBENHAM TIE LEUNG,07/10/2021,960.00,LAR,81101500,Civil Engineering
"Ministry of Housing, Communities and Local Government",Homes England,PROPERTY SERVICES,Development,CUSHMAN & WAKEFIELD DEBENHAM TIE LEUNG,11/10/2021,790.27,LAR,80131800,Real estate management services
"Ministry of Housing, Communities and Local Government",Homes England,PROPERTY SERVICES,Development,CUSHMAN & WAKEFIELD DEBENHAM TIE LEUNG,11/10/2021,"2,025.00",LAR,80131800,Real estate management services
"Ministry of Housing, Communities and Local Government",Homes England,PROPERTY SERVICES,Development,CUSHMAN & WAKEFIELD DEBENHAM TIE LEUNG,11/10/2021,"1,725.00",LAR,80131800,Real estate management services
"Ministry of Housing, Communities and Local Government",Homes England,PROPERTY SERVICES,Development,CUSHMAN & WAKEFIELD DEBENHAM TIE LEUNG,11/10/2021,"1,725.00",LAR,80131800,Real estate management services
"Ministry of Housing, Communities and Local Government",Homes England,PROPERTY SERVICES,Development,CUSHMAN & WAKEFIELD DEBENHAM TIE LEUNG,11/10/2021,"1,725.00",LAR,80131800,Real estate management services
"Ministry of Housing, Communities and Local Government",Homes England,PROPERTY SERVICES,Development,CUSHMAN & WAKEFIELD DEBENHAM TIE LEUNG,11/10/2021,"5,324.48",LAR,80131800,Real estate management services
"Ministry of Housing, Communities and Local Government",Homes England,PROPERTY SERVICES,Development,CUSHMAN & WAKEFIELD DEBENHAM TIE LEUNG,11/10/2021,948.34,LAR,80131800,Real estate management services
"Ministry of Housing, Communities and Local Government",Homes England,PROPERTY SERVICES,"Markets, Partners & Places",CUSHMAN & WAKEFIELD DEBENHAM TIE LEUNG,11/10/2021,"1,580.56",LAR,80131800,Real estate management services
"Ministry of Housing, Communities and Local Government",Homes England,PROPERTY SERVICES,Development,CUSHMAN & WAKEFIELD DEBENHAM TIE LEUNG,11/10/2021,"3,536.26",LAR,80131800,Real estate management services
"Ministry of Housing, Communities and Local Government",Homes England,PROPERTY SERVICES,"Markets, Partners & Places",CUSHMAN & WAKEFIELD DEBENHAM TIE LEUNG,11/10/2021,"1,264.44",LAR,80131800,Real estate management services
"Ministry of Housing, Communities and Local Government",Homes England,PROPERTY SERVICES,Development,CUSHMAN & WAKEFIELD DEBENHAM TIE LEUNG,11/10/2021,869.30,LAR,80131800,Real estate management services
"Ministry of Housing, Communities and Local Government",Homes England,PROPERTY SERVICES,Development,CUSHMAN & WAKEFIELD DEBENHAM TIE LEUNG,11/10/2021,"1,058.96",LAR,80131800,Real estate management services
"Ministry of Housing, Communities and Local Government",Homes England,PROPERTY SERVICES,Development,CUSHMAN & WAKEFIELD DEBENHAM TIE LEUNG,11/10/2021,"2,449.85",LAR,80131800,Real estate management services
"Ministry of Housing, Communities and Local Government",Homes England,PROPERTY SERVICES,Development,CUSHMAN & WAKEFIELD DEBENHAM TIE LEUNG,11/10/2021,869.30,LAR,80131800,Real estate management services
"Ministry of Housing, Communities and Local Government",Homes England,PROPERTY SERVICES,Development,CUSHMAN & WAKEFIELD DEBENHAM TIE LEUNG,11/10/2021,"2,925.00",LAR,80131800,Real estate management services
"Ministry of Housing, Communities and Local Government",Homes England,PROPERTY SERVICES,Development,CUSHMAN & WAKEFIELD DEBENHAM TIE LEUNG,11/10/2021,"1,725.00",LAR,80131800,Real estate management services
"Ministry of Housing, Communities and Local Government",Homes England,RI - MONIITORING SURVEYOR FEES,Investment,CUSHMAN & WAKEFIELD DEBENHAM TIE LEUNG,14/10/2021,"1,020.00",LAR,81101500,Civil Engineering
"Ministry of Housing, Communities and Local Government",Homes England,ECONOMIC CONSULTANCY PANEL,Development,CUSHMAN & WAKEFIELD DEBENHAM TIE LEUNG,26/10/2021,"2,625.00",LAR,80131800,Real estate management services
"Ministry of Housing, Communities and Local Government",Homes England,ECONOMIC CONSULTANCY PANEL,Development,CUSHMAN & WAKEFIELD DEBENHAM TIE LEUNG,26/10/2021,"2,625.00",LAR,80131800,Real estate management services
"Ministry of Housing, Communities and Local Government",Homes England,LANDSCAPING & PLANTS,Development,DEEDMAN TROPICAL PLANT HIRE COMPANY,29/10/2021,449.28,SMA,10161600,Floral plants
"Ministry of Housing, Communities and Local Government",Homes England,LANDSCAPING & PLANTS,Development,DEEDMAN TROPICAL PLANT HIRE COMPANY,29/10/2021,327.60,SMA,10161600,Floral plants
"Ministry of Housing, Communities and Local Government",Homes England,MISC PROFESSIONAL FEES,Investment,DARWIN PRESS,15/10/2021,896.40,SMA,14111800,Business use papers
"Ministry of Housing, Communities and Local Government",Homes England,MISC PROFESSIONAL FEES,Investment,DARWIN PRESS,15/10/2021,"4,710.00",SMA,14111800,Business use papers
"Ministry of Housing, Communities and Local Government",Homes England,MISC PROFESSIONAL FEES,Investment,DARWIN PRESS,15/10/2021,872.40,SMA,14111800,Business use papers
"Ministry of Housing, Communities and Local Government",Homes England,MISC PROFESSIONAL FEES,Investment,DARWIN PRESS,15/10/2021,338.40,SMA,14111800,Business use papers
"Ministry of Housing, Communities and Local Government",Homes England,TRAINING COURSES & CONFERENCES,Development,DESIGN FOR HOMES,12/10/2021,"12,000.00",SMA,86101800,In service training and manpower development
"Ministry of Housing, Communities and Local Government",Homes England,MISC PROFESSIONAL FEES,Corporate Resources,DELOITTE MCS LTD,29/10/2021,"85,402.80",LAR,80101500,Business and corporate management consultation services
"Ministry of Housing, Communities and Local Government",Homes England,LEGAL FEES (PROGRAMME - RDEL),Development,DWF LLP,27/10/2021,"6,300.00",LAR,80121600,Business law services
"Ministry of Housing, Communities and Local Government",Homes England,LEGAL FEES (PROGRAMME - CDEL),"Markets, Partners & Places",DWF LLP,29/10/2021,300.00,LAR,80121600,Business law services
"Ministry of Housing, Communities and Local Government",Homes England,ST FUND LOANS ADDITIONS,Investment,DURLEY ROAD DEVELOPMENTS LLP,12/10/2021,"464,000.00",SMA,None,Loans
"Ministry of Housing, Communities and Local Government",Homes England,TAXIS,Development,DEAN TAXI LIMITED,06/10/2021,420.20,SMA,78111800,Passenger road transportation
"Ministry of Housing, Communities and Local Government",Homes England,TAXIS,Development,DEAN TAXI LIMITED,11/10/2021,"1,152.80",SMA,78111800,Passenger road transportation
"Ministry of Housing, Communities and Local Government",Homes England,ESTATE GENERAL MAINTENANCE,Development,DR TREE SURGEONS,19/10/2021,360.00,SMA,72101500,Building maintenance and repair services
"Ministry of Housing, Communities and Local Government",Homes England,EXTERNAL BUILDING MAINTENANCE,"Markets, Partners & Places",THE WATT GROUP (NORTH EAST) LTD,28/10/2021,"1,920.00",SMA,72101500,Building maintenance and repair services
"Ministry of Housing, Communities and Local Government",Homes England,EXTERNAL BUILDING MAINTENANCE,"Markets, Partners & Places",THE WATT GROUP (NORTH EAST) LTD,28/10/2021,"3,924.00",SMA,72101500,Building maintenance and repair services
"Ministry of Housing, Communities and Local Government",Homes England,CAP GRNTS TO LOCAL AUTHORITIES,Investment,DERBY CITY COUNCIL,22/10/2021,"27,767.34",PUB,None,Grants
"Ministry of Housing, Communities and Local Government",Homes England,MISC PROFESSIONAL FEES,Development,DEE ATKINSON & HARRISON,21/10/2021,"1,080.00",SMA,80131800,Real estate management services
"Ministry of Housing, Communities and Local Government",Homes England,COST OF ACQUISITION,"Markets, Partners & Places",DRIVER & VEHICLE STANDARDS AGENCY,26/10/2021,"4,000,000.00",PUB,None,Acquisition
"Ministry of Housing, Communities and Local Government",Homes England,DRAINS & SEWERS,Development,DRAINAGE INVESTIGATION SOLUTIONS NW LTD,29/10/2021,390.00,SMA,72101500,Building maintenance and repair services
"Ministry of Housing, Communities and Local Government",Homes England,OTHER PROFESSIONAL FEES,Development,DM SAFETY & HEALTH SERVICES LIMITED,06/10/2021,"1,370.40",SMA,80131800,Real estate management services
"Ministry of Housing, Communities and Local Government",Homes England,TRAINING COURSES & CONFERENCES,Development,DEBRETTS LIMITED,01/10/2021,"1,440.00",SMA,86101800,In service training and manpower development
"Ministry of Housing, Communities and Local Government",Homes England,ESTATE GENERAL MAINTENANCE,Development,DONCASTER METROPOLITAN BOROUGH COUNCIL,19/10/2021,521.27,PUB,72101500,Building maintenance and repair services
"Ministry of Housing, Communities and Local Government",Homes England,LEGAL FEES (PROGRAMME - RDEL),Development,DWF LAW LLP,04/10/2021,"7,697.30",LAR,80121600,Business law services
"Ministry of Housing, Communities and Local Government",Homes England,DISPOSAL FEES - LEGAL,"Markets, Partners & Places",DWF LAW LLP,06/10/2021,840.00,LAR,80121600,Business law services
"Ministry of Housing, Communities and Local Government",Homes England,DISPOSAL FEES - LEGAL,"Markets, Partners & Places",DWF LAW LLP,06/10/2021,"6,036.66",LAR,80121600,Business law services
"Ministry of Housing, Communities and Local Government",Homes England,LEGAL FEES (PROGRAMME - RDEL),Investment,DWF LAW LLP,11/10/2021,"10,080.00",LAR,80121600,Business law services
"Ministry of Housing, Communities and Local Government",Homes England,LEGAL FEES (PROGRAMME - RDEL),Investment,DWF LAW LLP,11/10/2021,"10,020.00",LAR,80121600,Business law services
"Ministry of Housing, Communities and Local Government",Homes England,DISPOSAL FEES - LEGAL,Development,DWF LAW LLP,11/10/2021,"1,500.00",LAR,80121600,Business law services
"Ministry of Housing, Communities and Local Government",Homes England,DISPOSAL FEES - LEGAL,"Markets, Partners & Places",DWF LAW LLP,11/10/2021,"1,315.80",LAR,80121600,Business law services
"Ministry of Housing, Communities and Local Government",Homes England,DISPOSAL FEES - LEGAL,Development,DWF LAW LLP,11/10/2021,"4,470.00",LAR,80121600,Business law services
"Ministry of Housing, Communities and Local Government",Homes England,DISPOSAL FEES - LEGAL,Development,DWF LAW LLP,12/10/2021,399.60,LAR,80121600,Business law services
"Ministry of Housing, Communities and Local Government",Homes England,DISPOSAL FEES - LEGAL,Development,DWF LAW LLP,12/10/2021,"5,833.80",LAR,80121600,Business law services
"Ministry of Housing, Communities and Local Government",Homes England,PROF FEES LOANS CAPITALISED,Investment,DWF LAW LLP,13/10/2021,"11,049.90",LAR,80121600,Business law services
"Ministry of Housing, Communities and Local Government",Homes England,LEGAL FEES (PROGRAMME - CDEL),Development,DWF LAW LLP,15/10/2021,"2,137.20",LAR,80121600,Business law services
"Ministry of Housing, Communities and Local Government",Homes England,LEGAL FEES (PROGRAMME - RDEL),Development,DWF LAW LLP,15/10/2021,655.92,LAR,80121600,Business law services
"Ministry of Housing, Communities and Local Government",Homes England,DISPOSAL FEES - LEGAL,Development,DWF LAW LLP,22/10/2021,"1,557.12",LAR,80121600,Business law services
"Ministry of Housing, Communities and Local Government",Homes England,LEGAL FEES (PROGRAMME - RDEL),Development,DWF LAW LLP,25/10/2021,313.56,LAR,80121600,Business law services
"Ministry of Housing, Communities and Local Government",Homes England,AGENCY STAFF,Investment,DWF LAW LLP,26/10/2021,600.00,LAR,80111600,Temporary personnel services
"Ministry of Housing, Communities and Local Government",Homes England,LEGAL FEES (ADMIN ONLY),Cido,DWF LAW LLP,26/10/2021,600.00,LAR,80121600,Business law services
"Ministry of Housing, Communities and Local Government",Homes England,LEGAL FEES (ADMIN ONLY),Cido,DWF LAW LLP,26/10/2021,600.00,LAR,80121600,Business law services
"Ministry of Housing, Communities and Local Government",Homes England,LEGAL FEES (ADMIN ONLY),Cido,DWF LAW LLP,26/10/2021,600.00,LAR,80121600,Business law services
"Ministry of Housing, Communities and Local Government",Homes England,AGENCY STAFF,Investment,DWF LAW LLP,26/10/2021,600.00,LAR,80111600,Temporary personnel services
"Ministry of Housing, Communities and Local Government",Homes England,AGENCY STAFF,Investment,DWF LAW LLP,26/10/2021,600.00,LAR,80111600,Temporary personnel services
"Ministry of Housing, Communities and Local Government",Homes England,AGENCY STAFF,Corporate Resources,DWF LAW LLP,27/10/2021,600.00,LAR,80111600,Temporary personnel services
"Ministry of Housing, Communities and Local Government",Homes England,LEGAL FEES (PROGRAMME - RDEL),Development,DWF LAW LLP,27/10/2021,"4,833.60",LAR,80121600,Business law services
"Ministry of Housing, Communities and Local Government",Homes England,AGENCY STAFF,Investment,DWF LAW LLP,28/10/2021,600.00,LAR,80111600,Temporary personnel services
"Ministry of Housing, Communities and Local Government",Homes England,OTHER PROFESSIONAL FEES,Development,DWF LAW LLP,28/10/2021,900.00,LAR,80131800,Real estate management services
"Ministry of Housing, Communities and Local Government",Homes England,ST FUND LOANS ADDITIONS,Investment,ETOPIA WILBURTON LIMITED,05/10/2021,"817,205.26",MIC,None,Loans
"Ministry of Housing, Communities and Local Government",Homes England,ST FUND LOANS ADDITIONS,Investment,ETOPIA WILBURTON LIMITED,27/10/2021,"208,476.95",MIC,None,Loans
"Ministry of Housing, Communities and Local Government",Homes England,PACKAGE MAINTENANCE & SUBSCRIP,Cido,DB GROUP LTD T/A ESUASIVE,07/10/2021,"1,377.00",SMA,43231500,Business function specific software
"Ministry of Housing, Communities and Local Government",Homes England,PACKAGE MAINTENANCE & SUBSCRIP,Cido,DB GROUP LTD T/A ESUASIVE,18/10/2021,"5,940.00",SMA,43231500,Business function specific software
"Ministry of Housing, Communities and Local Government",Homes England,MASTERPLANNING FEES,"Markets, Partners & Places",WOOD ENVIRONMENT & INFRASTRUCTURE SOLUTIONS,01/10/2021,"9,000.00",LAR,81101500,Civil Engineering
"Ministry of Housing, Communities and Local Government",Homes England,PROPERTY SERVICES,"Markets, Partners & Places",WOOD ENVIRONMENT & INFRASTRUCTURE SOLUTIONS,11/10/2021,300.00,LAR,80131800,Real estate management services
"Ministry of Housing, Communities and Local Government",Homes England,PROPERTY SERVICES,"Markets, Partners & Places",WOOD ENVIRONMENT & INFRASTRUCTURE SOLUTIONS,11/10/2021,"2,511.90",LAR,80131800,Real estate management services
"Ministry of Housing, Communities and Local Government",Homes England,PROPERTY SERVICES,"Markets, Partners & Places",WOOD ENVIRONMENT & INFRASTRUCTURE SOLUTIONS,11/10/2021,"1,824.74",LAR,80131800,Real estate management services
"Ministry of Housing, Communities and Local Government",Homes England,PROPERTY SERVICES,"Markets, Partners & Places",WOOD ENVIRONMENT & INFRASTRUCTURE SOLUTIONS,20/10/2021,"1,594.72",LAR,80131800,Real estate management services
"Ministry of Housing, Communities and Local Government",Homes England,PROPERTY SERVICES,"Markets, Partners & Places",WOOD ENVIRONMENT & INFRASTRUCTURE SOLUTIONS,20/10/2021,"4,423.84",LAR,80131800,Real estate management services
"Ministry of Housing, Communities and Local Government",Homes England,PROPERTY SERVICES,"Markets, Partners & Places",WOOD ENVIRONMENT & INFRASTRUCTURE SOLUTIONS,20/10/2021,787.80,LAR,80131800,Real estate management services
"Ministry of Housing, Communities and Local Government",Homes England,PROPERTY SERVICES,"Markets, Partners & Places",WOOD ENVIRONMENT & INFRASTRUCTURE SOLUTIONS,20/10/2021,"4,473.39",LAR,80131800,Real estate management services
"Ministry of Housing, Communities and Local Government",Homes England,MASTERPLANNING FEES,Development,WOOD ENVIRONMENT & INFRASTRUCTURE SOLUTIONS,21/10/2021,"79,200.00",LAR,81101500,Civil Engineering
"Ministry of Housing, Communities and Local Government",Homes England,PLANNING APPLICATIONS,"Markets, Partners & Places",WOOD ENVIRONMENT & INFRASTRUCTURE SOLUTIONS,28/10/2021,"25,377.60",LAR,80131800,Real estate management services
"Ministry of Housing, Communities and Local Government",Homes England,PROPERTY SERVICES,"Markets, Partners & Places",WOOD ENVIRONMENT & INFRASTRUCTURE SOLUTIONS,29/10/2021,"2,672.60",LAR,80131800,Real estate management services
"Ministry of Housing, Communities and Local Government",Homes England,PROPERTY SERVICES,"Markets, Partners & Places",WOOD ENVIRONMENT & INFRASTRUCTURE SOLUTIONS,29/10/2021,"3,106.08",LAR,80131800,Real estate management services
"Ministry of Housing, Communities and Local Government",Homes England,PROPERTY SERVICES,"Markets, Partners & Places",WOOD ENVIRONMENT & INFRASTRUCTURE SOLUTIONS,29/10/2021,"11,710.80",LAR,80131800,Real estate management services
"Ministry of Housing, Communities and Local Government",Homes England,PROPERTY SERVICES,"Markets, Partners & Places",WOOD ENVIRONMENT & INFRASTRUCTURE SOLUTIONS,29/10/2021,"6,089.58",LAR,80131800,Real estate management services
"Ministry of Housing, Communities and Local Government",Homes England,PROPERTY SERVICES,"Markets, Partners & Places",WOOD ENVIRONMENT & INFRASTRUCTURE SOLUTIONS,29/10/2021,"1,325.75",LAR,80131800,Real estate management services
"Ministry of Housing, Communities and Local Government",Homes England,PROPERTY SERVICES,"Markets, Partners & Places",WOOD ENVIRONMENT & INFRASTRUCTURE SOLUTIONS,29/10/2021,769.80,LAR,80131800,Real estate management services
"Ministry of Housing, Communities and Local Government",Homes England,PROPERTY SERVICES,"Markets, Partners & Places",WOOD ENVIRONMENT & INFRASTRUCTURE SOLUTIONS,29/10/2021,612.72,LAR,80131800,Real estate management services
"Ministry of Housing, Communities and Local Government",Homes England,PROPERTY SERVICES,"Markets, Partners & Places",WOOD ENVIRONMENT & INFRASTRUCTURE SOLUTIONS,29/10/2021,"6,821.24",LAR,80131800,Real estate management services
"Ministry of Housing, Communities and Local Government",Homes England,STAFF RECRUITMENT COSTS,Corporate Resources,ESTATES GAZETTE,01/10/2021,"2,018.40",MED,80111700,Personnel Recruitment
"Ministry of Housing, Communities and Local Government",Homes England,CAR HIRE,Development,ENTERPRISE RENT A CAR,20/10/2021,380.05,LAR,78111800,Passenger road transportation
"Ministry of Housing, Communities and Local Government",Homes England,ST FUND LOANS ADDITIONS,Investment,EAST CHALLOWS LLP,26/10/2021,"165,570.00",LAR,None,Loans
"Ministry of Housing, Communities and Local Government",Homes England,L&OD STRATEGIC - HR USE ONLY,Corporate Resources,ERNST & YOUNG,05/10/2021,"5,735.34",LAR,86101800,In service training and manpower development
"Ministry of Housing, Communities and Local Government",Homes England,L&OD STRATEGIC - HR USE ONLY,Corporate Resources,ERNST & YOUNG,11/10/2021,"1,915.20",LAR,86101800,In service training and manpower development
"Ministry of Housing, Communities and Local Government",Homes England,ENGINEERING FEES,Development,EGNIOL CONSULTING LIMITED,14/10/2021,"3,540.00",SMA,81101500,Civil Engineering
"Ministry of Housing, Communities and Local Government",Homes England,ENGINEERING FEES,Development,EGNIOL CONSULTING LIMITED,14/10/2021,"3,000.00",SMA,81101500,Civil Engineering
"Ministry of Housing, Communities and Local Government",Homes England,ENGINEERING FEES,Development,EGNIOL CONSULTING LIMITED,25/10/2021,"2,430.00",SMA,81101500,Civil Engineering
"Ministry of Housing, Communities and Local Government",Homes England,REWARD & EXCELLENCE,Corporate Resources,EDENRED (UK GROUP) LTD,05/10/2021,"1,175.00",LAR,80111500,Human resource development
"Ministry of Housing, Communities and Local Government",Homes England,ST FUND LOANS ADDITIONS,Investment,EDG IRONMONGER LTD,11/10/2021,"280,249.00",SMA,None,Loans
"Ministry of Housing, Communities and Local Government",Homes England,ST FUND LOANS ADDITIONS,Investment,EVOH PROPERTIES LIMITED,07/10/2021,"8,365.79",MIC,None,Loans
"Ministry of Housing, Communities and Local Government",Homes England,STAFF RECRUITMENT COSTS,Corporate Resources,EFINANCIAL CAREERS LTD,06/10/2021,"1,074.00",MED,80111700,Personnel Recruitment
"Ministry of Housing, Communities and Local Government",Homes England,DISPOSAL FEES - LEGAL,"Markets, Partners & Places",EVERSHEDS CLIENT ACCOUNT,01/10/2021,"6,000.00",LAR,80121600,Business law services
"Ministry of Housing, Communities and Local Government",Homes England,LEGAL FEES (PROGRAMME - RDEL),"Markets, Partners & Places",EVERSHEDS CLIENT ACCOUNT,01/10/2021,"6,099.60",LAR,80121600,Business law services
"Ministry of Housing, Communities and Local Government",Homes England,LEGAL FEES (PROGRAMME - RDEL),"Markets, Partners & Places",EVERSHEDS CLIENT ACCOUNT,07/10/2021,"21,331.20",LAR,80121600,Business law services
"Ministry of Housing, Communities and Local Government",Homes England,LEGAL FEES (PROGRAMME - RDEL),Development,EVERSHEDS CLIENT ACCOUNT,13/10/2021,"3,060.00",LAR,80121600,Business law services
"Ministry of Housing, Communities and Local Government",Homes England,LEGAL FEES (PROGRAMME - CDEL),Development,EVERSHEDS CLIENT ACCOUNT,15/10/2021,"2,376.00",LAR,80121600,Business law services
"Ministry of Housing, Communities and Local Government",Homes England,PROF FEES LOANS CAPITALISED,Investment,EVERSHEDS CLIENT ACCOUNT,19/10/2021,"147,520.80",LAR,80121600,Business law services
"Ministry of Housing, Communities and Local Government",Homes England,LEGAL FEES (PROGRAMME - RDEL),Investment,EVERSHEDS CLIENT ACCOUNT,25/10/2021,"15,000.00",LAR,80121600,Business law services
"Ministry of Housing, Communities and Local Government",Homes England,LANDSCAPE MAINT-BUILT ESTATE,Development,EA FORMBY (NW) LIMITED,19/10/2021,"1,230.00",SMA,72102900,Facility maintenance and repair services
"Ministry of Housing, Communities and Local Government",Homes England,ESTATE GENERAL MAINTENANCE,Development,EA FORMBY (NW) LIMITED,25/10/2021,720.00,SMA,72101500,Building maintenance and repair services
"Ministry of Housing, Communities and Local Government",Homes England,ST FUND LOANS ADDITIONS,Investment,ERRIS HOMES (YORKSHIRE) LIMITED,06/10/2021,"250,081.00",SMA,None,Loans
"Ministry of Housing, Communities and Local Government",Homes England,ST FUND LOANS ADDITIONS,Investment,EVAN HOMES (TOCKWITH) LTD,26/10/2021,"621,130.58",MIC,None,Loans
"Ministry of Housing, Communities and Local Government",Homes England,EXTERNAL BUILDING MAINTENANCE,Development,ELLEN GROUP FACILTIES LIMITED,11/10/2021,"6,340.80",SMA,72101500,Building maintenance and repair services
"Ministry of Housing, Communities and Local Government",Homes England,ESTATE GENERAL MAINTENANCE,Development,ECOLOGICAL LAND MANGEMENT LTD,19/10/2021,"3,048.00",SMA,72101500,Building maintenance and repair services
"Ministry of Housing, Communities and Local Government",Homes England,ST FUND LOANS ADDITIONS,Investment,EVANS MANN COMMERCIAL LTD,13/10/2021,"134,971.00",LAR,None,Loans
"Ministry of Housing, Communities and Local Government",Homes England,EXTERNAL BUILDING MAINTENANCE,"Markets, Partners & Places",EMCOR GROUP (UK) lTD,05/10/2021,"5,576.51",LAR,72101500,Building maintenance and repair services
"Ministry of Housing, Communities and Local Government",Homes England,EXTERNAL BUILDING MAINTENANCE,"Markets, Partners & Places",ENERGY ASSETS LIMITED,01/10/2021,"9,171.58",MED,72101500,Building maintenance and repair services
"Ministry of Housing, Communities and Local Government",Homes England,BUILDINGS-WATER,"Markets, Partners & Places",THE ENGLISH HERITAGE TRUST,15/10/2021,"2,254.20",LAR,83101500,Water and sewer utilities
"Ministry of Housing, Communities and Local Government",Homes England,BUILDINGS-ELECTRICITY,Development,EDF ENERGY CUST FIELD SERVICES,11/10/2021,518.40,LAR,83101800,Electric utilities
"Ministry of Housing, Communities and Local Government",Homes England,STAFF RECRUITMENT COSTS,Corporate Resources,EXPERIAN,08/10/2021,"1,948.80",LAR,80111700,Personnel Recruitment
"Ministry of Housing, Communities and Local Government",Homes England,CAP GRNTS TO LOCAL AUTHORITIES,Investment,EASTLEIGH BOROUGH COUNCIL,06/10/2021,"269,328.73",PUB,None,Grants
"Ministry of Housing, Communities and Local Government",Homes England,ST FUND LOANS ADDITIONS,Investment,EDWARDS HOMES (ST HELENS) LIMITED,18/10/2021,"282,311.10",LAR,None,Loans
"Ministry of Housing, Communities and Local Government",Homes England,TRAINING COURSES & CONFERENCES,Corporate Resources,EMERGENCE PARTNERS LTD,13/10/2021,720.00,MIC,86101800,In service training and manpower development
"Ministry of Housing, Communities and Local Government",Homes England,PROPERTY SERVICES,Development,EDDISONS COMMERCIAL LIMITED,01/10/2021,"1,620.00",MED,80131800,Real estate management services
"Ministry of Housing, Communities and Local Government",Homes England,RI - MONIITORING SURVEYOR FEES,Investment,EDDISONS COMMERCIAL LIMITED,04/10/2021,900.00,MED,81101500,Civil Engineering
"Ministry of Housing, Communities and Local Government",Homes England,PROF FEES LOANS CAPITALISED,Investment,EDDISONS COMMERCIAL LIMITED,04/10/2021,"1,800.00",MED,81101500,Civil Engineering
"Ministry of Housing, Communities and Local Government",Homes England,RI - MONIITORING SURVEYOR FEES,Investment,EDDISONS COMMERCIAL LIMITED,05/10/2021,834.00,MED,81101500,Civil Engineering
"Ministry of Housing, Communities and Local Government",Homes England,PROF FEES LOANS CAPITALISED,Investment,EDDISONS COMMERCIAL LIMITED,08/10/2021,"1,800.00",MED,81101500,Civil Engineering
"Ministry of Housing, Communities and Local Government",Homes England,RI - SITE VALUATION FEES,Investment,EDDISONS COMMERCIAL LIMITED,12/10/2021,"6,900.00",MED,80131800,Real estate management services
"Ministry of Housing, Communities and Local Government",Homes England,PROF FEES LOANS CAPITALISED,Investment,EDDISONS COMMERCIAL LIMITED,13/10/2021,"2,940.00",MED,80131800,Real estate management services
"Ministry of Housing, Communities and Local Government",Homes England,RI - MONIITORING SURVEYOR FEES,Investment,EDDISONS COMMERCIAL LIMITED,14/10/2021,870.00,MED,81101500,Civil Engineering
"Ministry of Housing, Communities and Local Government",Homes England,RI - MONIITORING SURVEYOR FEES,Investment,EDDISONS COMMERCIAL LIMITED,21/10/2021,714.00,MED,81101500,Civil Engineering
"Ministry of Housing, Communities and Local Government",Homes England,RI - MONIITORING SURVEYOR FEES,Investment,EDDISONS COMMERCIAL LIMITED,21/10/2021,780.00,MED,81101500,Civil Engineering
"Ministry of Housing, Communities and Local Government",Homes England,RI - MONIITORING SURVEYOR FEES,Investment,EDDISONS COMMERCIAL LIMITED,25/10/2021,900.00,MED,81101500,Civil Engineering
"Ministry of Housing, Communities and Local Government",Homes England,RI - MONIITORING SURVEYOR FEES,Investment,EDDISONS COMMERCIAL LIMITED,29/10/2021,834.00,MED,81101500,Civil Engineering
"Ministry of Housing, Communities and Local Government",Homes England,RI - MONIITORING SURVEYOR FEES,Investment,EDDISONS COMMERCIAL LIMITED,29/10/2021,780.00,MED,81101500,Civil Engineering
"Ministry of Housing, Communities and Local Government",Homes England,MASTERPLANNING FEES,Development,EAST HAMPSHIRE DISTRICT COUNCIL,01/10/2021,"9,305.82",PUB,81101500,Civil Engineering
"Ministry of Housing, Communities and Local Government",Homes England,MASTERPLANNING FEES,Development,EAST HAMPSHIRE DISTRICT COUNCIL,01/10/2021,"18,256.34",PUB,81101500,Civil Engineering
"Ministry of Housing, Communities and Local Government",Homes England,MASTERPLANNING FEES,Development,EAST HAMPSHIRE DISTRICT COUNCIL,01/10/2021,"3,120.00",PUB,81101500,Civil Engineering
"Ministry of Housing, Communities and Local Government",Homes England,MASTERPLANNING FEES,Development,EAST HAMPSHIRE DISTRICT COUNCIL,01/10/2021,"2,857.68",PUB,81101500,Civil Engineering
"Ministry of Housing, Communities and Local Government",Homes England,MASTERPLANNING FEES,Development,EAST HAMPSHIRE DISTRICT COUNCIL,01/10/2021,"13,200.00",PUB,81101500,Civil Engineering
"Ministry of Housing, Communities and Local Government",Homes England,MASTERPLANNING FEES,Development,EAST HAMPSHIRE DISTRICT COUNCIL,04/10/2021,782.40,PUB,81101500,Civil Engineering
"Ministry of Housing, Communities and Local Government",Homes England,PLANNING FEES,Development,EAST HAMPSHIRE DISTRICT COUNCIL,04/10/2021,714.42,PUB,80131800,Real estate management services
"Ministry of Housing, Communities and Local Government",Homes England,OTHER PROFESSIONAL FEES,"Markets, Partners & Places",EAST HAMPSHIRE DISTRICT COUNCIL,05/10/2021,"7,923.00",PUB,80131800,Real estate management services
"Ministry of Housing, Communities and Local Government",Homes England,OTHER PROFESSIONAL FEES,"Markets, Partners & Places",EAST HAMPSHIRE DISTRICT COUNCIL,05/10/2021,"51,772.04",PUB,80131800,Real estate management services
"Ministry of Housing, Communities and Local Government",Homes England,MISC PROFESSIONAL FEES,"Markets, Partners & Places",EAST HAMPSHIRE DISTRICT COUNCIL,05/10/2021,"2,148.77",PUB,80131800,Real estate management services
"Ministry of Housing, Communities and Local Government",Homes England,OTHER PROFESSIONAL FEES,"Markets, Partners & Places",EAST HAMPSHIRE DISTRICT COUNCIL,29/10/2021,"18,983.56",PUB,80131800,Real estate management services
"Ministry of Housing, Communities and Local Government",Homes England,OTHER PROFESSIONAL FEES,"Markets, Partners & Places",EAST HAMPSHIRE DISTRICT COUNCIL,29/10/2021,"10,080.00",PUB,80131800,Real estate management services
"Ministry of Housing, Communities and Local Government",Homes England,ENVIRONMENTAL ASSESMENT,"Markets, Partners & Places",AECOM LIMITED,04/10/2021,"2,380.87",LAR,77101500,Environmental auditing
"Ministry of Housing, Communities and Local Government",Homes England,ENGINEERING FEES,Development,AECOM LIMITED,14/10/2021,"4,680.00",LAR,81101500,Civil Engineering
"Ministry of Housing, Communities and Local Government",Homes England,PLANNING APPLICATIONS,"Markets, Partners & Places",AECOM LIMITED,20/10/2021,"7,289.62",LAR,80131800,Real estate management services
"Ministry of Housing, Communities and Local Government",Homes England,RI - MONIITORING SURVEYOR FEES,Investment,AECOM LIMITED,20/10/2021,"4,603.49",LAR,81101500,Civil Engineering
"Ministry of Housing, Communities and Local Government",Homes England,OTHER PROFESSIONAL FEES,Development,AECOM LIMITED,22/10/2021,"75,532.51",LAR,80131800,Real estate management services
"Ministry of Housing, Communities and Local Government",Homes England,RI - MONIITORING SURVEYOR FEES,Investment,AECOM LIMITED,27/10/2021,"3,860.84",LAR,81101500,Civil Engineering
"Ministry of Housing, Communities and Local Government",Homes England,TRAINING COURSES & CONFERENCES,Investment,FRIENDS HOUSE,18/10/2021,674.99,SMA,86101800,In service training and manpower development
"Ministry of Housing, Communities and Local Government",Homes England,TRAINING COURSES & CONFERENCES,Investment,FRIENDS HOUSE,18/10/2021,795.00,SMA,86101800,In service training and manpower development
"Ministry of Housing, Communities and Local Government",Homes England,TRAINING COURSES & CONFERENCES,Investment,FRIENDS HOUSE,18/10/2021,505.00,SMA,86101800,In service training and manpower development
"Ministry of Housing, Communities and Local Government",Homes England,MANAGEMENT COSTS,Development,FOXLEYS LTD,11/10/2021,"27,066.00",SMA,80131800,Real estate management services
"Ministry of Housing, Communities and Local Government",Homes England,ST FUND LOANS ADDITIONS,Investment,F4 DEVELOPMENTS LTD,18/10/2021,"53,054.25",MIC,None,Loans
"Ministry of Housing, Communities and Local Government",Homes England,ST FUND LOANS ADDITIONS,Investment,FP (YE CORNER) LIMITED,06/10/2021,"111,055.54",LAR,None,Loans
"Ministry of Housing, Communities and Local Government",Homes England,ST FUND LOANS ADDITIONS,Investment,FOOTSTEP LIVING DEVELOPMENTS LTD,14/10/2021,"215,499.41",MIC,None,Loans
"Ministry of Housing, Communities and Local Government",Homes England,EXTERNAL BUILDING MAINTENANCE,Development,R FOX T/A SOUTHCOAST MAINTENANCE,11/10/2021,840.00,SMA,72101500,Building maintenance and repair services
"Ministry of Housing, Communities and Local Government",Homes England,EXTERNAL BUILDING MAINTENANCE,Development,R FOX T/A SOUTHCOAST MAINTENANCE,11/10/2021,"5,121.60",SMA,72101500,Building maintenance and repair services
"Ministry of Housing, Communities and Local Government",Homes England,ROADS AND CAR PARKS,Development,R FOX T/A SOUTHCOAST MAINTENANCE,11/10/2021,"1,454.40",SMA,72101500,Building maintenance and repair services
"Ministry of Housing, Communities and Local Government",Homes England,EXTERNAL BUILDING MAINTENANCE,Development,R FOX T/A SOUTHCOAST MAINTENANCE,11/10/2021,"1,532.40",SMA,72101500,Building maintenance and repair services
"Ministry of Housing, Communities and Local Government",Homes England,EXTERNAL BUILDING MAINTENANCE,Development,R FOX T/A SOUTHCOAST MAINTENANCE,11/10/2021,"1,446.00",SMA,72101500,Building maintenance and repair services
"Ministry of Housing, Communities and Local Government",Homes England,ESTATE GENERAL MAINTENANCE,Development,R FOX T/A SOUTHCOAST MAINTENANCE,11/10/2021,"1,320.00",SMA,72101500,Building maintenance and repair services
"Ministry of Housing, Communities and Local Government",Homes England,EXTERNAL BUILDING MAINTENANCE,Development,R FOX T/A SOUTHCOAST MAINTENANCE,11/10/2021,840.00,SMA,72101500,Building maintenance and repair services
"Ministry of Housing, Communities and Local Government",Homes England,MANAGEMENT COSTS,Development,R FOX T/A SOUTHCOAST MAINTENANCE,11/10/2021,420.00,SMA,80131800,Real estate management services
"Ministry of Housing, Communities and Local Government",Homes England,SECURITY,Development,R FOX T/A SOUTHCOAST MAINTENANCE,11/10/2021,304.80,SMA,92121500,Guard services
"Ministry of Housing, Communities and Local Government",Homes England,BUILDINGS-WATER,Development,R FOX T/A SOUTHCOAST MAINTENANCE,11/10/2021,670.80,SMA,83101500,Water and sewer utilities
"Ministry of Housing, Communities and Local Government",Homes England,MANAGEMENT COSTS,Development,R FOX T/A SOUTHCOAST MAINTENANCE,13/10/2021,720.00,SMA,80131800,Real estate management services
"Ministry of Housing, Communities and Local Government",Homes England,MANAGEMENT COSTS,"Markets, Partners & Places",R FOX T/A SOUTHCOAST MAINTENANCE,13/10/2021,960.00,SMA,80131800,Real estate management services
"Ministry of Housing, Communities and Local Government",Homes England,MANAGEMENT COSTS,Development,R FOX T/A SOUTHCOAST MAINTENANCE,13/10/2021,304.80,SMA,80131800,Real estate management services
"Ministry of Housing, Communities and Local Government",Homes England,MANAGEMENT COSTS,Development,R FOX T/A SOUTHCOAST MAINTENANCE,13/10/2021,304.80,SMA,80131800,Real estate management services
"Ministry of Housing, Communities and Local Government",Homes England,BUILDINGS-ELECTRICITY,Development,R FOX T/A SOUTHCOAST MAINTENANCE,15/10/2021,720.00,SMA,83101800,Electric utilities
"Ministry of Housing, Communities and Local Government",Homes England,MANAGEMENT COSTS,Development,R FOX T/A SOUTHCOAST MAINTENANCE,15/10/2021,734.40,SMA,80131800,Real estate management services
"Ministry of Housing, Communities and Local Government",Homes England,LANDSCAPE MAINT-BUILT ESTATE,Development,R FOX T/A SOUTHCOAST MAINTENANCE,25/10/2021,840.00,SMA,72102900,Facility maintenance and repair services
"Ministry of Housing, Communities and Local Government",Homes England,DRAINS & SEWERS,Development,R FOX T/A SOUTHCOAST MAINTENANCE,25/10/2021,"1,440.00",SMA,72101500,Building maintenance and repair services
"Ministry of Housing, Communities and Local Government",Homes England,BUILDINGS-CLEANING,Development,R FOX T/A SOUTHCOAST MAINTENANCE,25/10/2021,756.00,SMA,76111500,General building and office cleaining and maintenance services
"Ministry of Housing, Communities and Local Government",Homes England,MANAGEMENT COSTS,Development,R FOX T/A SOUTHCOAST MAINTENANCE,25/10/2021,"1,800.00",SMA,80131800,Real estate management services
"Ministry of Housing, Communities and Local Government",Homes England,ESTATE GENERAL MAINTENANCE,Development,R FOX T/A SOUTHCOAST MAINTENANCE,25/10/2021,979.20,SMA,72101500,Building maintenance and repair services
"Ministry of Housing, Communities and Local Government",Homes England,ROADS AND CAR PARKS,Development,R FOX T/A SOUTHCOAST MAINTENANCE,25/10/2021,391.20,SMA,72101500,Building maintenance and repair services
"Ministry of Housing, Communities and Local Government",Homes England,SIGNS & NOTICEBOARDS,Development,R FOX T/A SOUTHCOAST MAINTENANCE,25/10/2021,297.60,SMA,55121700,Signage
"Ministry of Housing, Communities and Local Government",Homes England,SIGNS & NOTICEBOARDS,Development,R FOX T/A SOUTHCOAST MAINTENANCE,25/10/2021,734.40,SMA,55121700,Signage
"Ministry of Housing, Communities and Local Government",Homes England,CONTRACT WORKS,Development,FORKERS LTD,11/10/2021,"420,264.14",MED,72103300,Infrastructure maintenance and repair services
"Ministry of Housing, Communities and Local Government",Homes England,SECURITY,Development,FALCON SECURITY,04/10/2021,"24,958.08",SMA,92121500,Guard services
"Ministry of Housing, Communities and Local Government",Homes England,SECURITY,"Markets, Partners & Places",FALCON SECURITY,06/10/2021,"4,182.00",SMA,92121500,Guard services
"Ministry of Housing, Communities and Local Government",Homes England,SECURITY,"Markets, Partners & Places",FALCON SECURITY,07/10/2021,"2,298.00",SMA,92121500,Guard services
"Ministry of Housing, Communities and Local Government",Homes England,ESTATE GENERAL MAINTENANCE,"Markets, Partners & Places",FALCON SECURITY,07/10/2021,"3,403.20",SMA,72101500,Building maintenance and repair services
"Ministry of Housing, Communities and Local Government",Homes England,SECURITY,Development,FALCON SECURITY,19/10/2021,"6,021.00",SMA,92121500,Guard services
"Ministry of Housing, Communities and Local Government",Homes England,SECURITY,Development,FALCON SECURITY,22/10/2021,"3,888.00",SMA,92121500,Guard services
"Ministry of Housing, Communities and Local Government",Homes England,PACKAGE MAINTENANCE & SUBSCRIP,Cido,FLYFORM LIMITED,20/10/2021,"3,422.23",SMA,43231500,Business function specific software
"Ministry of Housing, Communities and Local Government",Homes England,EXTERNAL BUILDING MAINTENANCE,Development,FIRST NATIONAL SERVICES LTD,04/10/2021,873.60,SMA,72101500,Building maintenance and repair services
"Ministry of Housing, Communities and Local Government",Homes England,EXTERNAL BUILDING MAINTENANCE,Development,FIRST NATIONAL SERVICES LTD,29/10/2021,"1,045.80",SMA,72101500,Building maintenance and repair services
"Ministry of Housing, Communities and Local Government",Homes England,MANAGEMENT COSTS,Development,FINISHING TOUCH PROPERTY MAINTENANCE SERVICES,11/10/2021,780.00,SMA,80131800,Real estate management services
"Ministry of Housing, Communities and Local Government",Homes England,MANAGEMENT COSTS,Development,FINISHING TOUCH PROPERTY MAINTENANCE SERVICES,11/10/2021,310.00,SMA,80131800,Real estate management services
"Ministry of Housing, Communities and Local Government",Homes England,MANAGEMENT COSTS,Development,FINISHING TOUCH PROPERTY MAINTENANCE SERVICES,11/10/2021,530.00,SMA,80131800,Real estate management services
"Ministry of Housing, Communities and Local Government",Homes England,SECURITY,"Markets, Partners & Places",FIRST RESPONSE GROUP LTD,06/10/2021,"2,419.62",MED,92121500,Guard services
"Ministry of Housing, Communities and Local Government",Homes England,SECURITY,Development,FIRST RESPONSE GROUP LTD,07/10/2021,509.54,MED,92121500,Guard services
"Ministry of Housing, Communities and Local Government",Homes England,SECURITY,Development,FIRST RESPONSE GROUP LTD,07/10/2021,509.54,MED,92121500,Guard services
"Ministry of Housing, Communities and Local Government",Homes England,SECURITY,Development,FIRST RESPONSE GROUP LTD,07/10/2021,"1,528.64",MED,92121500,Guard services
"Ministry of Housing, Communities and Local Government",Homes England,SECURITY,"Markets, Partners & Places",FIRST RESPONSE GROUP LTD,08/10/2021,"2,290.86",MED,92121500,Guard services
"Ministry of Housing, Communities and Local Government",Homes England,SECURITY,Development,FIRST RESPONSE GROUP LTD,11/10/2021,"21,276.54",MED,92121500,Guard services
"Ministry of Housing, Communities and Local Government",Homes England,SECURITY,"Markets, Partners & Places",FIRST RESPONSE GROUP LTD,19/10/2021,643.50,MED,92121500,Guard services
"Ministry of Housing, Communities and Local Government",Homes England,PLANNING APPLICATIONS,"Markets, Partners & Places",AVISON YOUNG (UK) LTD,01/10/2021,"74,316.00",LAR,80131800,Real estate management services
"Ministry of Housing, Communities and Local Government",Homes England,RI - MONIITORING SURVEYOR FEES,Development,AVISON YOUNG (UK) LTD,04/10/2021,900.00,LAR,81101500,Civil Engineering
"Ministry of Housing, Communities and Local Government",Homes England,RI - MONIITORING SURVEYOR FEES,Investment,AVISON YOUNG (UK) LTD,04/10/2021,900.00,LAR,81101500,Civil Engineering
"Ministry of Housing, Communities and Local Government",Homes England,MISC PROFESSIONAL FEES,Investment,AVISON YOUNG (UK) LTD,04/10/2021,"27,360.00",LAR,80131800,Real estate management services
"Ministry of Housing, Communities and Local Government",Homes England,Other Land Loans Fv Additions,"Markets, Partners & Places",AVISON YOUNG (UK) LTD,05/10/2021,660.00,LAR,81101500,Civil Engineering
"Ministry of Housing, Communities and Local Government",Homes England,Other Land Loans Fv Additions,"Markets, Partners & Places",AVISON YOUNG (UK) LTD,05/10/2021,"13,354.07",LAR,80131800,Real estate management services
"Ministry of Housing, Communities and Local Government",Homes England,RI - MONIITORING SURVEYOR FEES,Investment,AVISON YOUNG (UK) LTD,05/10/2021,960.00,LAR,81101500,Civil Engineering
"Ministry of Housing, Communities and Local Government",Homes England,RI - MONIITORING SURVEYOR FEES,Investment,AVISON YOUNG (UK) LTD,05/10/2021,960.00,LAR,81101500,Civil Engineering
"Ministry of Housing, Communities and Local Government",Homes England,MISC PROFESSIONAL FEES,Development,AVISON YOUNG (UK) LTD,06/10/2021,"23,884.80",LAR,80131800,Real estate management services
"Ministry of Housing, Communities and Local Government",Homes England,PROPERTY SERVICES,Development,AVISON YOUNG (UK) LTD,07/10/2021,"4,800.00",LAR,80131800,Real estate management services
"Ministry of Housing, Communities and Local Government",Homes England,OTHER PROFESSIONAL FEES,Development,AVISON YOUNG (UK) LTD,07/10/2021,"4,137.14",LAR,80131800,Real estate management services
"Ministry of Housing, Communities and Local Government",Homes England,DISPOSAL FEES - PROPERTY AGENT,Development,AVISON YOUNG (UK) LTD,11/10/2021,"5,160.96",LAR,80131600,Sale of property and building
"Ministry of Housing, Communities and Local Government",Homes England,DISPOSAL FEES - PROPERTY AGENT,Development,AVISON YOUNG (UK) LTD,11/10/2021,"20,400.00",LAR,80131600,Sale of property and building
"Ministry of Housing, Communities and Local Government",Homes England,MISC PROFESSIONAL FEES,Corporate Resources,AVISON YOUNG (UK) LTD,11/10/2021,"25,920.00",LAR,80121600,Business law services
"Ministry of Housing, Communities and Local Government",Homes England,MISC PROFESSIONAL FEES,Development,AVISON YOUNG (UK) LTD,19/10/2021,"5,046.64",LAR,72101500,Building maintenance and repair services
"Ministry of Housing, Communities and Local Government",Homes England,MISC PROFESSIONAL FEES,"Markets, Partners & Places",AVISON YOUNG (UK) LTD,21/10/2021,"71,190.00",LAR,80101500,Business and corporate management consultation services
"Ministry of Housing, Communities and Local Government",Homes England,DISPOSAL FEES - PROPERTY AGENT,"Markets, Partners & Places",AVISON YOUNG (UK) LTD,21/10/2021,"9,360.00",LAR,80131600,Sale of property and building
"Ministry of Housing, Communities and Local Government",Homes England,MISC PROFESSIONAL FEES,Investment,AVISON YOUNG (UK) LTD,22/10/2021,"11,400.00",LAR,80101500,Business and corporate management consultation services
"Ministry of Housing, Communities and Local Government",Homes England,VALUATION FEES,Development,AVISON YOUNG (UK) LTD,25/10/2021,"1,800.00",LAR,80131800,Real estate management services
"Ministry of Housing, Communities and Local Government",Homes England,DISPOSAL FEES - PROPERTY AGENT,Development,AVISON YOUNG (UK) LTD,25/10/2021,"11,538.38",LAR,80131600,Sale of property and building
"Ministry of Housing, Communities and Local Government",Homes England,DISPOSAL FEES - PROPERTY AGENT,Development,AVISON YOUNG (UK) LTD,25/10/2021,"4,536.00",LAR,80131600,Sale of property and building
"Ministry of Housing, Communities and Local Government",Homes England,PLANNING APPLICATIONS,"Markets, Partners & Places",AVISON YOUNG (UK) LTD,26/10/2021,"45,804.00",LAR,80131800,Real estate management services
"Ministry of Housing, Communities and Local Government",Homes England,Other Land Loans Fv Additions,"Markets, Partners & Places",AVISON YOUNG (UK) LTD,26/10/2021,"22,776.00",LAR,80131800,Real estate management services
"Ministry of Housing, Communities and Local Government",Homes England,RI - MONIITORING SURVEYOR FEES,Investment,AVISON YOUNG (UK) LTD,26/10/2021,"2,592.00",LAR,81101500,Civil Engineering
"Ministry of Housing, Communities and Local Government",Homes England,PROPERTY SERVICES,Development,AVISON YOUNG (UK) LTD,27/10/2021,450.00,LAR,80131800,Real estate management services
"Ministry of Housing, Communities and Local Government",Homes England,PROPERTY SERVICES,Development,AVISON YOUNG (UK) LTD,27/10/2021,570.00,LAR,80131800,Real estate management services
"Ministry of Housing, Communities and Local Government",Homes England,PROPERTY SERVICES,Development,AVISON YOUNG (UK) LTD,27/10/2021,870.00,LAR,80131800,Real estate management services
"Ministry of Housing, Communities and Local Government",Homes England,MANAGEMENT COSTS,Development,AVISON YOUNG (UK) LTD,27/10/2021,450.00,LAR,80131800,Real estate management services
"Ministry of Housing, Communities and Local Government",Homes England,PROPERTY SERVICES,Development,AVISON YOUNG (UK) LTD,27/10/2021,810.00,LAR,80131800,Real estate management services
"Ministry of Housing, Communities and Local Government",Homes England,MANAGEMENT COSTS,Development,AVISON YOUNG (UK) LTD,27/10/2021,450.00,LAR,80131800,Real estate management services
"Ministry of Housing, Communities and Local Government",Homes England,PROPERTY SERVICES,Development,AVISON YOUNG (UK) LTD,27/10/2021,900.00,LAR,80131800,Real estate management services
"Ministry of Housing, Communities and Local Government",Homes England,PROPERTY SERVICES,Development,AVISON YOUNG (UK) LTD,27/10/2021,420.00,LAR,80131800,Real estate management services
"Ministry of Housing, Communities and Local Government",Homes England,PROPERTY SERVICES,Development,AVISON YOUNG (UK) LTD,27/10/2021,450.00,LAR,80131800,Real estate management services
"Ministry of Housing, Communities and Local Government",Homes England,PROPERTY SERVICES,Development,AVISON YOUNG (UK) LTD,27/10/2021,570.00,LAR,80131800,Real estate management services
"Ministry of Housing, Communities and Local Government",Homes England,PROPERTY SERVICES,Development,AVISON YOUNG (UK) LTD,27/10/2021,870.00,LAR,80131800,Real estate management services
"Ministry of Housing, Communities and Local Government",Homes England,MANAGEMENT COSTS,Development,AVISON YOUNG (UK) LTD,27/10/2021,450.00,LAR,80131800,Real estate management services
"Ministry of Housing, Communities and Local Government",Homes England,PROPERTY SERVICES,Development,AVISON YOUNG (UK) LTD,27/10/2021,810.00,LAR,80131800,Real estate management services
"Ministry of Housing, Communities and Local Government",Homes England,MANAGEMENT COSTS,Development,AVISON YOUNG (UK) LTD,27/10/2021,450.00,LAR,80131800,Real estate management services
"Ministry of Housing, Communities and Local Government",Homes England,PROPERTY SERVICES,Development,AVISON YOUNG (UK) LTD,27/10/2021,900.00,LAR,80131800,Real estate management services
"Ministry of Housing, Communities and Local Government",Homes England,PROPERTY SERVICES,Development,AVISON YOUNG (UK) LTD,27/10/2021,420.00,LAR,80131800,Real estate management services
"Ministry of Housing, Communities and Local Government",Homes England,PROPERTY SERVICES,Development,AVISON YOUNG (UK) LTD,27/10/2021,450.00,LAR,80131800,Real estate management services
"Ministry of Housing, Communities and Local Government",Homes England,PROPERTY SERVICES,Development,AVISON YOUNG (UK) LTD,27/10/2021,570.00,LAR,80131800,Real estate management services
"Ministry of Housing, Communities and Local Government",Homes England,PROPERTY SERVICES,Development,AVISON YOUNG (UK) LTD,27/10/2021,870.00,LAR,80131800,Real estate management services
"Ministry of Housing, Communities and Local Government",Homes England,MANAGEMENT COSTS,Development,AVISON YOUNG (UK) LTD,27/10/2021,450.00,LAR,80131800,Real estate management services
"Ministry of Housing, Communities and Local Government",Homes England,PROPERTY SERVICES,Development,AVISON YOUNG (UK) LTD,27/10/2021,810.00,LAR,80131800,Real estate management services
"Ministry of Housing, Communities and Local Government",Homes England,MANAGEMENT COSTS,Development,AVISON YOUNG (UK) LTD,27/10/2021,450.00,LAR,80131800,Real estate management services
"Ministry of Housing, Communities and Local Government",Homes England,PROPERTY SERVICES,Development,AVISON YOUNG (UK) LTD,27/10/2021,900.00,LAR,80131800,Real estate management services
"Ministry of Housing, Communities and Local Government",Homes England,PROPERTY SERVICES,Development,AVISON YOUNG (UK) LTD,27/10/2021,420.00,LAR,80131800,Real estate management services
"Ministry of Housing, Communities and Local Government",Homes England,VALUATION FEES,"Markets, Partners & Places",AVISON YOUNG (UK) LTD,27/10/2021,"3,600.00",LAR,80131800,Real estate management services
"Ministry of Housing, Communities and Local Government",Homes England,OTHER PROFESSIONAL FEES,Development,AVISON YOUNG (UK) LTD,27/10/2021,"6,212.40",LAR,80131800,Real estate management services
"Ministry of Housing, Communities and Local Government",Homes England,RATES,Development,GATESHEAD COUNCIL,13/10/2021,"17,051.00",PUB,80131500,Lease and rental of property or building
"Ministry of Housing, Communities and Local Government",Homes England,RATES,Development,GATESHEAD COUNCIL,19/10/2021,"2,997.94",PUB,80131500,Lease and rental of property or building
"Ministry of Housing, Communities and Local Government",Homes England,PENSION SCHEME FEES,Corporate Resources,GOVERNMENT ACTUARY'S DEPARTMENT,27/10/2021,"8,139.82",PUB,84131700,Pension funds
"Ministry of Housing, Communities and Local Government",Homes England,MANAGEMENT COSTS,Development,GRASSTEX LIMITED,25/10/2021,"1,609.99",SMA,80131800,Real estate management services
"Ministry of Housing, Communities and Local Government",Homes England,ST FUND LOANS ADDITIONS,Investment,GREENHOLME MILLS LTD,20/10/2021,"535,366.24",MIC,None,Loans
"Ministry of Housing, Communities and Local Government",Homes England,SECONDED STAFF COSTS,Development,GREATER LONDON AUTHORITY,08/10/2021,"38,506.20",PUB,80101500,Business and corporate management consultation services 
"Ministry of Housing, Communities and Local Government",Homes England,ST FUND LOANS ADDITIONS,Investment,GENUS DESIGN HOMES LIMITED,01/10/2021,"144,352.39",LAR,None,Loans
"Ministry of Housing, Communities and Local Government",Homes England,SERVICE RENTS/CHARGES,"Markets, Partners & Places",GVA GRIMLEY LTD CLIENT A/C,01/10/2021,"2,711.73",LAR,80131500,Lease and rental of property or building
"Ministry of Housing, Communities and Local Government",Homes England,MISC PROFESSIONAL FEES,"Markets, Partners & Places",GERALD EVE LLP,04/10/2021,"19,800.00",LAR,80101600,Project management
"Ministry of Housing, Communities and Local Government",Homes England,MISC PROFESSIONAL FEES,"Markets, Partners & Places",GERALD EVE LLP,04/10/2021,"17,100.00",LAR,80101600,Project management
"Ministry of Housing, Communities and Local Government",Homes England,MISC PROFESSIONAL FEES,"Markets, Partners & Places",GERALD EVE LLP,13/10/2021,"19,074.00",LAR,80101600,Project management
"Ministry of Housing, Communities and Local Government",Homes England,MISC PROFESSIONAL FEES,"Markets, Partners & Places",GERALD EVE LLP,13/10/2021,"21,879.00",LAR,80101600,Project management
"Ministry of Housing, Communities and Local Government",Homes England,MISC PROFESSIONAL FEES,"Markets, Partners & Places",GERALD EVE LLP,13/10/2021,"15,708.00",LAR,80101600,Project management
"Ministry of Housing, Communities and Local Government",Homes England,MISC PROFESSIONAL FEES,"Markets, Partners & Places",GERALD EVE LLP,13/10/2021,"16,830.00",LAR,80101600,Project management
"Ministry of Housing, Communities and Local Government",Homes England,SECURITY,"Markets, Partners & Places",GUARDING UK LTD,11/10/2021,"1,119.00",LAR,92121500,Guard services
"Ministry of Housing, Communities and Local Government",Homes England,SECURITY,Development,GUARDING UK LTD,11/10/2021,"1,119.00",LAR,92121500,Guard services
"Ministry of Housing, Communities and Local Government",Homes England,SECURITY,Development,GUARDING UK LTD,11/10/2021,"1,119.00",LAR,92121500,Guard services
"Ministry of Housing, Communities and Local Government",Homes England,SECURITY,"Markets, Partners & Places",GUARDING UK LTD,11/10/2021,297.00,LAR,92121500,Guard services
"Ministry of Housing, Communities and Local Government",Homes England,SECURITY,"Markets, Partners & Places",GUARDING UK LTD,11/10/2021,"1,119.00",LAR,92121500,Guard services
"Ministry of Housing, Communities and Local Government",Homes England,SECURITY,Development,GUARDING UK LTD,11/10/2021,"1,119.00",LAR,92121500,Guard services
"Ministry of Housing, Communities and Local Government",Homes England,SECURITY,Development,GUARDING UK LTD,11/10/2021,"1,119.00",LAR,92121500,Guard services
"Ministry of Housing, Communities and Local Government",Homes England,SECURITY,"Markets, Partners & Places",GUARDING UK LTD,11/10/2021,"1,119.00",LAR,92121500,Guard services
"Ministry of Housing, Communities and Local Government",Homes England,SECURITY,Development,GUARDING UK LTD,11/10/2021,"1,119.00",LAR,92121500,Guard services
"Ministry of Housing, Communities and Local Government",Homes England,SECURITY,Development,GUARDING UK LTD,11/10/2021,"1,119.00",LAR,92121500,Guard services
"Ministry of Housing, Communities and Local Government",Homes England,SECURITY,"Markets, Partners & Places",GUARDING UK LTD,11/10/2021,257.40,LAR,92121500,Guard services
"Ministry of Housing, Communities and Local Government",Homes England,SECURITY,Development,GUARDING UK LTD,12/10/2021,"1,119.00",LAR,92121500,Guard services
"Ministry of Housing, Communities and Local Government",Homes England,SECURITY,"Markets, Partners & Places",GUARDING UK LTD,12/10/2021,297.00,LAR,92121500,Guard services
"Ministry of Housing, Communities and Local Government",Homes England,SECURITY,"Markets, Partners & Places",GUARDING UK LTD,12/10/2021,653.40,LAR,92121500,Guard services
"Ministry of Housing, Communities and Local Government",Homes England,SECURITY,"Markets, Partners & Places",GUARDING UK LTD,12/10/2021,"1,119.00",LAR,92121500,Guard services
"Ministry of Housing, Communities and Local Government",Homes England,SECURITY,Development,GUARDING UK LTD,12/10/2021,"1,119.00",LAR,92121500,Guard services
"Ministry of Housing, Communities and Local Government",Homes England,SECURITY,Development,GUARDING UK LTD,12/10/2021,"1,119.00",LAR,92121500,Guard services
"Ministry of Housing, Communities and Local Government",Homes England,SECURITY,"Markets, Partners & Places",GUARDING UK LTD,12/10/2021,257.40,LAR,92121500,Guard services
"Ministry of Housing, Communities and Local Government",Homes England,SECURITY,"Markets, Partners & Places",GUARDING UK LTD,12/10/2021,"1,119.00",LAR,92121500,Guard services
"Ministry of Housing, Communities and Local Government",Homes England,SECURITY,Development,GUARDING UK LTD,12/10/2021,"1,119.00",LAR,92121500,Guard services
"Ministry of Housing, Communities and Local Government",Homes England,SECURITY,Development,GUARDING UK LTD,12/10/2021,"1,119.00",LAR,92121500,Guard services
"Ministry of Housing, Communities and Local Government",Homes England,SECURITY,Development,GUARDING UK LTD,12/10/2021,"1,119.00",LAR,92121500,Guard services
"Ministry of Housing, Communities and Local Government",Homes England,SECURITY,"Markets, Partners & Places",GUARDING UK LTD,12/10/2021,297.00,LAR,92121500,Guard services
"Ministry of Housing, Communities and Local Government",Homes England,SECURITY,"Markets, Partners & Places",GUARDING UK LTD,12/10/2021,"1,119.00",LAR,92121500,Guard services
"Ministry of Housing, Communities and Local Government",Homes England,SECURITY,Development,GUARDING UK LTD,12/10/2021,"1,119.00",LAR,92121500,Guard services
"Ministry of Housing, Communities and Local Government",Homes England,SECURITY,Development,GUARDING UK LTD,12/10/2021,"1,119.00",LAR,92121500,Guard services
"Ministry of Housing, Communities and Local Government",Homes England,SECURITY,"Markets, Partners & Places",GUARDING UK LTD,12/10/2021,277.20,LAR,92121500,Guard services
"Ministry of Housing, Communities and Local Government",Homes England,SECURITY,Development,GUARDING UK LTD,13/10/2021,"1,119.00",LAR,92121500,Guard services
"Ministry of Housing, Communities and Local Government",Homes England,CAP GRNTS TO LOCAL AUTHORITIES,Investment,GLOUCESTERSHIRE COUNTY COUNCIL,22/10/2021,"866,831.72",PUB,None,Grants
"Ministry of Housing, Communities and Local Government",Homes England,TRAINING COURSES & CONFERENCES,Corporate Resources,GATENBY SANDERSON,01/10/2021,"18,552.00",MED,86101800,In service training and manpower development
"Ministry of Housing, Communities and Local Government",Homes England,AGENCY STAFF,Cido,GATENBY SANDERSON,12/10/2021,"6,960.00",MED,80111600,Temporary personnel services
"Ministry of Housing, Communities and Local Government",Homes England,AGENCY STAFF,Cido,GATENBY SANDERSON,12/10/2021,"5,568.00",MED,80111600,Temporary personnel services
"Ministry of Housing, Communities and Local Government",Homes England,AGENCY STAFF,Cido,GATENBY SANDERSON,12/10/2021,"6,960.00",MED,80111600,Temporary personnel services
"Ministry of Housing, Communities and Local Government",Homes England,AGENCY STAFF,Cido,GATENBY SANDERSON,12/10/2021,"6,960.00",MED,80111600,Temporary personnel services
"Ministry of Housing, Communities and Local Government",Homes England,AGENCY STAFF,Cido,GATENBY SANDERSON,12/10/2021,"6,960.00",MED,80111600,Temporary personnel services
"Ministry of Housing, Communities and Local Government",Homes England,AGENCY STAFF,Cido,GATENBY SANDERSON,12/10/2021,"5,568.00",MED,80111600,Temporary personnel services
"Ministry of Housing, Communities and Local Government",Homes England,AGENCY STAFF,Cido,GATENBY SANDERSON,26/10/2021,"1,071.00",MED,80111600,Temporary personnel services
"Ministry of Housing, Communities and Local Government",Homes England,AGENCY STAFF,Cido,GATENBY SANDERSON,26/10/2021,"3,570.00",MED,80111600,Temporary personnel services
"Ministry of Housing, Communities and Local Government",Homes England,AGENCY STAFF,Cido,GATENBY SANDERSON,26/10/2021,"3,570.00",MED,80111600,Temporary personnel services
"Ministry of Housing, Communities and Local Government",Homes England,AGENCY STAFF,Cido,GATENBY SANDERSON,27/10/2021,"2,142.00",MED,80111600,Temporary personnel services
"Ministry of Housing, Communities and Local Government",Homes England,ST FUND LOANS ADDITIONS,Investment,GRC DEVELOPMENTS LIMITED,22/10/2021,"80,184.47",LAR,None,Loans
"Ministry of Housing, Communities and Local Government",Homes England,ST FUND LOANS ADDITIONS,Investment,GILBY HOMES LTD,22/10/2021,"130,000.00",LAR,None,Loans
"Ministry of Housing, Communities and Local Government",Homes England,ST FUND LOANS ADDITIONS,Investment,GENTOO HOMES LTD,01/10/2021,"1,322,740.00",LAR,None,Loans
"Ministry of Housing, Communities and Local Government",Homes England,SUNDRIES,Corporate Resources,2U GETSMARTER (US) LLC,14/10/2021,"2,200.00",LAR,86101800,In service training and manpower development
"Ministry of Housing, Communities and Local Government",Homes England,RENT,Development,GOVERNMENT PROPERTY AGENCY,04/10/2021,"11,043.90",PUB,80131500,Lease and rental of property or building
"Ministry of Housing, Communities and Local Government",Homes England,RENT,Development,GOVERNMENT PROPERTY AGENCY,04/10/2021,"101,379.45",PUB,80131500,Lease and rental of property or building
"Ministry of Housing, Communities and Local Government",Homes England,Management Fee,Development,GOVERNMENT PROPERTY AGENCY,04/10/2021,"3,243.60",PUB,80131500,Lease and rental of property or building
"Ministry of Housing, Communities and Local Government",Homes England,SERVICE CHARGES,Development,GOVERNMENT PROPERTY AGENCY,04/10/2021,"14,215.76",PUB,80131500,Lease and rental of property or building
"Ministry of Housing, Communities and Local Government",Homes England,SERVICE CHARGES,Development,GOVERNMENT PROPERTY AGENCY,04/10/2021,302.45,PUB,80131500,Lease and rental of property or building
"Ministry of Housing, Communities and Local Government",Homes England,RENT,Development,GOVERNMENT PROPERTY AGENCY,04/10/2021,"204,037.28",PUB,80131500,Lease and rental of property or building
"Ministry of Housing, Communities and Local Government",Homes England,SERVICE CHARGES,Development,GOVERNMENT PROPERTY AGENCY,25/10/2021,"20,359.68",PUB,80131500,Lease and rental of property or building
"Ministry of Housing, Communities and Local Government",Homes England,SERVICE CHARGES,Development,GOVERNMENT PROPERTY AGENCY,25/10/2021,"5,089.92",PUB,80131500,Lease and rental of property or building
"Ministry of Housing, Communities and Local Government",Homes England,BUILDINGS-GAS,Development,QUORA GROUP,14/10/2021,"3,468.00",SMA,83101600,Oil and gas utilities
"Ministry of Housing, Communities and Local Government",Homes England,CAP GRNTS TO LOCAL AUTHORITIES,Investment,GUILDFORD BOROUGH COUNCIL,26/10/2021,"166,907.83",PUB,None,Grants
"Ministry of Housing, Communities and Local Government",Homes England,CONTRACT WORKS,Investment,GLEEDS ADVISORY LTD,08/10/2021,"30,060.00",SMA,72121100,Commercial and office building construction services
"Ministry of Housing, Communities and Local Government",Homes England,PROJECT MANAGEMENT,"Markets, Partners & Places",GLEEDS ADVISORY LTD,11/10/2021,"6,509.20",SMA,80101600,Project management
"Ministry of Housing, Communities and Local Government",Homes England,RI - MONIITORING SURVEYOR FEES,Investment,GLEEDS ADVISORY LTD,13/10/2021,"1,200.00",SMA,81101500,Civil Engineering
"Ministry of Housing, Communities and Local Government",Homes England,AGENCY STAFF,Development,GREEN PARK INTERIM & EXECUTIVE LTD,11/10/2021,"9,768.00",MED,80111600,Temporary personnel services
"Ministry of Housing, Communities and Local Government",Homes England,CAP GRNTS TO LOCAL AUTHORITIES,Investment,HYNDBURN BOROUGH COUNCIL,21/10/2021,"172,242.05",PUB,None,Grants
"Ministry of Housing, Communities and Local Government",Homes England,AGENCY STAFF,Chief Risk Officer,HAYS ACCOUNTANCY & FINANCE,01/10/2021,"7,434.00",LAR,80111600,Temporary personnel services
"Ministry of Housing, Communities and Local Government",Homes England,AGENCY STAFF,Chief Risk Officer,HAYS ACCOUNTANCY & FINANCE,01/10/2021,"7,862.40",LAR,80111600,Temporary personnel services
"Ministry of Housing, Communities and Local Government",Homes England,AGENCY STAFF,Corporate Resources,HAYS ACCOUNTANCY & FINANCE,07/10/2021,"3,540.00",LAR,80111600,Temporary personnel services
"Ministry of Housing, Communities and Local Government",Homes England,AGENCY STAFF,Chief Risk Officer,HAYS ACCOUNTANCY & FINANCE,13/10/2021,"6,372.00",LAR,80111600,Temporary personnel services
"Ministry of Housing, Communities and Local Government",Homes England,AGENCY STAFF,Chief Risk Officer,HAYS ACCOUNTANCY & FINANCE,13/10/2021,"8,236.80",LAR,80111600,Temporary personnel services
"Ministry of Housing, Communities and Local Government",Homes England,AGENCY STAFF,Corporate Resources,HAYS ACCOUNTANCY & FINANCE,14/10/2021,"3,540.00",LAR,80111600,Temporary personnel services
"Ministry of Housing, Communities and Local Government",Homes England,AGENCY STAFF,Corporate Resources,HAYS ACCOUNTANCY & FINANCE,22/10/2021,"3,540.00",LAR,80111600,Temporary personnel services
"Ministry of Housing, Communities and Local Government",Homes England,AGENCY STAFF,Corporate Resources,HAYS ACCOUNTANCY & FINANCE,29/10/2021,"3,540.00",LAR,80111600,Temporary personnel services
"Ministry of Housing, Communities and Local Government",Homes England,RI - MONIITORING SURVEYOR FEES,Investment,ARCADIS CONSULTING (UK) LIMITED,04/10/2021,"1,620.00",LAR,81101500,Civil Engineering
"Ministry of Housing, Communities and Local Government",Homes England,RI - MONIITORING SURVEYOR FEES,Investment,ARCADIS CONSULTING (UK) LIMITED,04/10/2021,"1,620.00",LAR,81101500,Civil Engineering
"Ministry of Housing, Communities and Local Government",Homes England,ENGINEERING FEES,Development,ARCADIS CONSULTING (UK) LIMITED,04/10/2021,"20,469.37",LAR,81101500,Civil Engineering
"Ministry of Housing, Communities and Local Government",Homes England,ENGINEERING FEES,Development,ARCADIS CONSULTING (UK) LIMITED,04/10/2021,"21,701.06",LAR,81101500,Civil Engineering
"Ministry of Housing, Communities and Local Government",Homes England,RI - MONIITORING SURVEYOR FEES,Investment,ARCADIS CONSULTING (UK) LIMITED,07/10/2021,"1,740.00",LAR,81101500,Civil Engineering
"Ministry of Housing, Communities and Local Government",Homes England,RI - MONIITORING SURVEYOR FEES,Investment,ARCADIS CONSULTING (UK) LIMITED,07/10/2021,840.00,LAR,81101500,Civil Engineering
"Ministry of Housing, Communities and Local Government",Homes England,RI - MONIITORING SURVEYOR FEES,Investment,ARCADIS CONSULTING (UK) LIMITED,07/10/2021,"1,740.00",LAR,81101500,Civil Engineering
"Ministry of Housing, Communities and Local Government",Homes England,RI - MONIITORING SURVEYOR FEES,Investment,ARCADIS CONSULTING (UK) LIMITED,07/10/2021,"1,740.00",LAR,81101500,Civil Engineering
"Ministry of Housing, Communities and Local Government",Homes England,RI - MONIITORING SURVEYOR FEES,Investment,ARCADIS CONSULTING (UK) LIMITED,07/10/2021,"1,680.00",LAR,81101500,Civil Engineering
"Ministry of Housing, Communities and Local Government",Homes England,RI - MONIITORING SURVEYOR FEES,Investment,ARCADIS CONSULTING (UK) LIMITED,08/10/2021,"1,500.00",LAR,81101500,Civil Engineering
"Ministry of Housing, Communities and Local Government",Homes England,RI - MONIITORING SURVEYOR FEES,Investment,ARCADIS CONSULTING (UK) LIMITED,11/10/2021,"1,500.00",LAR,81101500,Civil Engineering
"Ministry of Housing, Communities and Local Government",Homes England,RI - MONIITORING SURVEYOR FEES,Investment,ARCADIS CONSULTING (UK) LIMITED,12/10/2021,"1,620.00",LAR,81101500,Civil Engineering
"Ministry of Housing, Communities and Local Government",Homes England,RI - MONIITORING SURVEYOR FEES,Investment,ARCADIS CONSULTING (UK) LIMITED,12/10/2021,"1,620.00",LAR,81101500,Civil Engineering
"Ministry of Housing, Communities and Local Government",Homes England,RI - MONIITORING SURVEYOR FEES,Investment,ARCADIS CONSULTING (UK) LIMITED,12/10/2021,"1,620.00",LAR,81101500,Civil Engineering
"Ministry of Housing, Communities and Local Government",Homes England,RI - MONIITORING SURVEYOR FEES,Investment,ARCADIS CONSULTING (UK) LIMITED,12/10/2021,"1,620.00",LAR,81101500,Civil Engineering
"Ministry of Housing, Communities and Local Government",Homes England,RI - MONIITORING SURVEYOR FEES,Investment,ARCADIS CONSULTING (UK) LIMITED,15/10/2021,"1,560.00",LAR,81101500,Civil Engineering
"Ministry of Housing, Communities and Local Government",Homes England,PROJECT MANAGEMENT,"Markets, Partners & Places",ARCADIS CONSULTING (UK) LIMITED,15/10/2021,"4,800.00",LAR,80101600,Project management
"Ministry of Housing, Communities and Local Government",Homes England,MASTERPLANNING FEES,Development,ARCADIS CONSULTING (UK) LIMITED,21/10/2021,"48,000.00",LAR,81101500,Civil Engineering
"Ministry of Housing, Communities and Local Government",Homes England,RI - MONIITORING SURVEYOR FEES,Investment,ARCADIS CONSULTING (UK) LIMITED,21/10/2021,"1,500.00",LAR,81101500,Civil Engineering
"Ministry of Housing, Communities and Local Government",Homes England,ENGINEERING FEES,Development,ARCADIS CONSULTING (UK) LIMITED,22/10/2021,"9,776.54",LAR,81101500,Civil Engineering
"Ministry of Housing, Communities and Local Government",Homes England,ENGINEERING FEES,"Markets, Partners & Places",ARCADIS CONSULTING (UK) LIMITED,22/10/2021,"46,654.03",LAR,81101500,Civil Engineering
"Ministry of Housing, Communities and Local Government",Homes England,OTHER PROFESSIONAL FEES,"Markets, Partners & Places",ARCADIS CONSULTING (UK) LIMITED,26/10/2021,"44,625.60",LAR,80131800,Real estate management services
"Ministry of Housing, Communities and Local Government",Homes England,RI - MONIITORING SURVEYOR FEES,Investment,ARCADIS CONSULTING (UK) LIMITED,27/10/2021,"1,500.00",LAR,81101500,Civil Engineering
"Ministry of Housing, Communities and Local Government",Homes England,OTHER PROFESSIONAL FEES,"Markets, Partners & Places",ARCADIS CONSULTING (UK) LIMITED,28/10/2021,"6,000.00",LAR,80131800,Real estate management services
"Ministry of Housing, Communities and Local Government",Homes England,RI - MONIITORING SURVEYOR FEES,Investment,ARCADIS CONSULTING (UK) LIMITED,29/10/2021,"1,500.00",LAR,81101500,Civil Engineering
"Ministry of Housing, Communities and Local Government",Homes England,PROPERTY SERVICES,"Markets, Partners & Places",HENDERSON & TAYLOR FM LIMITED,19/10/2021,474.00,MED,80131800,Real estate management services
"Ministry of Housing, Communities and Local Government",Homes England,PROPERTY SERVICES,Development,HARTNELL TAYLOR COOK LLP,05/10/2021,370.80,MED,80131800,Real estate management services
"Ministry of Housing, Communities and Local Government",Homes England,MANAGEMENT COSTS,Development,HARTNELL TAYLOR COOK LLP,05/10/2021,"1,236.00",MED,80131800,Real estate management services
"Ministry of Housing, Communities and Local Government",Homes England,PROPERTY SERVICES,Development,HARTNELL TAYLOR COOK LLP,05/10/2021,"1,174.20",MED,80131800,Real estate management services
"Ministry of Housing, Communities and Local Government",Homes England,PROPERTY SERVICES,Development,HARTNELL TAYLOR COOK LLP,05/10/2021,"1,236.00",MED,80131800,Real estate management services
"Ministry of Housing, Communities and Local Government",Homes England,PROPERTY SERVICES,Development,HARTNELL TAYLOR COOK LLP,05/10/2021,"1,155.66",MED,80131800,Real estate management services
"Ministry of Housing, Communities and Local Government",Homes England,PROPERTY SERVICES,Development,HARTNELL TAYLOR COOK LLP,05/10/2021,"1,359.60",MED,80131800,Real estate management services
"Ministry of Housing, Communities and Local Government",Homes England,PROPERTY SERVICES,Development,HARTNELL TAYLOR COOK LLP,05/10/2021,"3,244.50",MED,80131800,Real estate management services
"Ministry of Housing, Communities and Local Government",Homes England,PROPERTY SERVICES,Development,HARTNELL TAYLOR COOK LLP,05/10/2021,"1,174.20",MED,80131800,Real estate management services
"Ministry of Housing, Communities and Local Government",Homes England,MANAGEMENT COSTS,Development,HARTNELL TAYLOR COOK LLP,08/10/2021,955.80,MED,80131800,Real estate management services
"Ministry of Housing, Communities and Local Government",Homes England,MANAGEMENT COSTS,Development,HARTNELL TAYLOR COOK LLP,08/10/2021,955.80,MED,80131800,Real estate management services
"Ministry of Housing, Communities and Local Government",Homes England,MANAGEMENT COSTS,Development,HARTNELL TAYLOR COOK LLP,08/10/2021,"1,168.20",MED,80131800,Real estate management services
"Ministry of Housing, Communities and Local Government",Homes England,PROPERTY SERVICES,Development,HARTNELL TAYLOR COOK LLP,08/10/2021,318.60,MED,80131800,Real estate management services
"Ministry of Housing, Communities and Local Government",Homes England,PROPERTY SERVICES,Development,HARTNELL TAYLOR COOK LLP,08/10/2021,378.00,MED,80131800,Real estate management services
"Ministry of Housing, Communities and Local Government",Homes England,PROPERTY SERVICES,Development,HARTNELL TAYLOR COOK LLP,08/10/2021,318.60,MED,80131800,Real estate management services
"Ministry of Housing, Communities and Local Government",Homes England,PROPERTY SERVICES,Development,HARTNELL TAYLOR COOK LLP,11/10/2021,"3,399.00",MED,80131800,Real estate management services
"Ministry of Housing, Communities and Local Government",Homes England,PROPERTY SERVICES,Development,HARTNELL TAYLOR COOK LLP,11/10/2021,"3,708.00",MED,80131800,Real estate management services
"Ministry of Housing, Communities and Local Government",Homes England,PROPERTY SERVICES,Development,HARTNELL TAYLOR COOK LLP,11/10/2021,844.80,MED,80131800,Real estate management services
"Ministry of Housing, Communities and Local Government",Homes England,PROPERTY SERVICES,Development,HARTNELL TAYLOR COOK LLP,11/10/2021,318.60,MED,80131800,Real estate management services
"Ministry of Housing, Communities and Local Government",Homes England,PROPERTY SERVICES,Development,HARTNELL TAYLOR COOK LLP,11/10/2021,531.00,MED,80131800,Real estate management services
"Ministry of Housing, Communities and Local Government",Homes England,OTHER PROFESSIONAL FEES,Development,HARTNELL TAYLOR COOK LLP,12/10/2021,"1,273.08",MED,80131800,Real estate management services
"Ministry of Housing, Communities and Local Government",Homes England,ESTATE GENERAL MAINTENANCE,Development,HARTNELL TAYLOR COOK LLP,12/10/2021,933.18,MED,72101500,Building maintenance and repair services
"Ministry of Housing, Communities and Local Government",Homes England,ESTATE GENERAL MAINTENANCE,Development,HARTNELL TAYLOR COOK LLP,12/10/2021,318.60,MED,72101500,Building maintenance and repair services
"Ministry of Housing, Communities and Local Government",Homes England,RI - MONIITORING SURVEYOR FEES,Investment,HARTNELL TAYLOR COOK LLP,14/10/2021,"1,020.00",MED,81101500,Civil Engineering
"Ministry of Housing, Communities and Local Government",Homes England,RI - MONIITORING SURVEYOR FEES,Investment,HARTNELL TAYLOR COOK LLP,14/10/2021,"1,020.00",MED,81101500,Civil Engineering
"Ministry of Housing, Communities and Local Government",Homes England,PROPERTY SERVICES,Development,HARTNELL TAYLOR COOK LLP,28/10/2021,"1,911.60",MED,80131800,Real estate management services
"Ministry of Housing, Communities and Local Government",Homes England,PROPERTY SERVICES,Development,HARTNELL TAYLOR COOK LLP,29/10/2021,710.70,MED,80131800,Real estate management services
"Ministry of Housing, Communities and Local Government",Homes England,CAP GRNTS TO LOCAL AUTHORITIES,Investment,HASTINGS BOROUGH COUNCIL,26/10/2021,"10,805.28",PUB,None,Grants
"Ministry of Housing, Communities and Local Government",Homes England,MISC PROFESSIONAL FEES,Investment,HASTINGS BOROUGH COUNCIL,26/10/2021,"14,250.00",PUB,None,Grants
"Ministry of Housing, Communities and Local Government",Homes England,TEAM MEETINGS,Development,HILTON LIVERPOOL,26/10/2021,400.00,LAR,90111600,Meeting facilities
